{"text_format":"1","workbook":"xlsx","n_sheets":9,"sheets":["MINT Locations Data in TPI","PHI SHIPMENT LANES","CWIM SHIPMENT LANES","DEN SHIPMENT LANES","CWID SHIPMENT LANES ","CWDA SHIPMENT LANES ","CWCH SHIPMENT LANES","CWMN SHIPMENT LANES ","CWLA SHIPMENT LANES"],"not_rendered":{"charts":0,"images":0,"macros":0,"external_links":0,"defined_names":8,"comments":5,"pivot_tables":0},"unopened":[],"bounds":{"document_bytes":16777216,"sheet_cells":100000,"rows_first":2000,"rows_last":500,"rows_between":2000,"halvings":0,"cell_chars":16384,"cell_head_chars":4096},"cells_cut":0,"cells_raw":0,"read":"whole","date_system":"1900"}

{"sheet":"MINT Locations Data in TPI","index":0,"n_rows":190,"n_cols":9,"rows_kept":190,"cut":false,"hidden":false,"merged":[]}
["TPI Hub Id","TPI Hub Address","Address","City","State","Zip Code","Active","Mint Site","Mint Code"]
["20_13_01505","50 SHREWSBURY STREET BOYLSTON MA 01505 USA ","50 Shrewsbury St","Boylston","MA",1505,"YES","YES","ORHA"]
["20_13_01852","2O3 INDUSTRIAL AVENUE LOWELL MA 01852 USA ","203 Industrial Avenue","Lowell","MA",1852,"YES","YES","BOSL"]
["20_13_02106","600 ATLANTIC AVENUE BOSTON MA 02106 USA ","600 Atlantic Ave","Boston","MA",2106,"YES","YES","BOST"]
["20_13_02368","67 TEED DRIVE RANDOLPH MA 02368 USA ","67 TEED DRIVE","Randolph","MA",2368,"YES","YES","BOSB"]
["20_13_03108","520 MAMMOTH ROAD LONDONDERRY NH 03053 USA ","520 Mammoth Road","Londonderry","NH",3053,"YES","YES","MHTA"]
["20_13_06050","444 JOHN DOWNEY DRIVE NEW BRITAIN CT 06050 USA ","444 John Downey Drive","New Britain","CT",6050,"YES","YES","BDLD"]
["20_13_07073","100 ORCHARD STREET EAST RUTHERFORD NJ 07073 USA ","100 Orchard Street","East Rutherford","NJ",7073,"YES","YES","NYER"]
["20_13_07601","70 BURLEWS COURT HACKENSACK NJ 07601 USA ","70 Berlews Court","Hackensack","NJ",7601,"YES","YES","NYHD"]
["20_13_08077","1100 TAYLORS LANE CINNAMINSON NJ 08077 USA ","1100 Taylors Lane","Cinnaminson","NJ",8077,"YES","YES","PHLD"]
["20_13_08110","1601 HYLTON ROAD PENNSAUKEN NJ 08110 USA ","1601 Hylton Road","Pennsauken","NJ",8110,"YES","YES","PHLL"]
["20_13_08837A","375 Clearview Road EDISON NJ 08837 USA ","375 Clearview Road","Edison","NJ",8837,"YES","YES","NYED"]
["20_13_11101","5-26 45TH AVENUE LONG ISLAND CITY NY 11101 USA ","5-26 45th Avenue","Long Island City","NY",11101,"YES","YES","NYCD"]
["20_13_11803","100 COMMERCIAL STREET PLAINVIEW NY 11803 USA ","100 Commercial Street","Plainview","NY",11803,"YES","YES","ISPD"]
["20_13_12205","21 RAILROAD AVENUE COLONIE NY 12205 USA ","21 Railroad Ave","Colonie","NY",12205,"YES","YES","ALBA"]
["20_13_13057","6605 JOY ROAD SYRACUSE NY 13057 USA ","6605 Joy Road","Syracuse","NY",13057,"YES","YES","SYRA"]
["20_13_14216","79 ROSALIA STREET BUFFALO NY 14216 USA ","79 Rosalia Street","Buffalo","NY",14216,"YES","YES","BUFB"]
["20_13_14624","65 VANTAGE POINT ROCHESTER NY 14624 USA ","65  Vantage Point","Rochester","NY",14624,"YES","YES","ROCA"]
["20_13_15205A","500 VISTA INDUSTRIAL PARK PITTSBURGH PA 15205 USA ","500 Vista Industrial Park","Pittsburgh","PA",15205,"YES","YES","PITB"]
["20_13_15202B","70 33RD STREET PITTSBURGH PA 15202 USA ","70 33rd Street","Pittsburgh","PA",15202,"YES","YES","PIBA"]
["20_13_15205","1610 PARKWAY VIEW DRIVE PITTSBURGH OH 15205 USA ","1610 Parkway View Drive","Pittsburgh","OH",15205,"YES","YES","PITL"]
["20_13_15215","1650 MAIN STREET SHARPSBURG PA 15215 USA ","1650 Main Street","Sharpsburg","PA",15215,"YES","YES","PITF"]
["20_13_17402","6 INTERCHANGE PLACE YORK PA 17402 USA ","6 Interchange Place","York","PA",17402,"YES","YES","MDTD"]
["20_13_18017","2458 BROADHEAD ROAD Unit M, N, P, BETHLEHEM PA 18017 USA ","2458 Brodhead Road Unit M, N, P","Bethlehem","PA",18017,"YES","YES","ABED"]
["20_13_19106B","10 N. INDEPENDENCE MALL EAST PHILADELPHIA PA 19106 USA ","10 N. Independence Mall East","Philadelphia","PA",19106,"YES","YES","PHIL"]
["20_13_19802","212 EAST LEA BLVD WILMINGTON DE 19802 USA ","212 East Lea Blvd","Wilmington","DE",19802,"YES","YES","ILMB"]
["20_13_20705B","6510 VIRGINIA MANOR ROAD BELTSVILLE MD 20705 USA ","6510 Virgina Manor Rd","Beltsville","MD",20705,"YES","YES","WASU"]
["20_13_21201","502 SOUTH SHARP STREET BALTIMORE MD 21201 USA ","502 S. Sharp St","Baltimore","MD",21201,"YES","YES","BALT"]
["20_13_21227","1710 TWIN SPRING ROAD BALTIMORE MD 21227 USA ","1710 Twin Spring Rd","Baltimore","MD",21227,"YES","YES","BALA"]
["20_13_21236","4983 MERCANTILE ROAD White Marsh MD 21236 USA ","4983 Mercantile Rd","White Marsh","MD",21236,"YES","YES","BALD"]
["20_13_22153","8015 CORPORATED COURT SPRINGFIELD VA 22153 USA ","8015 Corporated Ct.","Springfield","VA",22153,"YES","YES","WASL"]
["20_13_23219","2880 CHARLES CITY ROAD RICHMOND VA 23219 USA ","2880 Charles City Rd.","Richmond","VA",23219,"YES","YES","RICB"]
["20_13_23261","701 EAST BYRD STREET RICHMOND VA 23219 USA ","701 East Byrd Street","Richmond","VA",23219,"YES","YES","RICH"]
["20_13_23320","1223 EXECUTIVE BLVD. CHESAPEAKE VA 23320 USA ","1223 Executive Blvd.","Chesapeake","VA",23320,"YES","YES","ORFB"]
["20_13_23320A","500 WOODLAKE CIRCLE CHESAPEAKE VA 23320 USA ","500 Woodlake Circle","Chesapeake","VA",23320,"YES","YES","CHSL"]
["20_13_24019","738 LEE HIGHWAY #A ROANOKE VA 24019 USA ","738 A Lee Hwy #A","Roanoke","VA",24019,"YES","YES","ROAL"]
["20_13_24153","20 TURNER ROAD SALEM VA 24153 USA ","20 Turner Rd.","Salem","VA",24153,"YES","YES","ROAS"]
["20_13_27560","125 NOVA DRIVE MORRISVILLE NC 27560 USA ","125 Nova Drive","Morrisville","NC",27560,"YES","YES","RALL"]
["20_13_28208A","2415 EXECUTIVE STREET CHARLOTTE NC 28208 USA ","2415 Executive Street","Charlotte","NC",28208,"YES","Yes","CHAB"]
["20_13_28208C","3221 STAFFORD ROAD CHARLOTTE NC 28208 USA ","3221 Stafford Drive","Charlotte","NC",28208,"YES","YES","CLTL"]
["20_13_28208D","1836 LINDBERGH STREET # 100 CHARLOTTE NC 28208 USA ","1836 Lindbergh Street # 100","Charlotte","NC",28208,"YES","YES","CAEE"]
["20_13_28216","4300 NORTH LAKE COURT SUITE 200-A CHARLOTTE NC 28216 USA ","4300 North Lake Court Suite 200-A ","Charlotte","NC",28216,"YES","YES","CHAA"]
["20_13_28230","530 EAST TRADE STREET CHARLOTTE NC 28202 USA ","530 E. Trade Street","Charlotte","NC",28202,"YES","YES","CHAR"]
["20_13_30054","3635 SOUTH INDUSTRIAL PARKWAY ATLANTA GA 30354 USA ","3635 Southside Industrial Parkway","Atlanta","GA",30354,"YES","YES","ATLW"]
["20_13_30082","5400 UNITED DRIVE SMYRNA GA 30082 USA ","5400 United Drive","Smyrna","GA",30082,"YES","YES","ATLT"]
["20_13_30092","6670 CORNERS INDUSTRIAL COURT NORCROSS GA 30092 USA ","6670 Corners Industrial Ct.","Norcross","GA",30092,"YES","YES","ATLD"]
["20_13_30309","1000 PEACHTREE STREET, NE ATLANTA GA 30309 USA ","1000 Peachtree St. NE","Atlanta","GA",30309,"YES","YES","ATLA"]
["20_13_30318A","1466 CHATTAHOOCHEE AVE. ATLANTA GA 30318 USA ","1466 Chattahoochee Ave.","Atlanta","GA",30318,"YES","YES","ATLB"]
["20_13_31419","785 KING GEORGE BLVD. SAVANNAH GA 31419 USA ","785 King George Blvd.","Savannah","GA",31419,"YES","YES","SAVE"]
["20_13_32231","800 WATER STREET JACKSONVILLE FL 32204 USA ","800 Water Street","Jacksonville","FL",32204,"YES","YES","JACK"]
["20_13_32503","8800 ELY ROAD PENSACOLA FL 32514 USA ","8800 Ely Road","Pensacola","FL",32514,"YES","YES","PNSL"]
["20_13_32806A","40 WEST CRYSTAL LAKE STREET ORLANDO FL 32806 USA ","40 West Crystal Lake Street","Orlando","FL",32806,"YES","YES","JAWO"]
["20_13_33619","2030 MASSARO BLVD TAMPA FL 33619","2030 Massaro Blvd","Tampa","FL",33619,"YES","YES","JAWT"]
["20_13_32821","9900 SATTELITE BLVD. ORLANDO FL 32837 USA ","9900 Satellite Blvd","Orlando","FL",32837,"YES","YES","JABO"]
["20_13_32837","9820 SATELLITE BVLD #A ORLANDO FL 32837 USA ","9820 Satellite Boulevard #A","Orlando","FL",32837,"YES","YES","ORLG"]
["20_13_33166","7717 NW 62ND STREET MIAMI FL 33166 USA ","7717 NW 62 ST","Miami","FL",33166,"YES","YES","MIAD"]
["20_13_33172","1089 NW 20TH STREET MIAMI FL 33127 USA ","1089 NW 20 ST","Miami","FL",33127,"YES","YES","MIAW"]
["20_13_33178A","5575 N.W. 87TH AVENUE MIAMI FL 33178 USA ","5575 NW 87th Ave","Miami","FL",33178,"YES","YES","MIAB"]
["20_13_33178B","9100 N.W. 36TH STREET MIAMI FL 33178 USA ","9100 NW 36th Street","Miami","FL",33178,"YES","YES","MIAM"]
["20_13_33607","5115 W NASSAU STREET TAMPA FL 33607 USA ","5115 W. Nassau Street","Tampa","FL",33607,"YES","YES","JABT"]
["20_13_35210","4749 ALTON COURT IRONDALE AL 35210 USA ","4749 Alton Court","Irondale","AL",35210,"YES","YES","BIRB"]
["20_13_35222A","517 35th Street North BIRMINGHAM AL 35222 USA ","517 35th Street North","Birmingham","AL",35222,"YES","YES","BIRW"]
["20_13_36619","4684 SHIPYARD ROAD MOBILE AL 36619 USA ","4684 Shipyard Rd","Mobile","AL",36619,"YES","YES","MOBB"]
["20_13_37207","3020 BRICK CHURCH PIKE, NASHVILLE TN 37207 USA","3020 Brick Church Pike","Nashville","TN",37207,"YES","YES","NASW"]
["20_13_37210","299 HERMITAGE AVENUE NASHVILLE TN 37210 USA ","299 Hermitage Ave","Nashville","TN",37210,"YES","YES","NASB"]
["20_13_37406B","2305 B DODSON AVENUE CHATTANOOGA TN 37406 USA ","2305 B. Dodson Ave","Chattanooga","TN",37406,"YES","YES","CHTA"]
["20_13_37915","1701 LEWISVILLE DRIVE SUITE 102 KNOXVILLE TN 37915 USA ","1701 Louisville Drive Suite 102","Knoxville","TN",37915,"YES","YES","TYSB"]
["20_13_37917","120 METROPLEX COURT KNOXVILLE TN 37917 USA ","120 Metroplex Court","Knoxville","TN",37917,"YES","YES","TYSL"]
["20_13_38101","200 NORTH MAIN STREET MEMPHIS TN 38101 USA ","200 North Main Street","Memphis","TN",38101,"YES","YES","MEMP"]
["20_13_38111","2600 SOUTHERN AVE MEMPHIS TN 38111 USA ","2600 Southern Ave","Memphis","TN",38111,"YES","YES","MEML"]
["20_13_39204","1625 HANDY JACKSON MS 39204 USA ","1625 Handy Ave.","Jackson","MS",39204,"YES","YES","JANL"]
["20_13_40203","1050 SOUTH 9TH STREET LOUISVILLE KY 40203 USA ","1050 South 9th St","Louisville","KY",40203,"YES","YES","LOUA"]
["20_13_40299","1722 BLUEGRASS CT LOUISVILLE KY 40299 USA ","1722 Bluegrass Ct","Louisville","KY",40299,"YES","YES","LOUL"]
["20_13_44101","1455 EAST 6TH STREET CLEVELAND OH 44114 USA ","1455 E. 6th Street","Cleveland","OH",44114,"YES","YES","CLEV"]
["20_13_44125","5505 CLOVERLEAF PARKWAY VALLEY VIEW OH 44125 USA ","5505 Cloverleaf Parkway","Valley View","OH",44125,"YES","YES","CLDV"]
["20_13_44278","113 SOUTH THOMAS ROAD TALLMADGE OH 44278 USA ","113 S. Thomas Road","Tallmadge","OH",44278,"YES","YES","CLEA"]
["20_13_45201","150 EAST 4TH STREET CINCINNATI OH 45202 USA ","150 East Fourth St.","Cincinnati","OH",45202,"YES","YES","CINN"]
["20_13_45203","1045 HOPKINS STREET CINCINNATI OH 45203 USA ","1045 Hopkins St","Cincinnati","OH",45203,"YES","YES","CINB"]
["20_13_45203A","1249 WEST 7TH ST. CINCINNATI OH 45203 USA ","1249 West 7th St.","Cincinnati","OH",45203,"YES","YES","CIND"]
["20_13_45203B","1017 HOPKINS STREET CINCINNATI OH 45203 USA ","1017 Hopkins Street","Cincinnati","OH",45203,"YES","YES","CINA"]
["20_13_46202","68 N. GALE STREET INDIANAPOLIS IN 46202 USA ","68 N. Gale Street","Indianapolis","IN",46202,"YES","YES","INDU"]
["20_13_46202A","122 NORTH COLLEGE AVENUE INDIANAPOLIS IN 46202 USA ","122 N. College Ave","Indianapolis","IN",46202,"YES","YES","CINL"]
["20_13_46202C","402 NORTH DORMAN STREET INDIANAPOLIS IN 46202 USA ","402 N. Dorman Street","Indianapolis","IN",46202,"YES","YES","INDB"]
["20_13_48151","12435 MERRIMAN ROAD LIVONIA MI 48150 USA ","12435 Merriman Road","Livonia","MI",48150,"YES","YES","DETX"]
["20_13_48201","1351 SPRUCE DETROIT MI 48201 USA ","1351 Spruce","Detroit","MI",48201,"YES","YES","DETB"]
["20_13_48203","15045 HAMILTON HIGHLAND PARK MI 48203 USA ","15045 Hamilton","Highland Park","MI",48203,"YES","YES","DETL"]
["20_13_48207","1600 E WARREN DETROIT MI 48207 USA","1600 E. Warren","Detroit","MI",48207,"YES","YES","DETR"]
["20_13_48661","600 SOUTH VALLEY ROAD WEST BRANCH MI 48661 USA ","600 S. Valley Rd","West Branch","MI",48661,"YES","YES","DETF"]
["20_13_49321","871 WEST RIVER CENTER ROAD COMSTOCK PARK MI 49321 USA ","871 West River Center Road","Comstock Park","MI",49321,"YES","YES","DTCM"]
["20_13_49544","3380 THREE MILE ROAD GRAND RAPIDS MI 49544 USA ","3380 Three Mile Road","Grand Rapids","MI",49544,"YES","YES","GRRB"]
["20_13_50321","2500 BELL AVENUE DES MOINES IA 50321 USA ","2500 Bell Avenue","Des Moines","IA",50321,"YES","YES","DSML"]
["20_13_52244","92 COMMERCIAL DRIVE IOWA CITY IA 52244 USA ","92 Commercial Drive","Iowa City","IA",52244,"YES","YES","IOCL"]
["20_13_52802","1704 WEST 2ND STREET DAVENPORT IA 52802 USA ","1704 West 2nd Street","Davenport","IA",52802,"YES","YES","MLIB"]
["20_13_52804","17040 215TH STREET DAVENPORT IA 52804 USA ","17040 215th Street","Davenport","IA",52804,"YES","YES","MLIU"]
["20_13_53218B","5920 BENDER COURT MILWAUKEE WI 53218 USA ","5920 Bender Court","Milwaukee","WI",53218,"YES","YES","CHLM"]
["20_13_54115","STE103B 2001 LAWRENCE DRIVE DE PERE WI 54115 USA ","2001 Lawrence Dr., Suite 103B","Depere","WI",54115,"YES","YES","GRBA"]
["20_13_54303","1232 ELIZABETH STREET GREEN BAY WI 54302 USA ","1232 Elizabeth Street","Green Bay","WI",54302,"YES","YES","GRBB"]
["20_13_55106","999 EAST 7TH STREET SAINT PAUL MN 55106 USA ","999 East 7th Street","St. Paul","MN",55106,"YES","YES","MINL"]
["20_13_55114","527 ALDINE AVE SAINT PAUL MN 55104 USA ","527 Aldine Avenue","St. Paul","MN",55104,"YES","YES","MINA"]
["20_13_55401","90 HENNEPIN AVENUE MINNEAPOLIS MN 55480 USA ","90 Hennepin Ave","Minneapolis","MN",55480,"YES","YES","MINN"]
["20_13_55427","830 BOONE AVENUE NORTH GOLDEN VALLEY MN 55427 USA ","830 Boone Ave North","Golden Valley","MN",55427,"YES","YES","MPLB"]
["20_13_57101","826 N. WEBER AVE SIOUX FALLS SD 57101 USA ","826 N. Weber Ave","Sioux Falls","SD",57101,"YES","YES","FSDR"]
["20_13_57702","2340 DEADWOOD AVE SUITE P RAPID CITY SD 57702 USA ","2340 Deadwood Ave Suite P","Rapid City","SD",57702,"YES","YES","RAPR"]
["20_13_58102","1414 39TH ST. N FARGO ND 58102 USA ","1414 39th St. N","Fargo","ND",58102,"YES","YES","FNDR"]
["20_13_60153A","2500 S. 25TH AVE BROADVIEW IL 60153 USA ","2500 S. 25th Ave","Broadview","IL",60153,"YES","YES","CHIA"]
["20_13_60527","8100 SOUTH MADISON BURR RIDGE IL 60527 USA ","8100 South Madison","Burr Ridge","IL",60527,"YES","YES","CHIL"]
["20_13_60612","919 SOUTH CALIFORNIA AVENUE  CHICAGO IL 60612 USA ","919 S. California Avenue","Chicago","IL",60612,"YES","YES","CHIB"]
["20_13_60623","2100 SOUTH SAWYER STREET CHICAGO IL 60623 USA ","2100 South Sawyer Street","Chicago","IL",60623,"YES","YES","CHIV"]
["20_13_60632","230 SOUTH LASALLE STREET CHICAGO IL 60604 USA ","230 S. Lasalle Street","Chicago","IL",60604,"YES","YES","CHIC"]
["20_13_60651","4500 WEST CHICAGO AVENUE CHICAGO IL 60651 USA ","4500 W. Chicago Ave","Chicago","IL",60651,"YES","YES","CHID"]
["20_13_61604","6200 WEST PLANK ROAD BELLEVUE IL 61604 USA ","6200 West Plank Road","Bellevue","IL",61604,"YES","YES","PIAB"]
["20_13_62707","2930 GRANGER DRIVE SPRINGFIELD IL 62707 USA ","2930 Granger Drive","Springfield","IN",62707,"YES","YES","SPIB"]
["20_13_63045","1 Moxie Place, Eath City MO 63045 USA ","1 Moxie Place","Earth City","MO",63045,"YES","YES","STLL"]
["20_13_63102A","1 FEDERAL RESERVE BANK PLAZA SAINT LOUIS MO 63102 USA ","1 Federal Reserve Bank Plaza ","St. Louis","MO",63102,"YES","YES","STLO"]
["20_13_63102B","1022 SOUTH 9TH STREET SAINT LOUIS MO 63102 USA ","1022 South 9th Street","St. Louis","MO",63102,"YES","YES","STLS"]
["20_13_63106","909 NORTH 18TH STREET SAINT LOUIS MO 63106 USA ","909 N. 18th Street","St. Louis","MO",63106,"YES","YES","STLB"]
["20_13_64150","300 NW PARKWAY RIVERSIDE MO 64150 USA ","300 NW Parkway","Riverside","MO",64150,"YES","YES","KANL"]
["20_13_64198","1 MEMORIAL DRIVE KANSAS CITY MO 64198 USA ","1 Memorial Drive ","Kansas City","MO",64198,"YES","YES","KANS"]
["20_13_66619","6534 SE JABARA STREET TOPEKA KS 66619 USA ","6534 SE Jabara Street","Topeka","KS",66619,"YES","YES","TOPP"]
["20_13_68101","3937 LEAVENWORTH STREET OMAHA NE 68105 USA ","3937 Leavenworth Street","Omaha","NE",68105,"YES","YES","OMAR"]
["20_13_70119","2600 POYDRAS STREET NEW ORLEANS LA 70119 USA ","2600 Poydras Street","New Orleans","LA",70119,"YES","YES","NORX"]
["20_13_70130","933 ERATO STREET NEW ORLEANS LA 70130 USA ","933 Erato Street","New Orleans","LA",70130,"YES","YES","NORV"]
["20_13_70160","525 ST. CHARLES AVENUE NEW ORLEANS LA 70130 USA ","525 St. Charles Ave","New Orleans","LA",70130,"YES","YES","NORL"]
["20_13_71107","1124 FORUM DR SHREVEPORT LA 71107 USA ","1124 Forum Dr","Shreveport","LA",71107,"YES","YES","SHPL"]
["20_13_72202A","711 W DAISY L GASTON BATES DRIVE LITTLE ROCK AR 72202 USA ","711 W. Daisy L. Gaston Bates Dr.","Little Rock","AR",72202,"YES","YES","LITA"]
["20_13_72202B","1300 SOUTH CHESTER STREET LITTLE ROCK AR 72202 USA ","1300 S. Chester St.","Little Rock","AR",72202,"YES","YES","ROWF"]
["20_13_73111","2600 SHULL AVENUE OKLAHOMA CITY OK 73111 USA ","2600 Shull Avenue","Oklahoma City","OK",73111,"YES","YES","OKCB"]
["20_13_73117","1610 NE 4TH STREET OKLAHOMA CITY OK 73117 USA ","1610 NE 4th Street","Oklahoma City","OK",73117,"YES","YES","OKCL"]
["20_13_75062","2530 CENTURY LAKE DRIVE IRVING TX 75062 USA ","2530 Century Lake Dr","Irving","TX",75062,"YES","YES","DALB"]
["20_13_75201","2200 NORTH PEARL STREET DALLAS TX 75201 USA ","2200 North Pearl St","Dallas","TX",75201,"YES","YES","DALL"]
["20_13_75208","1655 VILBIG ROAD DALLAS TX 75208 USA ","1655 Vilbig Rd","Dallas","TX",75208,"YES","YES","DALA"]
["20_13_79106","2205 NW 3RD AVENUE AMARILLO TX 79106","2205 NW 3rd Avenue","Dallas","TX",79106,"YES","YES","AMRA"]
["20_13_77019","1801 ALLEN PARKWAY HOUSTON TX 77019 USA ","1801 Allen Parkway","Houston","TX",77019,"YES","YES","HOUS"]
["20_13_77023","2121 GULF CENTRAL DRIVE HOUSTON TX 77023 USA ","2121 Gulf Central Drive","Houston","TX",77023,"YES","YES","HOUG"]
["20_13_77051","9225 PARK SOUTH VIEW HOUSTON TX 77051 USA ","9225 Park South View","Houston","TX",77051,"YES","YES","HOUL"]
["20_13_77054","220 FARISS HOUSTON TX 77054 USA ","220 Fariss","Houston","TX",77054,"YES","YES","HOUB"]
["20_13_78217","9555 Ball  STREET SAN ANTONIO TX 78217 USA ","9555 Ball  STREET SAN ANTONIO TX 78217 USA ","San Antonio","TX",78217,"YES","YES","SANL"]
["20_13_78219B","914 PAULSUN STREET SAN ANTONIO TX 78219 USA ","914 Paulson Street","San Antonio","TX",78219,"YES","YES","SATA"]
["20_13_78219C","1006 PAULSON STREET SAN ANTONIO TX 78219 USA ","1006 Paulson Street","San Antonio","TX",78219,"YES","YES","SATB"]
["20_13_78219D","1030 BRUSSELS STREET SAN ANTONIO TX 78219 USA ","1030 Brussels Street","San Antonio","TX",78219,"YES","YES","SATD"]
["20_13_78577","1424 WEST POLK PHARR TX 78577 USA ","1424 West Polk","Pharr","TX",78577,"YES","YES","MFER"]
["20_13_79901","515 SOUTH KANSAS EL PASO TX 79901 USA ","515 S. Kansas","El Paso","TX",79901,"YES","YES","ELPM"]
["20_13_79924","5869 WAYCROSS AVENUE EL PASO TX 79924 USA ","5869 Waycross Ave. ","El Paso","TX",79924,"YES","YES","ELPL"]
["20_13_79999","301 EAST MAIN STREET EL PASO TX 79901 USA ","301 E. Main Street","El Paso","TX",79901,"YES","YES","EPAS"]
["20_13_80011","STE20 17650 EAST 32ND PLACE AURORA CO 80011 USA ","17650 E 32nd Place Ste 20","Aurora","CO",80011,"YES","YES","DENL"]
["20_13_80217","1020 16TH STREET DENVER CO 80202 USA ","1020 16th Street","Denver","CO",80202,"YES","YES","DENV"]
["20_13_83706","5677 BETHEL STREET BOISE ID 83706 USA ","5677 Bethel Street","Boise","ID",83706,"YES","YES","BOIL"]
["20_13_84104","2535 WEST CALIFORNIA AVENUE SALT LAKE CITY UT 84104 USA ","2535 W. California Ave.","Salt Lake City","UT",84104,"YES","YES","SLCW"]
["20_13_84111","120 SOUTH STATE STREET SALT LAKE CITY UT 84111 USA ","120 S. State Street","Salt Lake City","UT",84111,"YES","YES","SALK"]
["20_13_85019A","3660 W. THOMAS ROAD PHOENIX AZ 85019 USA ","3660 W. Thomas Rd","Phoenix","AZ",85019,"YES","YES","PHXB"]
["20_13_85034","2070 SOUTH 16TH STREET PHOENIX AZ 85034 USA ","2070 South 16th Street","Phoenix","AZ",85034,"YES","YES","PHTG"]
["20_13_85043","1550 NORTH 47TH AVENUE PHOENIX AZ 85043 USA ","1550 North 47th Ave","Phoenix","AZ",85043,"YES","YES","PHXP"]
["20_13_85282","849 W. 24TH STREET TEMPE AZ 85282 USA ","849 W. 24th St","Tempe","AZ",85282,"YES","YES","PHXL"]
["20_13_87106","3900 VASSER DRIVE, NE #B ALBUQUERQUE NM 87107 USA ","3900 Vassar Drive N.E. #B","Albuquerque","NM",87107,"YES","YES","ABQB"]
["20_13_89104B","3370 PALM PARKWAY LAS VEGAS NV 89104 USA ","3370 Palm Pkwy","Las Vegas","NV",89104,"YES","YES","LASL"]
["20_13_89104C","1685 SOUTH PALM STREET LAS VEGAS NV 89104 USA ","1685 South Palm Street","Las Vegas","NV",89104,"YES","YES","LSVG"]
["20_13_89502","4904 AMPERE WAY RENO NV 89502 USA ","4904 Ampere Way","Reno","NV",89502,"YES","YES","RNOL"]
["20_13_90015","950 S. GRAND AVE. LOS ANGELES CA 90015 USA ","950 S. Grand Ave","Los Angeles","CA",90015,"YES","YES","LAGS"]
["20_13_90060","7633 INDUSTRY AVE. PICO RIVERA CA 90660 USA ","7633 Industry Ave","Pico Rivera","CA",90660,"YES","YES","LASS"]
["20_13_91761","1375 EAST ACACIA BLVD. ONTARIO CA 91761 USA ","1375 East Acacia Blvd.","Ontario","CA",91761,"YES","YES","LALF"]
["20_13_90040","4901 ZAMBRANO STREET COMMERCE CA 90040 USA ","4901 Zambrano Street Commerce ","Commerce","CA",90040,"YES","YES","LAAT"]
["20_13_94105","101 MARKET STREET SAN FRANCISCO CA 94105 USA ","101 Market Street","San Francisco","CA",94105,"YES","YES","SFAO"]
["20_13_94607A","725 85TH AVE. SUITE A OAKLAND CA 94621 USA ","725 - 85th Ave., Suite A","Oakland","CA",94621,"YES","YES","OAKA"]
["20_13_95035","897 WRIGLEY  WAY MILPITAS, CA 95035 USA","897 Wrigley Way","Milpitas","CA",95035,"YES","YES","SFLS"]
["20_13_97203","4810 NORTH LAGOON SUITE 500 PORTLAND OR 97203 USA ","4810 North Lagoon Suite 500","Portland","OR",97203,"YES","YES","PORG"]
["20_13_97217A","8517 N. ALBINA AVENUE PORTLAND OR 97217 USA ","8517 N. Albina Avenue","Portland","OR",97217,"YES","YES","PORB"]
["20_13_97217B","6645 NORTH ENSIGN STREET PORTLAND OR 97214 USA ","6645 North Ensign Street","Portland","OR",97214,"YES","YES","PORL"]
["20_13_98057","2700 NACHES AVE, SW RENTON WA 98057 USA ","2700 Naches Ave  SW","Renton","WA",98057,"YES","YES","SEAT"]
["20_13_98057A","2985 NACHES AVE, SW RENTON WA 98057 USA ","2985 Naches Ave  SW","Renton","WA",98057,"YES","YES","SEAG"]
["20_13_98134C","5200 EAST MARGINAL WAY SEATTLE WA 98134 USA ","5200 East Marginal Way","Seattle","WA",98134,"YES","YES","SEAL"]
["20_13_99217","6202 N. FREYA SPOKANE WA 99217 USA ","6202 N. Freya","Spokane","WA",99217,"YES","YES","GEGL"]
["20_13_59901","1050 HUSKY STREET KALISPELL MT 59901 USA ","1050 Husky St.","Kalispell","MT",59901,"YES","YES","FCAG"]
["20_13_59601A","100 NEILL AVE. HELENA MT 59601 USA ","100 Neill Avenue","Helena ","MT",59601,"YES","YES","HELN"]
["20_13_59601B","2500 N. COOKE HELENA MT 59601 USA ","2500 N. Cooke","Helena ","MT",59601,"YES","YES","HLNS"]
["20_13_37406A","2305 B DODSON AVENUE CHATTANOOGA TN 37406 USA ","2305 B. Dodson Ave","Chattanooga","TN",37406,"YES","YES","CHTA"]
["20_13_32204","800 WATER STREET JACKSONVILLE FL 32204 USA ","800 Water Street","Jacksonville","FL",32204,"YES","YES","JACK"]
["20_13_60604","230 S. LASALLE STREET CHICAGO IL 60604 USA ","230 S. Lasalle Street","Chicago","IL",60604,"YES","YES","CHIC"]
["20_13_17057_CWIM","1981 FULLING MILL ROAD MIDDLETOWN PA 17057 USA ","1981 FULLING MILL ROAD"," MIDDLETOWN","PA",17057,null,null,"CWIM"]
["20_13_19106","151 NORTH INDEPENDENCE MALL EAST PHILADELPHIA PA 19106 USA ","151 NORTH INDEPENDENCE MALL EAST","PHILADELPHIA"," PA",19106,null,null,"PHIL"]
["20_13_28208_CWCH","1836 LINDBERGH STREET, CHARLOTTE, NC, 28208, USA ","1836 LINDBERGH STREET"," CHARLOTTE"," NC",28208,null,null,"CWCH"]
["20_13_55113_CWMN","1620 TERRACE DRIVE, SAINT PAUL, MN ,55113, USA ","1620 TERRACE DRIVE"," SAINT PAUL"," MN ",55113,null,null,"CWMN"]
["20_13_75220_CWDA","STE300 10760 SHADY TRAIL, DALLAS ,TX ,75220, USA ","STE300 10760 SHADY TRAIL"," DALLAS ","TX ",75220,null,null,"CWDA"]
["20_13_80204","320 W. COLFAX AVENUE, DENVER, CO , 80204, USA ","320 W. COLFAX AVENUE"," DENVER"," CO ",80204,null,null,"DEN"]
["20_13_80239_CWID","4940 PARIS STREET, DENVER, CO, 80239, USA ","4940 PARIS STREET"," DENVER"," CO",80239,null,null,"CWID"]
["20_13_90040_CWLA","4901 ZAMBRANO STREET, LOS ANGELES, CA, 90040, USA ","4901 ZAMBRANO STREET"," LOS ANGELES"," CA",90040,null,null,"CWLA"]
["20_13_44128","4956 NEO PARKWAY GARFIELD HEIGHTS OH 44128","4956 Neo Parkway ","Garfield Heights","OH",44128,"YES","YES","CLVL"]
["20_13_14624A","465 PAUL ROAD CHILI NY 14624","465 Paul Road","Chili ","NY",14624,"YES","YES","CHDR"]
["20_13_23150","5330 Lewis Road RICHMOND VA 23150","5330 Lewis Road ","Richmond ","VA",23150,"YES","NO","RICG"]
["20_13_33172A","3301 NW 97th AVENUE DORAL FLORIDA 33172","3301 NW 97th Ave","Doral ","FL",33172,"Yes","NO","MIAV"]
["20_13_21236A","4979 Mercantile RD Nottingham MD 21236","4979 Mercantile Road","Nottingham","MD",21236,"YES","YES","BALL"]

{"sheet":"PHI SHIPMENT LANES","index":1,"n_rows":135,"n_cols":26,"rows_kept":135,"cut":false,"hidden":false,"merged":[[0,0,0,6]]}
["MINOR COIN SHIPMENT LANES FROM THE PHILADELPHIA MINT (TPI CUSTOMER ID: USM-20-12-PA)"]
["District Number","Office Number","FRB Office ID","District","Office",null,"Name","TPI Hub Id","TPI Hub Address","Address","City","State","Zip Code","Active","Mint Site","Mint Code","Pallet Capacity","Truck Restrictions","Equipment Provided","Driver Loads/Unloads","Dock Hours","Other restrictions","Phone#","FAX#","Contact Name"]
[1,1,101,"Boston","Boston",{"$f":"C3&\"-\"&E3","v":"101-Boston"},"Loomis","20_13_01505","50 SHREWSBURY STREET BOYLSTON MA 01505 USA ","50 Shrewsbury St","Boylston","MA",1505,"YES","YES","ORHA",300,"No Restrictions","Fork Lift,  Pallet Jack","Onsite employees load/unload","M-F 7:00AM - 1:00PM","None","508-869-4027","774-614-0203","Frank Van Bemmel"]
[1,1,101,"Boston","Boston","101-Boston","Dunbar Armored","20_13_01852","2O3 INDUSTRIAL AVENUE LOWELL MA 01852 USA ","203 Industrial Avenue","Lowell","MA",1852,"YES","YES","BOSL",90,"No Restrictions","Fork Lift,  Pallet Jack","Driver loads/unloads to tailgate.","M-F 10:00AM - 2:00PM","Advance notice from FRB","978-441-6564","978-441-9076","Scott Patz"]
[1,1,101,"Boston","Boston","101-Boston","Federal Reserve Bank","20_13_02106","600 ATLANTIC AVENUE BOSTON MA 02106 USA ","600 Atlantic Ave","Boston","MA",2106,"YES","YES","BOST",1000,"13'  10 \" H 59' L 10' 5' W","Pallet Jack, Shrink wrap","Drive dock-load and unload to/from transfer room","M-F 7:00AM - 2:00PM","None","617-973-3723","617-973-3825","Franklin Ortiz/Gerard Mason"]
[1,1,101,"Boston","Boston","101-Boston","Brinks, Inc.","20_13_02368","67 TEED DRIVE RANDOLPH MA 02368 USA ","67 TEED DRIVE","Randolph","MA",2368,"YES","YES","BOSB",250,"Inside height restriction if 13' ","Fork Lift,  Pallet Jack","Driver loads and unloads from the dock","M-F 7:00AM - 2:00PM","None","781-986-2700 EXT. 2222","781-986-1550","Michael Gemme"]
[1,1,101,"Boston","Boston","101-Boston","Loomis","20_13_03108","520 MAMMOTH ROAD LONDONDERRY NH 03053 USA ","520 Mammoth Road","Londonderry","NH",3053,"YES","YES","MHTA",250,"No Restrictions","Fork Lift,  Pallet Jack","Drive dock-load tailgate-unload","M-F 9:00AM - 2:00PM","None","603-421-2929","603-425-0172","Kevin Cooper"]
[1,1,101,"Boston","Boston","101-Boston","Dunbar Armored","20_13_06050","444 JOHN DOWNEY DRIVE NEW BRITAIN CT 06050 USA ","444 John Downey Drive","New Britain","CT",6050,"YES","YES","BDLD",107,"30' L 20 ' H","Fork Lift,  Pallet Jack","Drive dock-load tailgate-unload","M-F 10:00AM - 2:00PM","None","860-826-4706","860-224-9775","Donna Anderson/James Ziegler"]
[2,1,201,"New York","New York","201-New York","Federal Reserve Bank","20_13_07073","100 ORCHARD STREET EAST RUTHERFORD NJ 07073 USA ","100 Orchard Street","East Rutherford","NJ",7073,"YES","YES","NYER",1198,"12'x71'","Fork Lift,  Pallet Jack, Shrink wrap","Drive dock-load and unload to/from transfer room","M-F 7:30AM - 3:00PM","Shipping company must provide driver and truck information to FRB in advance","201-531-3154","201-531-3160","ToniAnn Gencarelli"]
[2,1,201,"New York","New York","201-New York","Dunbar Armored","20_13_07601","70 BURLEWS COURT HACKENSACK NJ 07601 USA ","70 Berlews Court","Hackensack","NJ",7601,"YES","YES","NYHD",100,"Standard semi-capability","Fork Lift,  Pallet Jack, Shrink wrap","Driver loads/unloads to tailgate.","M-F 8:00AM - 5:00PM","","201-488-2508","201-488-4973","Adolfo Hernandez"]
[3,1,301,"Philadelphia","Philadelphia","301-Philadelphia","Dunbar Armored","20_13_08077","1100 TAYLORS LANE CINNAMINSON NJ 08077 USA ","1100 Taylors Lane","Cinnaminson","NJ",8077,"YES","YES","PHLD",72,"Height 10Ft   Width 8 1/2 ft  Length 25 1/2 ft","Fork Lift,  Pallet Jack, Shrink wrap","Driver loads/unloads to tailgate.","M-F 9:00AM - 3:00PM","Advance notice from FRB","856-786-5222","856-786-4338","Chris Howarth"]
[3,1,301,"Philadelphia","Philadelphia","301-Philadelphia","Loomis","20_13_08110","1601 HYLTON ROAD PENNSAUKEN NJ 08110 USA ","1601 Hylton Road","Pennsauken","NJ",8110,"YES","YES","PHLL",50,"No restrictions coin unloaded outside","Fork Lift,  Pallet Jack, Shrink wrap","Driver loads/unloads to tailgate","M-F 10:00AM - 2:00PM","Advance notice from FRB","856-317-2610","856-488-8419","Mark Zangaro"]
[2,1,201,"New York","New York","201-New York","Garda","20_13_08837A","375 Clearview Road EDISON NJ 08837 USA ","375 Clearview Road","Edison","NJ",8837,"YES","YES","NYED",125,"42' Tractor Trailer or smaller","Fork Lift,  Pallet Jack, Shrink wrap","Driver loads/unloads to tailgate.","M-F 8:00AM - 4:00PM","Announce yourself at guard post.","732-417-3828","908-436-9225","Mohan Taswar"]
[2,1,201,"New York","New York","201-New York","Garda","20_13_11101","5-26 45TH AVENUE LONG ISLAND CITY NY 11101 USA ","5-26 45th Avenue","Long Island City","NY",11101,"YES","YES","NYCD",125,"11'x50'","Fork Lift,  Pallet Jack, Shrink wrap","Driver loads/unloads to tailgate","M-F 7:00AM - 2:00PM","None","718-289-2900","718-472-0809","Dorthy Rivera "]
[2,1,201,"New York","New York","201-New York","Dunbar Armored","20_13_11803","100 COMMERCIAL STREET PLAINVIEW NY 11803 USA ","100 Commercial Street","Plainview","NY",11803,"YES","YES","ISPD",225,"13' max Height; 11' max Width","Fork Lift,  Pallet Jack","Drive dock-load and unload","M-F 9:00AM - 3:00PM","Must have vaild ID","516-349-1203","516-349-1251","Ahmad Shafee"]
[2,1,201,"New York","New York","201-New York","Loomis","20_13_12205","21 RAILROAD AVENUE COLONIE NY 12205 USA ","21 Railroad Ave","Colonie","NY",12205,"YES","YES","ALBA",141,"14'x30'","Fork Lift,  Pallet Jack, Shrink wrap","Onsite employees load/unload","M-F 9:00AM - 3:00PM","None","518-438-9074","518-435-1636","Jeff Schembeck"]
[4,1,401,"Cleveland","Cleveland","401-Cleveland","Loomis","20_13_13057","6605 JOY ROAD SYRACUSE NY 13057 USA ","6605 Joy Drive","Syracuse","NY",13057,"YES","YES","SYRA",185,"Trailer should not exceed 13'x45'","Fork Lift,  Pallet Jack","Driver loads/unloads to tailgate","M-F 9:00AM - Noon","1 day notice to schedule help","315-434-8852","315-433-1362","Bill Pelin"]
[4,1,401,"Cleveland","Cleveland","401-Cleveland","Brinks, Inc.","20_13_14216","79 ROSALIA STREET BUFFALO NY 14216 USA ","79 Rosalia Street","Buffalo","NY",14216,"YES","YES","BUFB",50,"Trailer should not exceed 12'x50'","Fork Lift,  Pallet Jack, Shrink wrap","Driver loads/unloads to tailgate","M-F 9:00AM - 5:00PM","None","716-873-1100","716-873-1225","Shatique Lipscomb/Frank Amone"]
[4,1,401,"Cleveland","Cleveland","401-Cleveland","Loomis","20_13_14624","65 VANTAGE POINT ROCHESTER NY 14624 USA ","65  Vantage Point","Rochester","NY",14624,"YES","YES","ROCA",194,"Trailer should not exceed 12'x30'","Fork Lift,  Pallet Jack, Shrink wrap","Driver loads/unloads to tailgate","M-F 7:00AM - 2:00PM","no raised dock or loading platform available.  All shipments off loaded on the exterior of the building under armed guard.","585-758-5017","585-352-6073","Darvon Murphy"]
[4,1,401,"Cleveland","Cleveland","401-Cleveland","Brinks, Inc.","20_13_15205A","500 VISTA INDUSTRIAL PARK PITTSBURGH PA 15205 USA ","500 Vista Industrial Park","Pittsburgh","PA",15205,"YES","YES","PITB",50,"No Restrictions","Fork Lift,  Pallet Jack, Shrink wrap","Onsite employees load/unload","M-F 9:00AM - 3:00PM","None","412-490-7360","412-490-7365"," Cathy Narehood"]
[4,1,401,"Cleveland","Cleveland","401-Cleveland","Garda","20_13_15202B","70 33RD STREET PITTSBURGH PA 15202 USA ","70 33rd Street","Pittsburgh","PA",15202,"YES","YES","PIBA",100,"No Restrictions","Fork Lift,  Pallet Jack","Driver loads/unloads to tailgate","M-F 10:00AM - 2:00PM","Driver must bring pallets to edge of the truck.Drivers to contact Eugene Reese (11:30 - 7:30 p.m) for delivery arrangements 412-434-7034.","412-434-7034","412-434-7038","Ryan Matthew"]
[4,1,401,"Cleveland","Cleveland","401-Cleveland","Loomis","20_13_15205","1610 PARKWAY VIEW DRIVE PITTSBURGH OH 15205 USA ","1610 Parkway View Drive","Pittsburgh","OH",15205,"YES","YES","PITL",9,"No Restrictions","Pallet Jack","Driver loads and unloads from the dock","N/A","None","330-746-3246","330-746-8939","Diana Reese"]
[4,1,401,"Cleveland","Cleveland","401-Cleveland","Dunbar Armored","20_13_15215","1650 MAIN STREET SHARPSBURG PA 15215 USA ","1650 Main Street","Sharpsburg","PA",15215,"YES","YES","PITF",250,"Trailer should not exceed 40' long","Fork Lift,  Pallet Jack","Driver loads/unloads to tailgate","M-F 7:00AM - 2:00PM","None","412-782-4935","412-782-4937","David Letunika/Eka Mehalko"]
[3,1,301,"Philadelphia","Philadelphia","301-Philadelphia","Dunbar Armored","20_13_17402","6 INTERCHANGE PLACE YORK PA 17402 USA ","6 Interchange Place","York","PA",17402,"YES","YES","MDTD",75,"No higher than 13' 6\"","Fork Lift,  Pallet Jack","Driver loads/unloads to tailgate.","M-F 8:00AM - 2:30PM","Advance notice from FRB","717-764-6886","717-764-5132","Verna Ward"]
[3,1,301,"Philadelphia","Philadelphia","301-Philadelphia","Dunbar Armored","20_13_18017","2458 BROADHEAD ROAD Unit M, N, P, BETHLEHEM PA 18017 USA ","2458 Brodhead Road Unit M, N, P","Bethlehem","PA",18017,"YES","YES","ABED",75,"No restrictions coin unloaded outside","Fork Lift,  Pallet Jack","Driver loads/unloads to tailgate.","M-F 8:00AM - 2:30PM","Advance notice from FRB","610-814-3234","610-814-3237","Nicole Gad"]
[3,1,301,"Philadelphia","Philadelphia","301-Philadelphia","Federal Reserve Bank","20_13_19106B","10 N. INDEPENDENCE MALL EAST PHILADELPHIA PA 19106 USA ","10 N. Independence Mall East","Philadelphia","PA",19106,"YES","YES","PHIL",3200,"42' Long  &  12' 6\" high","Fork Lift,  Pallet Jack, Shrink wrap","Drive dock-load and unload to/from transfer room","M-F 7:00AM - 2:30PM","Advance notice from carrier via FAX","215-574-3421","215-574-3471","Joe Craig"]
[3,1,301,"Philadelphia","Philadelphia","301-Philadelphia","Garda","20_13_19802","212 EAST LEA BLVD WILMINGTON DE 19802 USA ","212 East Lea Blvd","Wilmington","DE",19802,"YES","YES","ILMB",450,"No restrictions coin unloaded outside","Fork Lift,  Pallet Jack","Driver loads/unloads to tailgate.","M-F 9:00AM - 2:00PM","Advance notice from FRB","302-762-9570","302-761-9670","James Allen"]
[5,2,502,"Richmond","Baltimore","502-Baltimore","Dunbar Armored","20_13_20705B","6510 VIRGINIA MANOR ROAD BELTSVILLE MD 20705 USA ","6510 Virgina Manor Rd","Beltsville","MD",20705,"YES","YES","WASU",295,"No Restrictions","Fork Lift","Onsite employees load/unload","M-F 9:00AM - 3:00PM","None","240-387-0910","240-870-0191","Fred Montgomery or Gary Carroll"]
[5,2,502,"Richmond","Baltimore","502-Baltimore","Federal Reserve Bank","20_13_21201","502 SOUTH SHARP STREET BALTIMORE MD 21201 USA ","502 S. Sharp St","Baltimore","MD",21201,"YES","YES","BALT",1425,"No Restrictions","Fork Lift,  Pallet Jack","Drive dock-load and unload","M-F 7:00AM - 2:00PM","See comment","410-576-3416","410-576-3411","Dave Wheeler or Melinda Robbins"]
[5,2,502,"Richmond","Baltimore","502-Baltimore","Garda","20_13_21227","1710 TWIN SPRING ROAD BALTIMORE MD 21227 USA ","1710 Twin Spring Rd","Baltimore","MD",21227,"YES","YES","BALA",200,"No Restrictions","Fork Lift","Drive dock-load and unload","M-F 8:00AM - 2:00PM","None","410-247-0563","410-247-7501","Melissa Oglesby"]
[5,2,502,"Richmond","Baltimore","502-Baltimore","Dunbar Armored","20_13_21236","4983 MERCANTILE ROAD White Marsh MD 21236 USA ","4983 Mercantile Rd","White Marsh","MD",21236,"YES","YES","BALD",239,"No Restrictions","Fork Lift","Drive dock-load and unload","M-F 6:00AM - 2:00PM","None","410-933-9500","410-933-9515","Amber Jones-Montgomery"]
[5,2,502,"Richmond","Baltimore","502-Baltimore","Loomis","20_13_22153","8015 CORPORATED COURT SPRINGFIELD VA 22153 USA ","8015 Corporated Ct.","Springfield","VA",22153,"YES","YES","WASL",85,"No Restrictions","Fork Lift","Drive dock-load and unload","M-F 5:00AM - 3:30PM","None","703-866-0400","703-455-1836","Dale Johnson"]
[5,1,501,"Richmond","Richmond",{"$f":"C33&\"-\"&E33","v":"501-Richmond"},"Brinks, Inc.","20_13_23219","2880 CHARLES CITY ROAD RICHMOND VA 23219 USA ","2880 Charles City Rd.","Richmond","VA",23219,"YES","YES","RICB",150,"Cannot accept a semi in building","Pallet Jack, Fork lift","Driver loads and unloads from the dock","M-F 9:00AM - 4:00PM","If semi is used, the driver will need to accept shipment from the front of the truck.","804-783-9292","222-1579","Bill Synnot/David Bertelsen"]
[5,1,501,"Richmond","Richmond","501-Richmond","Federal Reserve Bank","20_13_23261","701 EAST BYRD STREET RICHMOND VA 23219 USA ","701 East Byrd Street","Richmond","VA",23219,"YES","YES","RICH",1450,"trailer should not exceed 48' in length","Fork Lift,  Pallet Jack","Drive dock-load and unload","M-F 7:00AM - 2:00PM","","804-697-8917","697-8305","Adam Roberson"]
[5,1,501,"Richmond","Richmond","501-Richmond","Brinks, Inc.","20_13_23320","1223 EXECUTIVE BLVD. CHESAPEAKE VA 23320 USA ","1223 Executive Blvd.","Chesapeake","VA",23320,"YES","YES","ORFB",200,"Maximun 48'","Fork Lift, Shrink wrap","Driver loads/unloads to tailgate.","M-F 7:00AM - 3:00PM","None","757-548-1765","757-547-5304","John Ferell"]
[5,1,501,"Richmond","Richmond","501-Richmond","Loomis","20_13_23320A","500 WOODLAKE CIRCLE CHESAPEAKE VA 23320 USA ","500 Woodlake Circle","Chesapeake","VA",23320,"YES","YES","CHSL",50,"No Restrictions","Fork Lift, Pallet Jack","Driver loads/unloads to tailgate.","M-F 9:00AM - 2:00PM","None","757-413-2410","757-413-2425","Keith Beezhold"]
[5,1,501,"Richmond","Richmond","501-Richmond","Loomis","20_13_24019","738 LEE HIGHWAY #A ROANOKE VA 24019 USA ","738  Lee Hwy #A","Roanoke","VA",24019,"YES","YES","ROAL",100,"No Restrictions","Pallet Jack","Driver loads and unloads from the dock","M-F 9:00AM - 2:00PM","None","804 756-7080","866-592-4151","Kevin Hodges"]
[5,1,501,"Richmond","Richmond","501-Richmond","Brinks, Inc.","20_13_24153","20 TURNER ROAD SALEM VA 24153 USA ","20 Turner Rd.","Salem","VA",24153,"YES","YES","ROAS",200,"No Restrictions","Fork Lift,  Pallet Jack","Brinks Unloads","M-F 8:00AM - 4:00PM","truck will have to load on side street","540-387-4284","540 387-4032","Ashley Tate"]
[5,3,503,"Richmond","Charlotte","503-Charlotte","Loomis","20_13_27560","125 NOVA DRIVE MORRISVILLE NC 27560 USA ","125 Nova Drive","Morrisville","NC",27560,"YES","YES","RALL",200,"15ft. 9 inches","Pallet Jack","Onsite employees load/unload","M-F 10:00AM - 3:00PM","None","919-469-5992","919-469-5992","Camille Walker"]
[5,3,503,"Richmond","Charlotte","503-Charlotte","Brinks, Inc.","20_13_28208A","2415 EXECUTIVE STREET CHARLOTTE NC 28208 USA ","2415 Executive Street","Charlotte","NC",28208,"YES","Yes","CHAB",300,"15ft. 9 inches","Pallet Jack","Onsite employees load/unload","M-F 8:30AM - 1:30PM","None","704-398-7960","704-398-7971","Michael Powell"]
[5,3,503,"Richmond","Charlotte","503-Charlotte","Loomis","20_13_28208C","3221 STAFFORD ROAD CHARLOTTE NC 28208 USA ","3221 Stafford Drive","Charlotte","NC",28208,"YES","YES","CLTL",150,"No Restrictions","Pallet Jack","Onsite employees load/unload","M-F 9:00AM - 2:00PM","None","704-916-8589","704-333-5094","Brittany Sanders"]
[5,3,503,"Richmond","Charlotte","503-Charlotte","Dunbar Armored","20_13_28208D","1836 LINDBERGH STREET # 100 CHARLOTTE NC 28208 USA ","1836 Lindbergh Street # 100","Charlotte","NC",28208,"YES","YES","CAEE",280,"15ft. 9 inches","Pallet Jack","Driver loads and unloads from the dock","M-F 7:00AM - 2:00PM","None","704-398-2929","704-398-1934","Marilyn Smith"]
[5,3,503,"Richmond","Charlotte","503-Charlotte","Garda","20_13_28216","4300 NORTH LAKE COURT SUITE 200-A CHARLOTTE NC 28216 USA ","4300 North Lake Court Suite 200-A ","Charlotte","NC",28216,"YES","YES","CHAA",255,"15ft. 9 inches","Pallet Jack","Driver loads and unloads from the dock","M-F 7:00AM - 3:00PM","None","704-509-2885","704-597-6782","Tony Waters"]
[5,3,503,"Richmond","Charlotte","503-Charlotte","Federal Reserve Bank","20_13_28230","530 EAST TRADE STREET CHARLOTTE NC 28202 USA ","530 E. Trade Street","Charlotte","NC",28202,"YES","YES","CHAR",1510,"13ft 6 inches","Pallet Jack","Driver loads and unloads from the dock","M-F 7:00AM - 2:00PM","None+T44:V45SH45:V45","704-358-2345","704-358-2278","Stephanie Mehlhouse"]
[6,1,601,"Atlanta","Atlanta","601-Atlanta","Loomis","20_13_30054","3635 SOUTH INDUSTRIAL PARKWAY ATLANTA GA 30354 USA ","3635 Southside Industrial Parkway","Atlanta","GA",30054,"YES","YES","ATLW",190,"76 length 13.6 height Min size","Pallet Jack","Driver loads/unloads to tailgate","M-F 7:00AM - 6:00PM","None","404-876-6484","404-876-5624","Stephan Sessions"]
[6,1,601,"Atlanta","Atlanta","601-Atlanta","Garda","20_13_30082","5400 UNITED DRIVE SMYRNA GA 30082 USA ","5400 United Drive","Smyrna","GA",30082,"YES","YES","ATLT",100,"75 length 13.6 height Min size","Pallet Jack","Drive dock-load and unload","M-F 9:00AM - 1:00PM","Advance notice from FRB","678-556-0900","678-556-0362","Dorian Robinson "]
[6,1,601,"Atlanta","Atlanta","601-Atlanta","Dunbar Armored","20_13_30092","6670 CORNERS INDUSTRIAL COURT NORCROSS GA 30092 USA ","6670 Corners Industrial Ct.","Norcross","GA",30092,"YES","YES","ATLD",150,"75 length 13.6 height Min size","Pallet Jack","Driver loads/unloads to tailgate","M-F 10:00AM - 1:00PM","None","770-409-1815","770-409-1769","Leon Mitchell"]
[6,1,601,"Atlanta","Atlanta","601-Atlanta","Federal Reserve Bank","20_13_30309","1000 PEACHTREE STREET, NE ATLANTA GA 30309 USA ","1000 Peachtree St. NE","Atlanta","GA",30309,"YES","YES","ATLA",960,"75 length 13.6 height Min size","Fork Lift,  Pallet Jack, Shrink wrap","Drive dock-load and unload to/from transfer room","M-F 7:00AM - 2:00PM","must show certification for fork lift and driver to off load","404-498-8155","404-498-8123","Todd Henrich"]
[6,1,601,"Atlanta","Atlanta","601-Atlanta","Brinks, Inc.","20_13_30318A","1466 CHATTAHOOCHEE AVE. ATLANTA GA 30318 USA ","1466 Chattahoochee Ave.","Atlanta","GA",30318,"YES","YES","ATLB",150,"75 length 13.6 height Min size","Pallet Jack","Driver loads/unloads to tailgate","M-F 7:00AM - 2:00PM","None","404-351-8788","404-351-1632","Lydell Anderson"]
[6,3,603,"Atlanta","Jacksonville","603-Jacksonville","Loomis","20_13_31419","785 KING GEORGE BLVD. SAVANNAH GA 31419 USA ","785 King George Blvd.","Savannah","GA",31419,"YES","YES","SAVE",60,"No dock","Fork Lift,  Pallet Jack","Driver loads/unloads to tailgate","None","None","912-961-6222","912-361-6256","Ron White, Branch Manager"]
[6,3,603,"Atlanta","Jacksonville","603-Jacksonville","Federal Reserve Bank","20_13_32231","800 WATER STREET JACKSONVILLE FL 32204 USA ","800 Water Street","Jacksonville","FL",32204,"YES","YES","JACK",810,"No Restrictions","Fork Lift,  Pallet Jack","Drive dock-load and unload to/from transfer room","M-F 8:00AM - 3:00PM","None","904-360-1276","904-632-3584","Kim McConico, Supervisor"]
[6,5,605,"Atlanta","New Orleans","605-New Orleans","Loomis","20_13_32503","8800 ELY ROAD PENSACOLA FL 32514 USA ","8800 Ely Road","Pensacola","FL",32514,"YES","YES","PNSL",70,"No Restrictions","Fork Lift,  Pallet Jack","Driver loads/unloads to tailgate","M-F 9:00AM - 1:00PM","None","850-969-0233","850-969-0244","Shermaine Adkins"]
[6,3,603,"Atlanta","Jacksonville","603-Jacksonville","Loomis","20_13_32806A","40 WEST CRYSTAL LAKE STREET ORLANDO FL 32806 USA ","40 West Crystal Lake Street","Orlando","FL",32806,"YES","YES","JAWO",30,"Height 15' - length 70'","Fork Lift,  Pallet Jack","Drive dock-load and unload to/from transfer room","M-F 9:00-2:00 / 2:00-4:00","Lift gate required","407-422-5010","407-839-1673","Hector Munoz, Coin Manager"]
[6,3,603,"Atlanta","Jacksonville","603-Jacksonville","Loomis","20_13_33619","2030 MASSARO BLVD TAMPA FL 33619","2030 Massaro Blvd","Tampa","FL",33619,"YES","YES","JAWT",97,"No restrictions coin unloaded outside","Fork Lift,  Pallet Jack","Driver loads/unloads to tailgate","M-F 9:00AM - 3:30PM","None","813-223-6822","813-228-9413","Judy Eztevez, CMS Manager"]
[6,3,603,"Atlanta","Jacksonville","603-Jacksonville","Brinks, Inc.","20_13_32821","9900 SATTELITE BLVD. ORLANDO FL 32837 USA ","9900 Satellite Blvd","Orlando","FL",32837,"YES","YES","JABO",200,"No Restrictions","Fork Lift,  Pallet Jack","Driver loads/unloads to tailgate","M-F 9:00AM - 2:00PM","None","407-541-2949","407-547-2989","Larry Osborne, Coin Manager"]
[6,3,603,"Atlanta","Jacksonville","603-Jacksonville","Garda","20_13_32837","9820 SATELLITE BVLD #A ORLANDO FL 32837 USA ","9820 Satellite Boulevard #A","Orlando","FL",32837,"YES","YES","ORLG",75,"No Restrictions","Fork Lift,  Pallet Jack","Driver loads/unloads to tailgate","M-F 8:00AM - 2:00PM","None","407-947-5438","407-857-7757","Keith Apodaca, Branch Manager"]
[6,6,606,"Atlanta","Miami","606-Miami","Dunbar Armored","20_13_33166","7717 NW 62ND STREET MIAMI FL 33166 USA ","7717 NW 62 ST","Miami","FL",33166,"YES","YES","MIAD",100,"13'2 X 65'","Pallet Jack","Drive dock-load and unload to/from transfer room","M-F 10:00AM - 3:00PM","None","(305) 470-6553","(305) 463-0507","Tonya Martin"]
[6,6,606,"Atlanta","Miami","606-Miami","Loomis","20_13_33172","1089 NW 20TH STREET MIAMI FL 33127 USA ","1089 NW 20 ST","Miami","FL",33127,"YES","YES","MIAW",86,"13'2 X 65'","Pallet Jack","Drive dock-load and unload to/from transfer room","M-F 8:00AM - 2:00PM","None","(786) 437-6105","(305) 324-0397","Magdiel Mckercher"]
[6,6,606,"Atlanta","Miami","606-Miami","Brinks, Inc.","20_13_33178A","5575 N.W. 87TH AVENUE MIAMI FL 33178 USA ","5575 NW 87th Ave","Miami","FL",33178,"YES","YES","MIAB",140,"13'2 X 65'","Pallet Jack","Drive dock-load and unload to/from transfer room","M-F 8:00AM - 2:00PM","None+T60:V60S60A60:V60","(305) 459-5733","(305) 499-9264","Daniel Graveran"]
[6,6,606,"Atlanta","Miami","606-Miami","Federal Reserve Bank","20_13_33178B","9100 N.W. 36TH STREET MIAMI FL 33178 USA ","9100 NW 36th Street","Miami","FL",33178,"YES","YES","MIAM",375,"13'2 X 65'","Pallet Jack","Drive dock-load and unload to/from transfer room","M-F 8:00AM - 2:00PM","None","(305) 471-6269","(305) 471-6299","Al Alrmas/Chondra Garcia"]
[6,3,603,"Atlanta","Jacksonville","603-Jacksonville","Brinks, Inc.","20_13_33607","5115 W NASSAU STREET TAMPA FL 33607 USA ","5115 W. Nassau Street","Tampa","FL",33607,"YES","YES","JABT",200,"No Restrictions","Fork Lift,  Pallet Jack, Shrink wrap","Drive dock-load and unload","M-F 9:00AM - 1:00PM","None","813-282-1515","813-282-8995","Marc Sequeira, Coin Manager"]
[6,1,601,"Atlanta","Atlanta","601-Atlanta","Brinks, Inc.","20_13_35210","4749 ALTON COURT IRONDALE AL 35210 USA ","4749 Alton Court","Irondale","AL",35210,"YES","YES","BIRB",150,"No Restrictions","Fork Lift,  Pallet Jack","Brinks Unloads","M-F 8:00AM - 2:00PM","None","205-951-0321","205-951-0947","Tiffany Piper"]
[6,1,601,"Atlanta","Atlanta","601-Atlanta","Loomis","20_13_35222A","517 35th Street North BIRMINGHAM AL 35222 USA ","517 35th Street North","Birmingham","AL",35222,"YES","YES","BIRW",200,"No Restrictions","Fork Lift","Driver loads and unloads from the dock","M-F 9:00AM - 2:00PM","None","205-917-5200","205-989-4440","Authur Ruffin or Mark Higginbotham"]
[6,5,605,"Atlanta","New Orleans","605-New Orleans","Brinks, Inc.","20_13_36619","4684 SHIPYARD ROAD MOBILE AL 36619 USA ","4684 Shipyard Rd","Mobile","AL",36619,"YES","YES","MOBB",80,"No Restrictions","Fork Lift,  Pallet Jack","Driver loads/unloads to tailgate","M-F 8:00AM - 3:00PM","None","251-660-7569","251-666-4884","Sam Ledbetter"]
[6,4,604,"Atlanta","Atlanta","Loomis","Loomis","20_13_37207","3020 BRICK CHURCH PIKE, NASHVILLE TN 37204 USA","3020 Brick Church Pike","Nashville","TN",37207,"YES","YES","NASW",155,"No Restrictions","All Equipment Provided","Onsite employees load/unload","M-F 8:30AM - Noon","Unloads in secured fenced area","615-916-4463","615-650-2428","Frank Briar"]
[6,4,604,"Atlanta","Atlanta","Brinks, Inc.","Brinks, Inc.","20_13_37210","299 HERMITAGE AVENUE NASHVILLE TN 37210 USA ","299 Hermitage Ave","Nashville","TN",37210,"YES","YES","NASB",150,"No Restrictions","All Equipment Provided","Brinks Unloads","M-F 8:00AM - 2:00PM","Unloads at dock in terminal","615-248-4007","615-726-3319","Kasey Waddy"]
[6,1,601,"Atlanta","Atlanta",{"$f":"C67&\"-\"&E67","v":"601-Atlanta"},"Loomis","20_13_37406B","2305 B DODSON AVENUE CHATTANOOGA TN 37406 USA ","2305 B. Dodson Ave","Chattanooga","TN",37406,"YES","YES","CHTA",60,"75 length 13.6 height Min size","Pallet Jack","Driver loads/unloads to tailgate","M-F 9:00AM - 1:00PM","None","423-622-6043","423-648-0473","Brian Suttles"]
[6,4,604,"Atlanta","Atlanta","Brinks, Inc.","Brinks, Inc.","20_13_37915","1701 LEWISVILLE DRIVE SUITE 102 KNOXVILLE TN 37915 USA ","1701 Louisville Drive Suite 102","Knoxville","TN",37915,"YES","YES","TYSB",160,"No Restrictions","Fork Lift,  Pallet Jack","Driver loads/unloads to tailgate","M-F 10:00AM - 2:00PM","None","865-909-0091","865-909-0037","Dustin Marlow"]
[6,4,604,"Atlanta","Atlanta","Loomis","Loomis","20_13_37917","120 METROPLEX COURT KNOXVILLE TN 37917 USA ","120 Metroplex Court","Knoxville","TN",37917,"YES","YES","TYSL",100,"No Restrictions","All Equipment Provided","Onsite employees load/unload","M-F 8:00AM - 2:00PM","Unloads in secured fenced area at dock","865-291-6751","615-297-9337","Troy Tucker"]
[8,4,804,"St. Louis","Memphis",{"$f":"C70&\"-\"&E70","v":"804-Memphis"},"Federal Reserve Bank","20_13_38101","200 NORTH MAIN STREET MEMPHIS TN 38101 USA ","200 North Main Street","Memphis","TN",38101,"YES","YES","MEMP",0,"No Restrictions","Fork Lift,  Pallet Jack","Drive dock-load and unload to/from transfer room","M-F 7:00-11:30 / 12:30-2:00","None","1-901-579-2426","1-901-570-2497","Eugene O'Dell"]
[8,4,804,"St. Louis","Memphis","804-Memphis","Loomis","20_13_38111","2600 SOUTHERN AVE MEMPHIS TN 38111 USA ","2600 Southern Ave","Memphis","TN",38111,"YES","YES","MEML",650,"No Restrictions","Fork Lift,  Pallet Jack","Driver loads/unloads to tailgate.","M-F 8:00AM - 12:00PM","None","1-901-248-1374","1-901-527-6674","Travis Mikesh"]
[8,4,804,"St. Louis","Memphis","804-Memphis","Loomis","20_13_39204","1625 HANDY AVENUE JACKSON MS 39204 USA ","1625 Handy Ave.","Jackson","MS",39204,"YES","YES","JANL",120,"No Restrictions","Fork Lift,  Pallet Jack","Driver loads/unloads to tailgate.","M-F 9;00am -2:00PM ","None","1-601-353-5405","1-601-353-0804","Paul Dearing"]
[4,2,402,"Cleveland","Cincinnati","402-Cincinnati","Garda","20_13_40203","1050 SOUTH 9TH STREET LOUISVILLE KY 40203 USA ","1050 South 9th St","Louisville","KY",40203,"YES","YES","LOUA",200,"14' door heighth","Fork Lift,  Pallet Jack, Shrink wrap","Driver loads/unloads to tailgate.","M-F 9:00AM - 2:30PM","None","502-584-2187","502-561-7077","Lu Lopez"]
[4,2,402,"Cleveland","Cincinnati","402-Cincinnati","Loomis","20_13_40299","1722 BLUEGRASS CT LOUISVILLE KY 40299 USA ","1722 Bluegrass Ct","Louisville","KY",40299,"YES","YES","LOUL",75,"No Restrictions","Fork Lift,  Pallet Jack","Drive dock-load and unload to/from transfer room","M-F 7:30AM - 2:00PM","None","502-614-4988","502-267-5535","Amanda Miles"]
[4,1,401,"Cleveland","Cleveland","401-Cleveland","Federal Reserve Bank","20_13_44101","1455 EAST 6TH STREET CLEVELAND OH 44114 USA ","1455 E. 6th Street","Cleveland","OH",44114,"YES","YES","CLEV",1500,"Trailer should not exceed 13' high max /48' long max","Pallet Jack","Drive dock-load and unload to/from transfer room","M-F 7:00AM - 2:30PM","None","216-579-2965","216-579-2372","Matt or Kathy"]
[4,1,401,"Cleveland","Cleveland","401-Cleveland","Dunbar Armored","20_13_44125","5505 CLOVERLEAF PARKWAY VALLEY VIEW OH 44125 USA ","5505 Cloverleaf Parkway","Valley View","OH",44125,"YES","YES","CLDV",21,"No Restrictions","Pallet Jack","Driver loads and unloads from the dock","M-F 9:00AM - 3:00PM","None","216-642-5700","216-642-9324","Janet Bankowski"]
[4,1,401,"Cleveland","Cleveland","401-Cleveland","Garda","20_13_44278","113 SOUTH THOMAS ROAD TALLMADGE OH 44278 USA ","113 S. Thomas Road","Tallmadge","OH",44278,"YES","YES","CLEA",100,"No Restrictions","Fork Lift,  Pallet Jack, Shrink wrap","Drive dock-load and unload","M-F 9:00AM - 2:00PM","None","330-634-9708","330-634-9606","Linda Riley/Gary Bledsoe"]
[4,2,402,"Cleveland","Cincinnati","402-Cincinnati","Federal Reserve Bank","20_13_45201","150 EAST 4TH STREET CINCINNATI OH 45201 USA ","150 East Fourth St.","Cincinnati","OH",45201,"YES","YES","CINN",520," Trailer should not exceed 20' height; 45' length","Fork Lift,  Pallet Jack","Drive dock-load and unload to/from transfer room","M-F 7:00AM - 2:00PM","None","513-455-4331","513-455-4589","Annette Borders/Joe Guido"]
[4,2,402,"Cleveland","Cincinnati","402-Cincinnati","Brinks, Inc.","20_13_45203","1045 HOPKINS STREET CINCINNATI OH 45203 USA ","1045 Hopkins St","Cincinnati","OH",45203,"YES","YES","CINB",200,"No Restrictions","Fork Lift, Pallet Jack","Drive dock-load and unload to/from transfer room","M-F 7:00AM - 2:00PM","None","513-621-5549","513-621-2429","Nick Houser"]
[4,2,402,"Cleveland","Cincinnati","402-Cincinnati","Dunbar Armored","20_13_45203A","1249 WEST 7TH ST. CINCINNATI OH 45203 USA ","1249 West 7th St.","Cincinnati","OH",45203,"YES","YES","CIND",75,"Dunbar does not accept Mint shipments.","Fork Lift,  Pallet Jack","Driver loads/unloads to tailgate","M-F 8:00AM - 3:00PM","Dunbar has a ramp - not a dock. No Mint Shpts.","513-381-8000","513-381-0511","Joe Steimle"]
[4,2,402,"Cleveland","Cincinnati","402-Cincinnati","Garda","20_13_45203B","1017 HOPKINS STREET CINCINNATI OH 45203 USA ","1017 Hopkins Street","Cincinnati","OH",45203,"YES","YES","CINA",100,"No Restrictions","Fork Lift,  Pallet Jack","Drive dock-load and unload to/from transfer room","M-F 7:30AM - 2:00PM","None","513-621-0245","513-621-0245","Cindy Williams"]
[7,1,701,"Chicago","Chicago","701-Chicago","Garda","20_13_46202","68 N. GALE STREET INDIANAPOLIS IN 46202 USA ","68 N. Gale Street","Indianapolis","IN",46202,"YES","YES","INDU",100,"No Restrictions","All Equipment Provided","Driver loads/unloads to tailgate.","M-F 8:00AM - 2:00PM","Special arrangements can be made to hold dock open later.","317-352-1030x413110","317-352-1125","Martin Meagher or Joe Wood"]
[4,2,402,"Cleveland","Cincinnati","402-Cincinnati","Loomis","20_13_46202A","122 NORTH COLLEGE AVENUE INDIANAPOLIS IN 46202 USA ","122 N. College Ave","Indianapolis","IN",46202,"YES","YES","CINL",85,"dock 12'","Fork Lift,  Pallet Jack","Drive dock-load tailgate-unload","M-F 8:30AM - 2:00PM","Special arrangements can be made to hold dock open later.","317-632-3421","317-637-5802","Danny Cross or Paul Dominguez"]
[7,1,701,"Chicago","Chicago","701-Chicago","Brinks, Inc.","20_13_46202C","402 NORTH DORMAN STREET INDIANAPOLIS IN 46202 USA ","402 N. Dorman Street","Indianapolis","IN",46202,"YES","YES","INDB",175,"48 foot length","Electric Pallet Jack","Drive dock-loads/unloads to tailgate","M-F 7:00AM - 5:00PM","Narrow street; special arrangements can be made to hold dock open later.","371-624-9434 x5221","317-624-9613","Scott Zuelke or Anna Mitchell"]
[7,2,702,"Chicago","Detroit","702-Detroit","Garda","20_13_48151","12435 MERRIMAN ROAD LIVONIA MI 48150 USA ","12435 Merriman Road","Livonia","MI",48150,"YES","YES","DETX",175,"No Restrictions","Pallet Jack, Shrink wrap","Driver loads/unloads to tailgate","M-F 9:00 - 3:00 PM","Delivery best before 1:00","734.425.2130 x557114","734.425.2203","Ben Behling"]
[7,2,702,"Chicago","Detroit","702-Detroit","Brinks, Inc.","20_13_48201","1351 SPRUCE DETROIT MI 48201 USA ","1351 Spruce","Detroit","MI",48201,"YES","YES","DETB",160,"No Restrictions"," Pallet Jack, Shrink wrap","Driver loads/unloads to tailgate","M-F 9:00AM - 2:00PM","Delivery best before 1:00","313.496.3551","313.981.2623","Brian Dardzinski"]
[7,2,702,"Chicago","Detroit","702-Detroit","Loomis","20_13_48203","15045 HAMILTON HIGHLAND PARK MI 48203 USA ","15045 Hamilton","Highland Park","MI",48203,"YES","YES","DETL",207,"No Restrictions","Fork Lift,  Pallet Jack, Shrink wrap","Driver loads/unloads to tailgate.","M-F 9:00AM - 2:00PM","Delivery best before 1:00","313-826-3458","810-732-1444","Mike Hodnicki"]
[7,2,702,"Chicago","Detroit","702-Detroit","Federal Reserve Bank","20_13_48207","1600 E WARREN DETROIT MI 48207 USA","1600 E. Warren","Detroit","MI",48207,"YES","YES","DETR",1513,"No Restrictions","Fork Lift,  Pallet Jack, Shrink wrap","Driver loads and unloads from the dock","M-F 8:00AM - 2:00PM","Delivery best before 12:00","313-964-6118","313-964-6046","Amy Collins"]
[7,2,702,"Chicago","Detroit","702-Detroit","Loomis","20_13_48661","600 SOUTH VALLEY ROAD WEST BRANCH MI 48661 USA ","600 S. Valley Rd","West Branch","MI",48661,"YES","YES","DETF",203,"No Restrictions","Fork Lift,  Pallet Jack, Shrink wrap","Driver loads/unloads to tailgate.","M-F 8:00AM - 4:00PM","Delivery best before 1:00","989-345-5820","989-345-3782","Jean Beckwith or Matt Kohlhoff"]
[7,2,702,"Chicago","Detroit","702-Detroit","Loomis","20_13_49321","871 WEST RIVER CENTER ROAD COMSTOCK PARK MI 49321 USA ","871 West River Center Road","Comstock Park","MI",49321,"YES","YES","DTCM",125,"No Restrictions"," Pallet Jack, Shrink wrap","Driver loads/unloads to tailgate","M-F 9:00AM - 2:00PM","Delivery best before 1:01","616-785-8771","616-785-8818","Chris Armstrong"]
[7,2,702,"Chicago","Detroit","702-Detroit","Brinks, Inc.","20_13_49544","3380 THREE MILE ROAD GRAND RAPIDS MI 49544 USA ","3380 Three Mile Road","Grand Rapids","MI",49544,"YES","YES","GRRB",110,"No Restrictions","Fork Lift,  Pallet Jack, Shrink wrap","Driver loads/unloads to tailgate.","M-F 8:00AM - 4:00PM","Delivery best before 1:00","616-735-3942 x-224","616-735-3664","Jessica McClure"]
[10,1,1001,"Kansas City","Kansas City","1001-Kansas City","Rochester Armored Car Co.","20_13_50321","2500 BALL AVENUE DES MOINES IA 50321 USA ","2500 Bell Avenue","Des Moines","IA",50321,"YES","YES","DSML",230,"No Restrictions","Fork Lift,  Pallet Jack, Shrink wrap","Drive dock-load and unload","M-F 5:00AM - 7:00PM","None","515-243-7179","515-282-2017","John Nickell"]
[10,1,1001,"Kansas City","Kansas City","1001-Kansas City","Rochester Armored Car Co.","20_13_52244","92 COMMERCIAL DRIVE IOWA CITY IA 52244 USA ","92 Commercial Drive","Iowa City","IA",52244,"YES","YES","IOCL",80,"No Restrictions","Fork Lift,  Pallet Jack, Shrink wrap","Drive dock-load and unload","M-F 7:00AM - 2:00PM","Non-adjustable dock plate","319-351-5466","319-351-5832","Paul Slaymaker"]
[7,1,701,"Chicago","Chicago","701-Chicago","Brinks, Inc.","20_13_52802","1704 WEST 2ND STREET DAVENPORT IA 52802 USA ","1704 West 2nd Street","Davenport","IA",52802,"YES","YES","MLIB",90,"No Restrictions","Fork Lift,  Pallet Jack","Driver loads/unloads to tailgate.","M-F 9:00AM - 4:00PM","Special arrangements can be made to hold dock open later.","563-322-1688","563-322-3246","Ralph Lake II or Mike Ortiz"]
[7,1,701,"Chicago","Chicago","701-Chicago","Garda","20_13_52804","17040 215TH STREET DAVENPORT IA 52804 USA ","17040 215th Street","Davenport","IA",52804,"YES","YES","MLIU",80,"No Restrictions","Fork Lift, Shrink wrap","Drive dock-load and unload","M-F 10:00AM - 2:00PM","Special arrangements can be made to hold dock open later.","563-386-2540","563-386-6289","John Luedtke or Michelle Kaster"]
[7,1,701,"Chicago","Chicago","701-Chicago","Loomis","20_13_53218B","5920 BENDER COURT MILWAUKEE WI 53218 USA ","5920 Bender Court","Milwaukee","WI",53218,"YES","YES","CHLM",450,"No Restrictions","Fork Lift,  Pallet Jack","Drive dock-load and unload","M-F 8:00AM - 2:00PM","Circulated coin must be shrink wrapped","414.462.9162","414.481.2230","Nathan Kirchhoff or Josh Bernier"]
[7,1,701,"Chicago","Chicago","701-Chicago","Garda","20_13_54115","STE103B 2001 LAWRENCE DRIVE DE PERE WI 54115 USA ","2001 Lawrence Dr., Suite 103B","Depere","WI",54115,"YES","YES","GRBA",60,"No Restrictions","Fork Lift","Driver loads/unloads to tailgate.","M-F 8:00AM - 5:00PM","None","920-983-8083","920.983.8103","Phil Tritabaugh"]
[7,1,701,"Chicago","Chicago","701-Chicago","Loomis","20_13_54303","1232 ELIZABETH STREET GREEN BAY WI 54302 USA ","1232 Elizabeth Street","Green Bay","WI",54302,"YES","YES","GRBB",156,"No Restrictions","Fork Lift","Drive dock-load and unload","M-F 8:00AM - 4:00PM","No dock to back up to; fork lift must unload truck","920-435-5910","920-435-5912","Ryan Nelson or Chris Kantelberg"]
[9,1,901,"Minneapolis","Minneapolis","901-Minneapolis","Loomis","20_13_55106","999 EAST 7TH STREET SAINT PAUL MN 55106 USA ","999 East 7th Street","St. Paul","MN",55106,"YES","YES","MINL",352,"Width- 12' 1\", Height- 14' 3\"","Forklifts, Pallet Jacks, Shrink Wrap","Tailgate","M-F 5:00AM - 3:00PM","N.A.","651-645-4511","651-774-1989","Johnathan Brandon"]
[9,1,901,"Minneapolis","Minneapolis","901-Minneapolis","Garda","20_13_55114","527 ALDINE AVE SAINT PAUL MN 55104 USA ","527 Aldine Avenue","St. Paul","MN",55104,"YES","YES","MINA",212,"No Restrictions","Fork Lift,  Pallet Jack","Drive dock-load and unload","M-F 7:00AM - 3:00PM","Single stacked pallets","651-523-6776","651-644-5266","Scott Ward"]
[9,1,901,"Minneapolis","Minneapolis","901-Minneapolis","Federal Reserve Bank","20_13_55401","90 HENNEPIN AVENUE MINNEAPOLIS MN 55480 USA ","90 Hennepin Ave","Minneapolis","MN",55480,"YES","YES","MINN",917,"14' X 70'","Pallet Jack","Drive dock-load and unload to/from transfer room","M-F 7:30AM - 3:30PM","None","612-204-5244","888-297-6031","Todd Keckhafer"]
[9,1,901,"Minneapolis","Minneapolis",{"$f":"C102&\"-\"&E102","v":"901-Minneapolis"},"Brinks, Inc.","20_13_55427","830 BOONE AVENUE NORTH GOLDEN VALLEY MN 55427 USA ","830 Boone Ave North","Golden Valley","MN",55427,"YES","YES","MPLB",300,"No Restrictions","Fork Lift,  Pallet Jack, Shrink wrap","Drive dock-load and unload","M-F 9:00AM - 4:30PM","None","763-486-1730","763-486-1736","Truman Tabor"]
[9,1,901,"Minneapolis","Minneapolis","901-Minneapolis","Rochester Armored Car Co.","20_13_57101","826 N. WEBER AVE SIOUX FALLS SD 57101 USA ","826 N. Weber Ave","Sioux Falls","SD",57101,"YES","YES","FSDR",132,"No Restrictions","Fork Lift,  Pallet Jack","Driver loads/unloads to tailgate","M-F 8:00AM - 4:00PM","None","605-335-3220","605-335-2779","Neil Benally"]
[9,1,901,"Minneapolis","Minneapolis","901-Minneapolis","Rochester Armored Car Co.","20_13_57702","2340 DEADWOOD AVE SUITE P RAPID CITY SD 57702 USA ","2340 Deadwood Ave Suite P","Rapid City","SD",57702,"YES","YES","RAPR",45,"No dock","Fork Lift,  Pallet Jack","Driver loads/unloads to tailgate.","M-F 6:00AM - 3:00PM","None","605-342-6256","605-394-3665","Paul Cameron"]
[9,1,901,"Minneapolis","Minneapolis","901-Minneapolis","Rochester Armored Car Co.","20_13_58102","1414 39TH ST. N FARGO ND 58102 USA ","1414 39th St. N","Fargo","ND",58102,"YES","YES","FNDR",40,"No Restrictions","Fork Lift,  Pallet Jack","Driver loads/unloads to tailgate","M-F 6:00AM - 4:00PM","None","701-237-0045","701-281-1032","Tracy Lundon","STOP"]
[7,1,701,"Chicago","Chicago","701-Chicago","Garda","20_13_60153A","2500 S. 25TH AVE BROADVIEW IL 60153 USA ","2500 S. 25th Ave","Broadview","IL",60153,"YES","YES","CHIA",500,"dock is 13' 8\"","All Equipment Provided","Drive dock-load and unload","M-F 9:00AM - 2:00PM",null,"224 474-5169","708.345.2737","Lawrence Fitzpatrick"]
[7,1,701,"Chicago","Chicago","701-Chicago","Loomis","20_13_60527","8100 SOUTH MADISON BURR RIDGE IL 60527 USA ","8100 South Madison","Burr Ridge","IL",60527,"YES","YES","CHIL",100,"No Restrictions","Fork Lift,  Pallet Jack, Shrink wrap","Driver loads/unloads to tailgate.","M-F 9:00AM - 1:00PM","None","630.560.3858",null,"Chris Sulzner"]
[7,1,701,"Chicago","Chicago","701-Chicago","Brinks, Inc.","20_13_60612","919 SOUTH CALIFORNIA AVE CHICAGO IL 60612 USA ","919 S. California Ave","Chicago","IL",60612,"YES","YES","CHIB",300,"No Restrictions","All Equipment Provided","Driver loads/unloads to tailgate.","M-F 8:00AM - 5:00PM","Special arrangements can be made to hold dock open later.","773-475-2710","773-475-2713","Clendora Glover/Sebastian Merchut"]
[7,1,701,"Chicago","Chicago","701-Chicago","Davis Bancorp","20_13_60623","2100 SOUTH SAWYER STREET CHICAGO IL 60623 USA ","2100 South Sawyer Street","Chicago","IL",60623,"YES","YES","CHIV",638,"53'trailers","All Equipment Provided","Drive dock-load and unload","M-F 7:00AM - 4:00PM","Special arrangements can be made to hold dock open later.","847-998-9000 x4465","773-762-3855","Andrea Lopez"]
[7,1,701,"Chicago","Chicago","701-Chicago","Federal Reserve Bank","20_13_60632","230 SOUTH LASALLE STREET CHICAGO IL 60604 USA ","230 S. Lasalle Street","Chicago","IL",60604,"YES","YES","CHIC",0,"Coin shipments are not delivered to the Bank","Pallet Jack","Driver loads and unloads from the dock","N/A","None","313-964-6048","313-964-6046","Kevin Gearin"]
[null,1,701,"Chicago","Chicago","701-Chicago","Dunbar Armored","20_13_60651","4500 WEST CHICAGO AVENUE CHICAGO IL 60651 USA ","4500 W. Chicago Ave","Chicago","IL",60651,"YES","YES","CHID",195,"No Restrictions","Pallet Jack","Driver loads/unloads to tailgate.","M-F 8:00AM - 1:30PM","None","773-276-2528","773-276-4771","Aida Perez or Hector Hernandez"]
[7,1,701,"Chicago","Chicago","701-Chicago","Brinks, Inc.","20_13_61604","6200 WEST PLANK ROAD BELLEVUE IL 61604 USA ","6200 West Plank Road","Bellevue","IL",61604,"YES","YES","PIAB",60,"No Restrictions","All Equipment Provided","Driver loads/unloads to tailgate.","M-F 9:00AM - 2:00PM","Special arrangements can be made to hold dock open later.","309-697-5050 x2239","309-697-9589","Mike Odell"]
[7,1,701,"Chicago","Chicago","701-Chicago","Brinks, Inc.","20_13_62707","2930 GRANGER DRIVE SPRINGFIELD IL 62707 USA ","2930 Granger Drive","Springfield","IN",62707,"YES","YES","SPIB",80,"No Restrictions","Fork Lift,  Pallet Jack","Drive dock-load and unload","M-F 9:00AM - 3:00PM","Special arrangements can be made to hold dock open later.","217.522.0932","217-522-0932","Chris Kirk/Lisa Leaser"]
[8,1,801,"St. Louis","St. Louis","801-St. Louis","Loomis","20_13_63045","1 Moxie Place, Eath City MO 63045 USA ","1 Moxie Place","Earth City","MO",63045,"YES","YES","STLL",115,"No restricitons","Fork lift, pallet jack (to move pallets to tailgate) and shrink wrap","Driver loads/unloads to tailgate.","M-F 8:30AM - 1:30PM","Trucks back into the carriers bay, there is no dock.  Employees operate fork lift and remove coin pallets from tailgate.","314-835-9070","314-835-9070","Mat Hubson"]
[8,1,801,"St. Louis","St. Louis","801-St. Louis","Federal Reserve Bank","20_13_63102A","1 FEDERAL RESERVE BANK PLAZA SAINT LOUIS MO 63102 USA ","1 Federal Reserve Bank Plaza ","St. Louis","MO",63102,"YES","YES","STLO",0,"No restrictions","Pallet Jack","Carriers load/unload at carrier dock and travel down a freight elevator to the lower level transfer room.  ","M-F 7:45AM - 2:00PM","All over the road shipments are delivered to terminals and later transferred to the Fed in smaller increments via armored carrier.","314-444-8876","314-444-8457","Angie Harter"]
[8,1,801,"St. Louis","St. Louis","801-St. Louis","Garda","20_13_63102B","1022 SOUTH 9TH STREET SAINT LOUIS MO 63102 USA ","1022 South 9th Street","St. Louis","MO",63102,"YES","YES","STLS",240,"No Restrictions","Fork Lift,  Pallet Jack, Shrink wrap","Driver loads/unloads to tailgate.","M-F 8:30AM - 1:30PM","Trucks back into the carriers bay, there is no dock.  Employees operate fork lift and remove coin pallets from tailgate.","314-231-4030","314-436-3306","Jamie Stevens"]
[8,1,801,"St. Louis","St. Louis","801-St. Louis","Brinks, Inc.","20_13_63106","909 NORTH 18TH STREET SAINT LOUIS MO 63106 USA ","909 N. 18th Street","St. Louis","MO",63106,"YES","YES","STLB",150,"No Restrictions","Fork Lift,  Pallet Jack, Shrink wrap","Driver loads and unloads from the dock","M-F 8:30AM - 1:30PM","Trucks back up to dock in carrier bay.  If available, employees will remove the pallets from truck, otherwise driver will.","314-421-4448","314-421-5620","Denis Echele"]
[10,1,1001,"Kansas City","Kansas City","1001-Kansas City","Loomis","20_13_64150","300 NW PARKWAY RIVERSIDE MO 64150 USA ","300 NW Parkway","Riverside","MO",64150,"YES","YES","KANL",120,"No Restrictions","Fork Lift,  Pallet Jack, Shrink wrap","Driver loads and unloads from the dock","M-F 9:00AM - 1:00PM","None","816-505-7412","816-587-7441","Doug Cooper"]
[10,1,1001,"Kansas City","Kansas City","1001-Kansas City","Federal Reserve Bank","20_13_64198","1 MEMORIAL DRIVE KANSAS CITY MO 64198 USA ","1 Memorial Drive ","Kansas City","MO",64198,"YES","YES","KANS",1400,"Standard semi-capable","Fork lift, pallet jack, and shrink wrap.","Driver loads/unloads at tailgate","8:00am-2:00pm","n/a","816-881-2249","816-881-2151","Sandy O'Neal"]
[10,1,1001,"Kansas City","Kansas City","1001-Kansas City","Garda","20_13_66619","6534 SE JABARA STREET TOPEKA KS 66619 USA ","6534 SE Jabara Street","Topeka","KS",66619,"YES","YES","TOPP",150,"Standard semi-capability","All Equipment Provided","Drive dock-load and unload","M-F 10:00AM - 2:00PM","Dock plate must be manually inserted","785-267-9203","785-862-0089","Tony Traylor"]
[10,1,1001,"Kansas City","Kansas City","1001-Kansas City","Rochester Armored Car Co.","20_13_68101","3937 LEAVENWORTH STREET OMAHA NE 68105 USA ","3937 Leavenworth Street","Omaha","NE",68105,"YES","YES","OMAR",150,"No Restrictions","Fork Lift,  Pallet Jack, Shrink wrap","Drive dock-load and unload","M-F 5:00AM - 2:00PM","None","402-558-9901","402-898-3048","Mark Phillips"]
[6,5,605,"Atlanta","New Orleans","605-New Orleans","Loomis","20_13_70119","2600 POYDRAS STREET NEW ORLEANS LA 70119 USA ","2600 Poydras Street","New Orleans","LA",70119,"YES","YES","NORX",150,"No Restrictions","Fork Lift,  Pallet Jack","Driver loads/unloads to tailgate","M-F 9:00AM - Noon","None","504-822-0701","504-821-8031","Arely Paniagua"]
[6,5,605,"Atlanta","New Orleans","605-New Orleans","Grada","20_13_70130","933 ERATO STREET NEW ORLEANS LA 70130 USA ","933 Erato Street","New Orleans","LA",70130,"YES","YES","NORV",100,"No Restrictions","Fork Lift,  Pallet Jack","Driver loads/unloads to tailgate","M-F 8:00AM - 2:00PM","None","504-581-3689","504-569-9162","Dexter Bourque"]
[6,5,605,"Atlanta","New Orleans","605-New Orleans","Federal Reserve Bank","20_13_70160","525 ST. CHARLES AVENUE NEW ORLEANS LA 70130 USA ","525 St. Charles Ave","New Orleans","LA",70130,"YES","YES","NORL",170,"No Restrictions","Fork Lift,  Pallet Jack, Shrink wrap","Drive dock-load and unload","M-F 7:30AM - 2:00PM","Carrier should arrive before 6:00 am to avoid street car traffic, loading dock is available.","504-593-3379","504-593-3218","Lionel Dupart"]
[8,4,804,"St. Louis","Memphis","804-Memphis","Loomis","20_13_71107","1124 FORUM DR SHREVEPORT LA 71107 USA ","1124 Forum Dr","Shreveport","LA",711407,"YES","YES","SHPL",120,"No Restrictions","Fork Lift,  Pallet Jack, Shrink wrap","Driver loads/unloads to tailgate.","M-F 9:00AM - 4:00AM","None","318-562-2302","318-424-8002","Barry Doyle"]
[8,4,804,"St. Louis","Memphis","804-Memphis","Garda","20_13_72202A","711 W DAISY L GASTON BATES DRIVE LITTLE ROCK AR 72202 USA ","711 W. Daisy L. Gaston Bates Dr.","Little Rock","AR",72202,"YES","YES","LITA",60,"H 10 ft 3 in, W 12 ft.","Fork Lift,  Pallet Jack","Driver loads/unloads to tailgate.","M-F 8:00AM - 10:00AM","None","1-501-374-7500","1-501-374-9272","Julian Pacheco"]
[8,4,804,"St. Louis","Memphis","804-Memphis","Loomis","20_13_72202B","1300 SOUTH CHESTER STREET LITTLE ROCK AR 72202 USA ","1300 S. Chester St.","Little Rock","AR",72202,"YES","YES","ROWF",400,"H 13 ft. W 12 ft.","Fork Lift,  Pallet Jack","Driver loads/unloads to tailgate.","M-F 6:00-8:00 / 1:00-2:00","None","1-800-372-5502","1-501-975-2654","Christopher Runshe"]
[null,null,null,null,null,null,null,"20_13_17057_CWIM","1981 FULLING MILL ROAD MIDDLETOWN PA 17057 USA ","1981 FULLING MILL ROAD"," MIDDLETOWN","PA",17057]
[null,null,null,null,null,null,null,"20_13_28208_CWCH","1836 LINDBERGH STREET, CHARLOTTE, NC, 28208, USA ","1836 LINDBERGH STREET"," CHARLOTTE"," NC",28208]
[null,null,null,null,null,null,null,"20_13_55113_CWMN","1620 TERRACE DRIVE, SAINT PAUL, MN ,55113, USA ","1620 TERRACE DRIVE"," SAINT PAUL"," MN ",55113]
[null,null,null,null,null,null,null,"20_13_44128","4956 NEO PARKWAY GARFIELD HEIGHTS OH 44128","4956 Neo Parkway ","Garfield Heights","OH",44128,"YES","YES","CLVL",50,null,"Fork Lift,  Pallet Jack","Fork Lift,  Pallet Jack to and from Coin bay area","M-F 9:00 AM - 12:30 PM","None","216-662-9736",null,"Brett Sabol"]
[4,1,401,"Cleveland","Cleveland","Cleveland","Dunbar Armored","20_13_14624A","465 PAUL ROAD CHILI NY 14624","465 Paul Road","Chili ","NY",14624,"YES","YES","CHDR",60,"No Restrictions","Fork Lift,  Pallet Jack","Driver loads/unloads to tailgate","M-F 8:00AM - 2:00PM","None","585-247-1737","585-247-8184","Paul Liedkie"]
[5,1,501,"Richmond","Richmond",{"$f":"C133&\"-\"&E133","v":"501-Richmond"},"Garda","20_13_23150","5330 Lewis Road RICHMOND VA 23150","5330 Lewis Road ","Richmond ","VA",23150,"YES","NO","RICG",40,"Maximun 48'","Fork Lift, Pallet Jack","Driver loads/unloads to tailgate","M-F 9:00AM - 2:00PM","None","804-651-0720","804-652-2071","Wayne Todd"]
[null,null,null,null,null,null,"Loomis","20_13_33172A","3301 NW 97th AVENUE DORAL FLORIDA 33172","3301 NW 97th Ave","Doral ","FL",33172,"Yes","NO","MIAV",0,"No Restrictions","Fork lift, pallet jack (to move pallets to tailgate) and shrink wrap",null,"M-F 9:00AM - 2:00PM","None",3054317317]
[5,2,502,"Richmond","Baltimore",{"$f":"C135&\"-\"&E135","v":"502-Baltimore"},"Loomis","20_13_21236A","4979 Mercantile RD Nottingham MD 21236","4979 Mercantile Road","Nottingham","MD",21236,"YES","YES","BALL",200,"No Restrictions","Fork Lift","Drive dock-load and unload","M-F 5:00AM - 3:30PM","None","443-921-8929","410-921-8900","Linette Cruz","Yes"]

{"sheet":"CWIM SHIPMENT LANES","index":2,"n_rows":117,"n_cols":25,"rows_kept":117,"cut":false,"hidden":false,"merged":[[0,0,0,6]]}
["MINOR COIN SHIPMENT LANES FROM COINWRAP MIDDLETON, PA - CWIM (TPI CUSTOMER ID: USM-20-12-PA)"]
["District Number","Office Number","FRB Office ID","District","Office",null,"Name","TPI Hub Id","TPI Hub Address","Address","City","State","Zip Code","Active","Mint Site","Mint Code","Pallet Capacity","Truck Restrictions","Equipment Provided","Driver Loads/Unloads","Dock Hours","Other restrictions","Phone#","FAX#","Contact Name"]
[3,1,301,"Philadelphia","Philadelphia",{"$f":"C3&\"-\"&E3","v":"301-Philadelphia"},"Dunbar Armored","20_13_18017","2458 BROADHEAD ROAD UNIT M,N,P BETHLEHEM PA 18017 USA ","2458 Brodhead Road Unit M, N, P","Bethlehem","PA",18017,"YES","YES","ABED",75,"No restrictions coin unloaded outside","Fork Lift,  Pallet Jack","Driver loads/unloads to tailgate.","M-F 8:00AM - 2:30PM","Advance notice from FRB","610-814-3234","610-814-3237","Nicole Gad"]
[2,1,201,"New York","New York","201-New York","Loomis","20_13_12205","21 RAILROAD AVENUE COLONIE NY 12205 USA ","21 Railroad Ave","Colonie","NY",12205,"YES","YES","ALBA",141,"14'x30'","Fork Lift,  Pallet Jack, Shrink wrap","Onsite employees load/unload","M-F 9:00AM - 3:00PM","None","518-438-9074","518-435-1636","Jeff Schembeck"]
[6,1,601,"Atlanta","Atlanta","601-Atlanta","Federal Reserve Bank","20_13_30309","1000 PEACHTREE STREET, NE ATLANTA GA 30309 USA ","1000 Peachtree St. NE","Atlanta","GA",30309,"YES","YES","ATLA",960,"75 length 13.6 height Min size","Fork Lift,  Pallet Jack, Shrink wrap","Drive dock-load and unload to/from transfer room","M-F 7:00AM - 2:00PM","must show certification for fork lift and driver to off load","404-498-8155","404-498-8123","Todd Henrich"]
[6,1,601,"Atlanta","Atlanta","601-Atlanta","Brinks, Inc.","20_13_30318A","1466 CHATTAHOOCHEE AVE. ATLANTA GA 30318 USA ","1466 Chattahoochee Ave.","Atlanta","GA",30318,"YES","YES","ATLB",150,"75 length 13.6 height Min size","Pallet Jack","Driver loads/unloads to tailgate","M-F 7:00AM - 2:00PM","None","404-351-8788","404-351-1632","Lydell Anderson"]
[6,1,601,"Atlanta","Atlanta","601-Atlanta","Dunbar Armored","20_13_30092","6670 CORNERS INDUSTRIAL COURT NORCROSS GA 30092 USA ","6670 Corners Industrial Ct.","Norcross","GA",30092,"YES","YES","ATLD",150,"75 length 13.6 height Min size","Pallet Jack","Driver loads/unloads to tailgate","M-F 10:00AM - 1:00PM","None","770-409-1815","770-409-1769","Leon Mitchell"]
[6,1,601,"Atlanta","Atlanta","601-Atlanta","Garda","20_13_30082","5400 UNITED DRIVE SMYRNA GA 30082 USA ","5400 United Drive","Smyrna","GA",30082,"YES","YES","ATLT",100,"75 length 13.6 height Min size","Pallet Jack","Drive dock-load and unload","M-F 9:00AM - 1:00PM","Advance notice from FRB","678-556-0900","678-556-0362","Dorian Robinson "]
[6,1,601,"Atlanta","Atlanta","601-Atlanta","Loomis","20_13_30054","3635 SOUTH INDUSTRIAL PARKWAY ATLANTA GA 30354 USA ","3635 Southside Industrial Parkway","Atlanta","GA",30054,"YES","YES","ATLW",190,"76 length 13.6 height Min size","Pallet Jack","Driver loads/unloads to tailgate","M-F 7:00AM - 6:00PM","None","404-876-6484","404-876-5624","Stephan Sessions"]
[5,2,502,"Richmond","Baltimore","502-Baltimore","Garda","20_13_21227","1710 TWIN SPRING ROAD BALTIMORE MD 21227 USA ","1710 Twin Spring Rd","Baltimore","MD",21227,"YES","YES","BALA",200,"No Restrictions","Fork Lift","Drive dock-load and unload","M-F 8:00AM - 2:00PM","None","410-247-0563","410-247-7501","Melissa Oglesby"]
[5,2,502,"Richmond","Baltimore","502-Baltimore","Dunbar Armored","20_13_21236","4983 MERCANTILE ROAD WHITE MARSH MD 21236 USA ","4983 Mercantile Rd","White Marsh","MD",21236,"YES","YES","BALD",239,"No Restrictions","Fork Lift","Drive dock-load and unload","M-F 6:00AM - 2:00PM","None","410-933-9500","410-933-9515","Amber Jones-Montgomery"]
[5,2,502,"Richmond","Baltimore","502-Baltimore","Federal Reserve Bank","20_13_21201","502 SOUTH SHARP STREET BALTIMORE MD 21201 USA ","502 S. Sharp St","Baltimore","MD",21201,"YES","YES","BALT",1425,"No Restrictions","Fork Lift,  Pallet Jack","Drive dock-load and unload","M-F 7:00AM - 2:00PM","See comment","410-576-3416","410-576-3411","Dave Wheeler or Melinda Robbins"]
[1,1,101,"Boston","Boston","101-Boston","Dunbar Armored","20_13_06050","444 JOHN DOWNEY DRIVE NEW BRITAIN CT 06050 USA ","444 John Downey Drive","New Britain","CT",6050,"YES","YES","BDLD",107,"30' L 20 ' H","Fork Lift,  Pallet Jack","Drive dock-load tailgate-unload","M-F 10:00AM - 2:00PM","None","860-826-4706","860-224-9775","Donna Anderson/James Ziegler"]
[6,1,601,"Atlanta","Atlanta","601-Atlanta","Brinks, Inc.","20_13_35210","4749 ALTON COURT IRONDALE AL 35210 USA ","4749 Alton Court","Irondale","AL",35210,"YES","YES","BIRB",150,"No Restrictions","Fork Lift,  Pallet Jack","Brinks Unloads","M-F 8:00AM - 2:00PM","None","205-951-0321","205-951-0947","Tiffany Piper"]
[6,1,601,"Atlanta","Atlanta","601-Atlanta","Loomis","20_13_35222A","517 35th Street North BIRMINGHAM AL 35222 USA ","517 35th Street North","Birmingham","AL",35222,"YES","YES","BIRW",200,"No Restrictions","Fork Lift","Driver loads and unloads from the dock","M-F 9:00AM - 2:00PM","None","205-917-5200","205-989-4440","Authur Ruffin or Mark Higginbotham"]
[1,1,101,"Boston","Boston","101-Boston","Brinks, Inc.","20_13_02368","67 TEED DRIVE RANDOLPH MA 02368 USA ","67 TEED DRIVE","Randolph","MA",2368,"YES","YES","BOSB",250,"Inside height restriction if 13' ","Fork Lift,  Pallet Jack","Driver loads and unloads from the dock","M-F 7:00AM - 2:00PM","None","781-986-2700 EXT. 2222","781-986-1550","Michael Gemme"]
[1,1,101,"Boston","Boston","101-Boston","Dunbar Armored","20_13_01852","2O3 INDUSTRIAL AVENUE LOWELL MA 01852 USA ","203 Industrial Avenue","Lowell","MA",1852,"YES","YES","BOSL",90,"No Restrictions","Fork Lift,  Pallet Jack","Driver loads/unloads to tailgate.","M-F 10:00AM - 2:00PM","Advance notice from FRB","978-441-6564","978-441-9076","Scott Patz"]
[1,1,101,"Boston","Boston","101-Boston","Federal Reserve Bank","20_13_02106","600 ATLANTIC AVENUE BOSTON MA 02210 USA ","600 Atlantic Ave","Boston","MA",2106,"YES","YES","BOST",1000,"13'  10 \" H 59' L 10' 5' W","Pallet Jack, Shrink wrap","Drive dock-load and unload to/from transfer room","M-F 7:00AM - 2:00PM","None","617-973-3723","617-973-3825","Franklin Ortiz/Gerard Mason"]
[4,1,401,"Cleveland","Cleveland","401-Cleveland","Brinks, Inc.","20_13_14216","79 ROSALIA STREET BUFFALO NY 14216 USA ","79 Rosalia Street","Buffalo","NY",14216,"YES","YES","BUFB",50,"Trailer should not exceed 12'x50'","Fork Lift,  Pallet Jack, Shrink wrap","Driver loads/unloads to tailgate","M-F 9:00AM - 5:00PM","None","716-873-1100","716-873-1225","Shatique Lipscomb/Frank Amone"]
[5,3,503,"Richmond","Charlotte","503-Charlotte","Dunbar Armored","20_13_28208D","1836 LINDBERGH STREET #100 CHARLOTTE NC 28208 USA ","1836 Lindbergh Street # 100","Charlotte","NC",28208,"YES","YES","CAEE",280,"15ft. 9 inches","Pallet Jack","Driver loads and unloads from the dock","M-F 7:00AM - 2:00PM","None","704-398-2929","704-398-1934","Marilyn Smith"]
[5,3,503,"Richmond","Charlotte","503-Charlotte","Garda","20_13_28216","4300-  NORTH LAKE COURT SUITE 200A CHARLOTTE NC 28216 USA ","4300 NORTH LAKE COURT SUITE 200A","Charlotte","NC",28216,"YES","YES","CHAA",255,"15ft. 9 inches","Pallet Jack","Driver loads and unloads from the dock","M-F 7:00AM - 3:00PM","None","704-509-2885","704-597-6782","Tony Waters"]
[5,3,503,"Richmond","Charlotte","503-Charlotte","Brinks, Inc.","20_13_28208A","2415 EXECUTIVE STREET CHARLOTTE NC 28208 USA ","2415 Executive Street","Charlotte","NC",28208,"YES","Yes","CHAB",300,"15ft. 9 inches","Pallet Jack","Onsite employees load/unload","M-F 8:30AM - 1:30PM","None","704-398-7960","704-398-7971","Michael Powell"]
[5,3,503,"Richmond","Charlotte","503-Charlotte","Federal Reserve Bank","20_13_28230","530 EAST TRADE STREET CHARLOTTE NC 28202 USA ","530 E. Trade Street","Charlotte","NC",28202,"YES","YES","CHAR",1510,"13ft 6 inches","Pallet Jack","Driver loads and unloads from the dock","M-F 7:00AM - 2:00PM","None+T44:V45SH45:V45","704-358-2345","704-358-2278","Stephanie Mehlhouse"]
[7,1,701,"Chicago","Chicago","701-Chicago","Garda","20_13_60153A","2500 S. 25TH AVE BROADVEW IL 60153 USA ","2500 S. 25th Ave","Broadview","IL",60153,"YES","YES","CHIA",500,"dock is 13' 8\"","All Equipment Provided","Drive dock-load and unload","M-F 9:00AM - 2:00PM",null,"224 474-5169","708.345.2737","Lawrence Fitzpatrick"]
[7,1,701,"Chicago","Chicago","701-Chicago","Brinks, Inc.","20_13_60612","919 SOUTH CALIFORNIA AVE CHICAGO IL 60612 USA ","919 S. California Ave","Chicago","IL",60612,"YES","YES","CHIB",300,"No Restrictions","All Equipment Provided","Driver loads/unloads to tailgate.","M-F 8:00AM - 5:00PM","Special arrangements can be made to hold dock open later.","773-475-2710","773-475-2713","Clendora Glover/Sebastian Merchut"]
[7,1,701,"Chicago","Chicago","701-Chicago","Federal Reserve Bank","20_13_60632","230 SOUTH LASALLE STREET CHICAGO IL 60604 USA ","230 S. Lasalle Street","Chicago","IL",60604,"YES","YES","CHIC",0,"Coin shipments are not delivered to the Bank","Pallet Jack","Driver loads and unloads from the dock","N/A","None","313-964-6048","313-964-6046","Kevin Gearin"]
[null,1,701,"Chicago","Chicago","701-Chicago","Dunbar Armored","20_13_60651","4500 WEST CHICAGO AVENUE CHICAGO IL 60651 USA ","4500 W. Chicago Ave","Chicago","IL",60651,"YES","YES","CHID",195,"No Restrictions","Pallet Jack","Driver loads/unloads to tailgate.","M-F 8:00AM - 1:30PM","None","773-276-2528","773-276-4771","Aida Perez or Hector Hernandez"]
[7,1,701,"Chicago","Chicago","701-Chicago","Loomis","20_13_60527","8100 SOUTH MADISON BURR RIDGE IL 60527 USA ","8100 South Madison","Burr Ridge","IL",60527,"YES","YES","CHIL",100,"No Restrictions","Fork Lift,  Pallet Jack, Shrink wrap","Driver loads/unloads to tailgate.","M-F 9:00AM - 1:00PM","None","630.560.3858",null,"Chris Sulzner"]
[7,1,701,"Chicago","Chicago","701-Chicago","Davis Bancorp","20_13_60623","2100 SOUTH SAWYER STREET CHICAGO IL 60623 USA ","2100 South Sawyer Street","Chicago","IL",60623,"YES","YES","CHIV",638,"53'trailers","All Equipment Provided","Drive dock-load and unload","M-F 7:00AM - 4:00PM","Special arrangements can be made to hold dock open later.","847-998-9000 x4465","773-762-3855","Andrea Lopez"]
[7,1,701,"Chicago","Chicago","701-Chicago","Loomis","20_13_53218B","5920 BENDER COURT MILWAUKEE WI 53218 USA ","5920 Bender Court","Milwaukee","WI",53218,"YES","YES","CHLM",450,"No Restrictions","Fork Lift,  Pallet Jack","Drive dock-load and unload","M-F 8:00AM - 2:00PM","Circulated coin must be shrink wrapped","414.462.9162","414.481.2230","Nathan Kirchhoff or Josh Bernier"]
[5,1,501,"Richmond","Richmond","501-Richmond","Loomis","20_13_23320A","500 WOODLAKE CIRCLE CHESAPEAKE VA 23320 USA ","500 Woodlake Circle","Chesapeake","VA",23320,"YES","YES","CHSL",50,"No Restrictions","Fork Lift, Pallet Jack","Driver loads/unloads to tailgate.","M-F 9:00AM - 2:00PM","None","757-413-2410","757-413-2425","Keith Beezhold"]
[6,1,601,"Atlanta","Atlanta","601-Atlanta","Loomis","20_13_37406B","2305 B DODSON AVENUE CHATTANOOGA TN 37406 USA ","2305 B. Dodson Ave","Chattanooga","TN",37406,"YES","YES","CHTA",60,"75 length 13.6 height Min size","Pallet Jack","Driver loads/unloads to tailgate","M-F 9:00AM - 1:00PM","None","423-622-6043","423-648-0473","Brian Suttles"]
[4,2,402,"Cleveland","Cincinnati","402-Cincinnati","Garda","20_13_45203B","1017 HOPKINS STREET CINCINNATI OH 45203 USA ","1017 Hopkins Street","Cincinnati","OH",45203,"YES","YES","CINA",100,"No Restrictions","Fork Lift,  Pallet Jack","Drive dock-load and unload to/from transfer room","M-F 7:30AM - 2:00PM","None","513-621-0245","513-621-0245","Cindy Williams"]
[4,2,402,"Cleveland","Cincinnati","402-Cincinnati","Brinks, Inc.","20_13_45203","1045 HOPKINS STREET CINCINNATI OH 45203 USA ","1045 Hopkins St","Cincinnati","OH",45203,"YES","YES","CINB",200,"No Restrictions","Fork Lift, Pallet Jack","Drive dock-load and unload to/from transfer room","M-F 7:00AM - 2:00PM","None","513-621-5549","513-621-2429","Nick Houser"]
[4,2,402,"Cleveland","Cincinnati",{"$f":"C35&\"-\"&E35","v":"402-Cincinnati"},"Dunbar Armored","20_13_45203A","1249 WEST 7TH ST. CINCINNATI OH 45203 USA ","1249 West 7th St.","Cincinnati","OH",45203,"YES","YES","CIND",75,"Dunbar does not accept Mint shipments.","Fork Lift,  Pallet Jack","Driver loads/unloads to tailgate","M-F 8:00AM - 3:00PM","Dunbar has a ramp - not a dock. No Mint Shpts.","513-381-8000","513-381-0511","Joe Steimle"]
[4,2,402,"Cleveland","Cincinnati","402-Cincinnati","Loomis","20_13_46202A","122 NORTH COLLEGE AVENUE INDIANAPOLIS IN 46202 USA ","122 N. College Ave","Indianapolis","IN",46202,"YES","YES","CINL",85,"dock 12'","Fork Lift,  Pallet Jack","Drive dock-load tailgate-unload","M-F 8:30AM - 2:00PM","Special arrangements can be made to hold dock open later.","317-632-3421","317-637-5802","Danny Cross or Paul Dominguez"]
[4,2,402,"Cleveland","Cincinnati","402-Cincinnati","Federal Reserve Bank","20_13_45201","150 EAST 4TH STREET CINCINNATI OH 45201 USA ","150 East Fourth St.","Cincinnati","OH",45201,"YES","YES","CINN",520," Trailer should not exceed 20' height; 45' length","Fork Lift,  Pallet Jack","Drive dock-load and unload to/from transfer room","M-F 7:00AM - 2:00PM","None","513-455-4331","513-455-4589","Annette Borders/Joe Guido"]
[4,1,401,"Cleveland","Cleveland","401-Cleveland","Dunbar Armored","20_13_44125","5505 CLOVERLEAF PARKWAY CLEVELAND OH 44125 USA ","5505 Cloverleaf Parkway","Valley View","OH",44125,"YES","YES","CLDV",21,"No Restrictions","Pallet Jack","Driver loads and unloads from the dock","M-F 9:00AM - 3:00PM","None","216-642-5700","216-642-9324","Janet Bankowski"]
[4,1,401,"Cleveland","Cleveland","401-Cleveland","Garda","20_13_44278","113 SOUTH THOMAS ROAD TALLMADGE OH 44278 USA ","113 S. Thomas Road","Tallmadge","OH",44278,"YES","YES","CLEA",100,"No Restrictions","Fork Lift,  Pallet Jack, Shrink wrap","Drive dock-load and unload","M-F 9:00AM - 2:00PM","None","330-634-9708","330-634-9606","Linda Riley/Gary Bledsoe"]
[4,1,401,"Cleveland","Cleveland","401-Cleveland","Federal Reserve Bank","20_13_44101","1455 EAST 6TH STREET CLEVELAND OH 44114 USA ","1455 E. 6th Street","Cleveland","OH",44114,"YES","YES","CLEV",1500,"Trailer should not exceed 13' high max /48' long max","Pallet Jack","Drive dock-load and unload to/from transfer room","M-F 7:00AM - 2:30PM","None","216-579-2965","216-579-2372","Matt or Kathy"]
[5,3,503,"Richmond","Charlotte","503-Charlotte","Loomis","20_13_28208C","3221 STAFFORD DRIVE CHARLOTTE NC 28208 USA ","3221 Stafford Drive","Charlotte","NC",28208,"YES","YES","CLTL",150,"No Restrictions","Pallet Jack","Onsite employees load/unload","M-F 9:00AM - 2:00PM","None","704-916-8589","704-333-5094","Brittany Sanders"]
[7,2,702,"Chicago","Detroit","702-Detroit","Brinks, Inc.","20_13_48201","1351 SPRUCE DETROIT MI 48201 USA ","1351 Spruce","Detroit","MI",48201,"YES","YES","DETB",160,"No Restrictions"," Pallet Jack, Shrink wrap","Driver loads/unloads to tailgate","M-F 9:00AM - 2:00PM","Delivery best before 1:00","313.496.3551","313.981.2623","Brian Dardzinski"]
[7,2,702,"Chicago","Detroit","702-Detroit","Loomis","20_13_48661","600 SOUTH VALLEY ROAD WEST BRANCH MI 48661 USA ","600 S. Valley Rd","West Branch","MI",48661,"YES","YES","DETF",203,"No Restrictions","Fork Lift,  Pallet Jack, Shrink wrap","Driver loads/unloads to tailgate.","M-F 8:00AM - 4:00PM","Delivery best before 1:00","989-345-5820","989-345-3782","Jean Beckwith or Matt Kohlhoff"]
[7,2,702,"Chicago","Detroit","702-Detroit","Loomis","20_13_48203","15045 HAMILTON HIGHLAND PARK MI 48203 USA ","15045 Hamilton","Highland Park","MI",48203,"YES","YES","DETL",207,"No Restrictions","Fork Lift,  Pallet Jack, Shrink wrap","Driver loads/unloads to tailgate.","M-F 9:00AM - 2:00PM","Delivery best before 1:00","313-826-3458","810-732-1444","Mike Hodnicki"]
[7,2,702,"Chicago","Detroit","702-Detroit","Federal Reserve Bank","20_13_48207","1600 E WARREN DETROIT MI 48207 USA","1600 E. Warren","Detroit","MI",48207,"YES","YES","DETR",1513,"No Restrictions","Fork Lift,  Pallet Jack, Shrink wrap","Driver loads and unloads from the dock","M-F 8:00AM - 2:00PM","Delivery best before 12:00","313-964-6118","313-964-6046","Amy Collins"]
[7,2,702,"Chicago","Detroit","702-Detroit","Garda","20_13_48151","12435 MERRIMAN STREET LIVONIA MI 48150 USA ","12435 Merriman Road","Livonia","MI",48150,"YES","YES","DETX",175,"No Restrictions","Pallet Jack, Shrink wrap","Driver loads/unloads to tailgate","M-F 9:00 - 3:00 PM","Delivery best before 1:00","734.425.2130 x557114","734.425.2203","Ben Behling"]
[7,2,702,"Chicago","Detroit","702-Detroit","Loomis","20_13_49321","871 WEST RIVER CENTER ROAD COMSTOCK PARK MI 49321 USA ","871 West River Center Road","Comstock Park","MI",49321,"YES","YES","DTCM",125,"No Restrictions"," Pallet Jack, Shrink wrap","Driver loads/unloads to tailgate","M-F 9:00AM - 2:00PM","Delivery best before 1:01","616-785-8771","616-785-8818","Chris Armstrong"]
[7,1,701,"Chicago","Chicago","701-Chicago","Garda","20_13_54115"," 2001 LAWRENCE DRIVE STUITE 103B DE PERE WI 54115 USA ","2001 Lawrence Dr., Suite 103B","Depere","WI",54115,"YES","YES","GRBA",60,"No Restrictions","Fork Lift","Driver loads/unloads to tailgate.","M-F 8:00AM - 5:00PM","None","920-983-8083","920.983.8103","Phil Tritabaugh"]
[7,1,701,"Chicago","Chicago","701-Chicago","Loomis","20_13_54303","1232 ELIZABETH STREET GREEN BAY WI 54302 USA ","1232 Elizabeth Street","Green Bay","WI",54302,"YES","YES","GRBB",156,"No Restrictions","Fork Lift","Drive dock-load and unload","M-F 8:00AM - 4:00PM","No dock to back up to; fork lift must unload truck","920-435-5910","920-435-5912","Ryan Nelson or Chris Kantelberg"]
[7,2,702,"Chicago","Detroit","702-Detroit","Brinks, Inc.","20_13_49544","3380 THREE MILE ROAD GRAND RAPIDS MI 49544 USA ","3380 Three Mile Road","Grand Rapids","MI",49544,"YES","YES","GRRB",110,"No Restrictions","Fork Lift,  Pallet Jack, Shrink wrap","Driver loads/unloads to tailgate.","M-F 8:00AM - 4:00PM","Delivery best before 1:00","616-735-3942 x-224","616-735-3664","Jessica McClure"]
[3,1,301,"Philadelphia","Philadelphia","301-Philadelphia","Garda","20_13_19802","212 EAST LEA BLVD WILMINGTON DE 19802 USA ","212 East Lea Blvd","Wilmington","DE",19802,"YES","YES","ILMB",450,"No restrictions coin unloaded outside","Fork Lift,  Pallet Jack","Driver loads/unloads to tailgate.","M-F 9:00AM - 2:00PM","Advance notice from FRB","302-762-9570","302-761-9670","James Allen"]
[7,1,701,"Chicago","Chicago","701-Chicago","Brinks, Inc.","20_13_46202C","402 NORTH DORMAN STREET INDIANAPOLIS IN 46202 USA ","402 N. Dorman Street","Indianapolis","IN",46202,"YES","YES","INDB",175,"48 foot length","Electric Pallet Jack","Drive dock-loads/unloads to tailgate","M-F 7:00AM - 5:00PM","Narrow street; special arrangements can be made to hold dock open later.","371-624-9434 x5221","317-624-9613","Scott Zuelke or Anna Mitchell"]
[7,1,701,"Chicago","Chicago","701-Chicago","Garda","20_13_46202","68 N. GALE STREET INDIANAPOLIS IN 46202 USA ","68 N. Gale Street","Indianapolis","IN",46202,"YES","YES","INDU",100,"No Restrictions","All Equipment Provided","Driver loads/unloads to tailgate.","M-F 8:00AM - 2:00PM","Special arrangements can be made to hold dock open later.","317-352-1030x413110","317-352-1125","Martin Meagher or Joe Wood"]
[2,1,201,"New York","New York","201-New York","Dunbar Armored","20_13_11803","100 COMMERCIAL STREET PLAINVIEW NY 11803 USA ","100 Commercial Street","Plainview","NY",11803,"YES","YES","ISPD",225,"13' max Height; 11' max Width","Fork Lift,  Pallet Jack","Drive dock-load and unload","M-F 9:00AM - 3:00PM","Must have vaild ID","516-349-1203","516-349-1251","Ahmad Shafee"]
[6,3,603,"Atlanta","Jacksonville","603-Jacksonville","Brinks, Inc.","20_13_32821","9900 SATTELITE BLVD. ORLANDO FL 32837 USA ","9900 Satellite Blvd","Orlando","FL",32837,"YES","YES","JABO",200,"No Restrictions","Fork Lift,  Pallet Jack","Driver loads/unloads to tailgate","M-F 9:00AM - 2:00PM","None","407-541-2949","407-547-2989","Larry Osborne, Coin Manager"]
[6,3,603,"Atlanta","Jacksonville","603-Jacksonville","Brinks, Inc.","20_13_33607","5115 W NASSAU STREET TAMPA FL 33607 USA ","5115 W. Nassau Street","Tampa","FL",33607,"YES","YES","JABT",200,"No Restrictions","Fork Lift,  Pallet Jack, Shrink wrap","Drive dock-load and unload","M-F 9:00AM - 1:00PM","None","813-282-1515","813-282-8995","Marc Sequeira, Coin Manager"]
[6,3,603,"Atlanta","Jacksonville","603-Jacksonville","Federal Reserve Bank","20_13_32231","800 WATER STREET JACKSONVILLE FL 32204 USA ","800 Water Street","Jacksonville","FL",32204,"YES","YES","JACK",810,"No Restrictions","Fork Lift,  Pallet Jack","Drive dock-load and unload to/from transfer room","M-F 8:00AM - 3:00PM","None","904-360-1276","904-632-3584","Kim McConico, Supervisor"]
[8,4,804,"St. Louis","Memphis","804-Memphis","Loomis","20_13_39204","1625 HANDY JACKSON MS 39204 USA ","1625 Handy Ave.","Jackson","MS",39204,"YES","YES","JANL",120,"No Restrictions","Fork Lift,  Pallet Jack","Driver loads/unloads to tailgate.","M-F 9;00am -2:00PM ","None","1-601-353-5405","1-601-353-0804","Paul Dearing"]
[6,3,603,"Atlanta","Jacksonville","603-Jacksonville","Loomis","20_13_32806A","40 WEST CRYSTAL LAKE STREET ORLANDO FL 32806 USA ","40 West Crystal Lake Street","Orlando","FL",32806,"YES","YES","JAWO",30,"Height 15' - length 70'","Fork Lift,  Pallet Jack","Drive dock-load and unload to/from transfer room","M-F 9:00-2:00 / 2:00-4:00","Lift gate required","407-422-5010","407-839-1673","Hector Munoz, Coin Manager"]
[6,3,603,"Atlanta","Jacksonville","603-Jacksonville","Loomis","20_13_33619","2030 MASSARO BLVD TAMPA FL 33619","2030 Massaro Blvd ","Tampa","FL",33619,"YES","YES","JAWT",97,"No restrictions coin unloaded outside","Fork Lift,  Pallet Jack","Driver loads/unloads to tailgate","M-F 9:00AM - 3:30PM","None","813-223-6822","813-228-9413","Judy Eztevez, CMS Manager"]
[8,4,804,"St. Louis","Memphis","804-Memphis","Garda","20_13_72202A","711 W DAISY L GASTON BATES LITTLE ROCK AR 72202 USA ","711 W. Daisy L. Gaston Bates Dr.","Little Rock","AR",72202,"YES","YES","LITA",60,"H 10 ft 3 in, W 12 ft.","Fork Lift,  Pallet Jack","Driver loads/unloads to tailgate.","M-F 8:00AM - 10:00AM","None","1-501-374-7500","1-501-374-9272","Julian Pacheco"]
[4,2,402,"Cleveland","Cincinnati","402-Cincinnati","Garda","20_13_40203","1050 SOUTH 9TH STREET LOUISVILLE KY 40203 USA ","1050 South 9th St","Louisville","KY",40203,"YES","YES","LOUA",200,"14' door heighth","Fork Lift,  Pallet Jack, Shrink wrap","Driver loads/unloads to tailgate.","M-F 9:00AM - 2:30PM","None","502-584-2187","502-561-7077","Lu Lopez"]
[4,2,402,"Cleveland","Cincinnati","402-Cincinnati","Loomis","20_13_40299","1722 BLUEGRASS CT LOUISVILLE KY 40299 USA ","1722 Bluegrass Ct","Louisville","KY",40299,"YES","YES","LOUL",75,"No Restrictions","Fork Lift,  Pallet Jack","Drive dock-load and unload to/from transfer room","M-F 7:30AM - 2:00PM","None","502-614-4988","502-267-5535","Amanda Miles"]
[3,1,301,"Philadelphia","Philadelphia","301-Philadelphia","Dunbar Armored","20_13_17402","6 INTERCHANGE PLACE YORK PA 17402 USA ","6 Interchange Place","York","PA",17402,"YES","YES","MDTD",75,"No higher than 13' 6\"","Fork Lift,  Pallet Jack","Driver loads/unloads to tailgate.","M-F 8:00AM - 2:30PM","Advance notice from FRB","717-764-6886","717-764-5132","Verna Ward"]
[8,4,804,"St. Louis","Memphis","804-Memphis","Loomis","20_13_38111","2600 SOUTHERN AVE MEMPHIS TN 38111 USA ","2600 Southern Ave","Memphis","TN",38111,"YES","YES","MEML",650,"No Restrictions","Fork Lift,  Pallet Jack","Driver loads/unloads to tailgate.","M-F 8:00AM - 12:00PM","None","1-901-248-1374","1-901-527-6674","Travis Mikesh"]
[8,4,804,"St. Louis","Memphis",{"$f":"C66&\"-\"&E66","v":"804-Memphis"},"Federal Reserve Bank","20_13_38101","200 NORTH MAIN STREET MEMPHIS TN 38101 USA ","200 North Main Street","Memphis","TN",38101,"YES","YES","MEMP",0,"No Restrictions","Fork Lift,  Pallet Jack","Drive dock-load and unload to/from transfer room","M-F 7:00-11:30 / 12:30-2:00","None","1-901-579-2426","1-901-570-2497","Eugene O'Dell"]
[1,1,101,"Boston","Boston","101-Boston","Loomis","20_13_03108","520 MAMMOTH ROAD LONDONDERRY NH 03053 USA ","520 Mammoth Road","Londonderry","NH",3053,"YES","YES","MHTA",250,"No Restrictions","Fork Lift,  Pallet Jack","Drive dock-load tailgate-unload","M-F 9:00AM - 2:00PM","None","603-421-2929","603-425-0172","Kevin Cooper"]
[6,6,606,"Atlanta","Miami","606-Miami","Brinks, Inc.","20_13_33178A","5575 N.W. 87TH AVENUE MIAMI FL 33178 USA ","5575 NW 87th Ave","Miami","FL",33178,"YES","YES","MIAB",140,"13'2 X 65'","Pallet Jack","Drive dock-load and unload to/from transfer room","M-F 8:00AM - 2:00PM","None+T60:V60S60A60:V60","(305) 459-5733","(305) 499-9264","Daniel Graveran"]
[6,6,606,"Atlanta","Miami","606-Miami","Dunbar Armored","20_13_33166","7717 NW 62ND STREET MIAMI FL 33166 USA ","7717 NW 62 ST","Miami","FL",33166,"YES","YES","MIAD",100,"13'2 X 65'","Pallet Jack","Drive dock-load and unload to/from transfer room","M-F 10:00AM - 3:00PM","None","(305) 470-6553","(305) 463-0507","Tonya Martin"]
[6,6,606,"Atlanta","Miami","606-Miami","Federal Reserve Bank","20_13_33178B","9100 N.W. 36TH STREET MIAMI FL 33178 USA ","9100 NW 36th Street","Miami","FL",33178,"YES","YES","MIAM",375,"13'2 X 65'","Pallet Jack","Drive dock-load and unload to/from transfer room","M-F 8:00AM - 2:00PM","None","(305) 471-6269","(305) 471-6299","Al Alrmas/Chondra Garcia"]
[6,6,606,"Atlanta","Miami","606-Miami","Loomis","20_13_33172","1089 NW 20TH STREET MIAMI FL 33127 USA ","1089 NW 20 ST","Miami","FL",33127,"YES","YES","MIAW",86,"13'2 X 65'","Pallet Jack","Drive dock-load and unload to/from transfer room","M-F 8:00AM - 2:00PM","None","(786) 437-6105","(305) 324-0397","Magdiel Mckercher"]
[7,1,701,"Chicago","Chicago",{"$f":"C72&\"-\"&E72","v":"701-Chicago"},"Brinks, Inc.","20_13_52802","1704 WEST 2ND STREET DAVENPORT IA 52802 USA ","1704 West 2nd Street","Davenport","IA",52802,"YES","YES","MLIB",90,"No Restrictions","Fork Lift,  Pallet Jack","Driver loads/unloads to tailgate.","M-F 9:00AM - 4:00PM","Special arrangements can be made to hold dock open later.","563-322-1688","563-322-3246","Ralph Lake II or Mike Ortiz"]
[7,1,701,"Chicago","Chicago",{"$f":"C73&\"-\"&E73","v":"701-Chicago"},"Garda","20_13_52804","17040 215TH STREET DAVENPORT IA 52804 USA ","17040 215th Street","Davenport","IA",52804,"YES","YES","MLIU",80,"No Restrictions","Fork Lift, Shrink wrap","Drive dock-load and unload","M-F 10:00AM - 2:00PM","Special arrangements can be made to hold dock open later.","563-386-2540","563-386-6289","John Luedtke or Michelle Kaster"]
[6,5,605,"Atlanta","New Orleans",{"$f":"C74&\"-\"&E74","v":"605-New Orleans"},"Brinks, Inc.","20_13_36619","4684 SHIPYARD ROAD MOBILE AL 36619 USA ","4684 Shipyard Rd","Mobile","AL",36619,"YES","YES","MOBB",80,"No Restrictions","Fork Lift,  Pallet Jack","Driver loads/unloads to tailgate","M-F 8:00AM - 3:00PM","None","251-660-7569","251-666-4884","Sam Ledbetter"]
[6,4,604,"Atlanta","Atlanta","Brinks, Inc.","Brinks, Inc.","20_13_37210","299 HERMITAGE AVENUE NASHVILLE TN 37210 USA ","299 Hermitage Ave","Nashville","TN",37210,"YES","YES","NASB",150,"No Restrictions","All Equipment Provided","Brinks Unloads","M-F 8:00AM - 2:00PM","Unloads at dock in terminal","615-248-4007","615-726-3319","Kasey Waddy"]
[6,4,604,"Atlanta","Atlanta","Loomis","Loomis","20_13_37207","3020 BRICK CHURCH PIKE, NASHVILLE TN 37204 USA","3020 Brick Church Pike","Nashville","TN",37207,"YES","YES","NASW",155,"No Restrictions","All Equipment Provided","Onsite employees load/unload","M-F 8:30AM - Noon","Unloads in secured fenced area","615-916-4463","615-650-2428","Frank Briar"]
[6,5,605,"Atlanta","New Orleans",{"$f":"C77&\"-\"&E77","v":"605-New Orleans"},"Federal Reserve Bank","20_13_70160","525 ST. CHARLES AVENUE NEW ORLEANS LA 70130 USA ","525 St. Charles Ave","New Orleans","LA",70130,"YES","YES","NORL",170,"No Restrictions","Fork Lift,  Pallet Jack, Shrink wrap","Drive dock-load and unload","M-F 7:30AM - 2:00PM","Carrier should arrive before 6:00 am to avoid street car traffic, loading dock is available.","504-593-3379","504-593-3218","Lionel Dupart"]
[6,5,605,"Atlanta","New Orleans","605-New Orleans","Grada","20_13_70130","933 ERATO STREET NEW ORLEANS LA 70130 USA ","933 Erato Street","New Orleans","LA",70130,"YES","YES","NORV",100,"No Restrictions","Fork Lift,  Pallet Jack","Driver loads/unloads to tailgate","M-F 8:00AM - 2:00PM","None","504-581-3689","504-569-9162","Dexter Bourque"]
[6,5,605,"Atlanta","New Orleans","605-New Orleans","Loomis","20_13_70119","2600 POYDRAS STREET NEW ORLEANS LA 70119 USA ","2600 Poydras Street","New Orleans","LA",70119,"YES","YES","NORX",150,"No Restrictions","Fork Lift,  Pallet Jack","Driver loads/unloads to tailgate","M-F 9:00AM - Noon","None","504-822-0701","504-821-8031","Arely Paniagua"]
[2,1,201,"New York","New York","201-New York","Garda","20_13_11101","5-26 45TH AVENUE LONG ISLAND CITY NY 11101 USA ","5-26 45th Avenue","Long Island City","NY",11101,"YES","YES","NYCD",125,"11'x50'","Fork Lift,  Pallet Jack, Shrink wrap","Driver loads/unloads to tailgate","M-F 7:00AM - 2:00PM","None","718-289-2900","718-472-0809","Dorthy Rivera "]
[2,1,201,"New York","New York","201-New York","Garda","20_13_08837A","375 Clearview Road EDISON NJ 08837 USA ","375 Clearview Road","Edison","NJ",8837,"YES","YES","NYED",125,"42' Tractor Trailer or smaller","Fork Lift,  Pallet Jack, Shrink wrap","Driver loads/unloads to tailgate.","M-F 8:00AM - 4:00PM","Announce yourself at guard post.","732-417-3828","908-436-9225","Mohan Taswar"]
[2,1,201,"New York","New York","201-New York","Federal Reserve Bank","20_13_07073","100 ORCHARD STREET EAST RUTHERFORD NJ 07073 USA ","100 Orchard Street","East Rutherford","NJ",7073,"YES","YES","NYER",1198,"12'x71'","Fork Lift,  Pallet Jack, Shrink wrap","Drive dock-load and unload to/from transfer room","M-F 7:30AM - 3:00PM","Shipping company must provide driver and truck information to FRB in advance","201-531-3154","201-531-3160","ToniAnn Gencarelli"]
[2,1,201,"New York","New York","201-New York","Dunbar Armored","20_13_07601","70 BURLEWS COURT HACKENSACK NJ 07601 USA ","70 Berlews Court","Hackensack","NJ",7601,"YES","YES","NYHD",100,"Standard semi-capability","Fork Lift,  Pallet Jack, Shrink wrap","Driver loads/unloads to tailgate.","M-F 8:00AM - 5:00PM","","201-488-2508","201-488-4973","Adolfo Hernandez"]
[5,1,501,"Richmond","Richmond","501-Richmond","Brinks, Inc.","20_13_23320","1223 EXECUTIVE BLVD. CHESAPEAKE VA 23320 USA ","1223 Executive Blvd.","Chesapeake","VA",23320,"YES","YES","ORFB",200,"Maximun 48'","Fork Lift, Shrink wrap","Driver loads/unloads to tailgate.","M-F 7:00AM - 3:00PM","None","757-548-1765","757-547-5304","John Ferell"]
[1,1,101,"Boston","Boston","101-Boston","Loomis","20_13_01505","50 SHREWSBURY STREET BOYLSTON MA 01505 USA ","50 Shrewsbury St","Boylston","MA",1505,"YES","YES","ORHA",300,"No Restrictions","Fork Lift,  Pallet Jack","Onsite employees load/unload","M-F 7:00AM - 1:00PM","None","508-869-4027","774-614-0203","Frank Van Bemmel"]
[6,3,603,"Atlanta","Jacksonville","603-Jacksonville","Garda","20_13_32837"," 9820 SATELLITE BVLD ORLANDO FL 32837 USA ","9820-A Satellite Boulevard","Orlando","FL",32837,"YES","YES","ORLG",75,"No Restrictions","Fork Lift,  Pallet Jack","Driver loads/unloads to tailgate","M-F 8:00AM - 2:00PM","None","407-947-5438","407-857-7757","Keith Apodaca, Branch Manager"]
[3,1,301,"Philadelphia","Philadelphia","301-Philadelphia","Federal Reserve Bank","20_13_19106B","10 N. INDEPENDENCE MALL EAST PHILADELPHIA PA 19106 USA ","10 N. Independence Mall East","Philadelphia","PA",19106,"YES","YES","PHIL",3200,"42' Long  &  12' 6\" high","Fork Lift,  Pallet Jack, Shrink wrap","Drive dock-load and unload to/from transfer room","M-F 7:00AM - 2:30PM","Advance notice from carrier via FAX","215-574-3421","215-574-3471","Joe Craig"]
[3,1,301,"Philadelphia","Philadelphia","301-Philadelphia","Dunbar Armored","20_13_08077","1100 TAYLORS LANE CINNAMINSON NJ 08077 USA ","1100 Taylors Lane","Cinnaminson","NJ",8077,"YES","YES","PHLD",72,"Height 10Ft   Width 8 1/2 ft  Length 25 1/2 ft","Fork Lift,  Pallet Jack, Shrink wrap","Driver loads/unloads to tailgate.","M-F 9:00AM - 3:00PM","Advance notice from FRB","856-786-5222","856-786-4338","Chris Howarth"]
[3,1,301,"Philadelphia","Philadelphia","301-Philadelphia","Loomis","20_13_08110","1601 HYLTON ROAD PENNSAUKEN NJ 08110 USA ","1601 Hylton Road","Pennsauken","NJ",8110,"YES","YES","PHLL",50,"No restrictions coin unloaded outside","Fork Lift,  Pallet Jack, Shrink wrap","Driver loads/unloads to tailgate","M-F 10:00AM - 2:00PM","Advance notice from FRB","856-317-2610","856-488-8419","Mark Zangaro"]
[7,1,701,"Chicago","Chicago","701-Chicago","Brinks, Inc.","20_13_61604","6200 WEST PLANK ROAD BELLEVUE IL 61604 USA ","6200 West Plank Road","Bellevue","IL",61604,"YES","YES","PIAB",60,"No Restrictions","All Equipment Provided","Driver loads/unloads to tailgate.","M-F 9:00AM - 2:00PM","Special arrangements can be made to hold dock open later.","309-697-5050 x2239","309-697-9589","Mike Odell"]
[4,1,401,"Cleveland","Cleveland","401-Cleveland","Garda","20_13_15202B","70 33RD STREET PITTSBURGH PA 15202 USA ","70 33rd Street","Pittsburgh","PA",15202,"YES","YES","PIBA",100,"No Restrictions","Fork Lift,  Pallet Jack","Driver loads/unloads to tailgate","M-F 10:00AM - 2:00PM","Driver must bring pallets to edge of the truck.Drivers to contact Eugene Reese (11:30 - 7:30 p.m) for delivery arrangements 412-434-7034.","412-434-7034","412-434-7038","Ryan Matthew"]
[4,1,401,"Cleveland","Cleveland","401-Cleveland","Brinks, Inc.","20_13_15205A","500 VISTA INDUSTRIAL PARK PITTSBURGH PA 15202 USA ","500 Vista Industrial Park","Pittsburgh","PA",15205,"YES","YES","PITB",50,"No Restrictions","Fork Lift,  Pallet Jack, Shrink wrap","Onsite employees load/unload","M-F 9:00AM - 3:00PM","None","412-490-7360","412-490-7365"," Cathy Narehood"]
[4,1,401,"Cleveland","Cleveland","401-Cleveland","Dunbar Armored","20_13_15215","1650 MAIN STREET PITTSBURGH PA 15215 USA ","1650 Main Street","Sharpsburg","PA",15215,"YES","YES","PITF",250,"Trailer should not exceed 40' long","Fork Lift,  Pallet Jack","Driver loads/unloads to tailgate","M-F 7:00AM - 2:00PM","None","412-782-4935","412-782-4937","David Letunika/Eka Mehalko"]
[4,1,401,"Cleveland","Cleveland","401-Cleveland","Loomis","20_13_15205","1610 PARKWAY VIEW DRIVE PITTSBURGH PA 15205 USA ","1610 Parkway View Drive","Pittsburgh","OH",15205,"YES","YES","PITL",9,"No Restrictions","Pallet Jack","Driver loads and unloads from the dock","N/A","None","330-746-3246","330-746-8939","Diana Reese"]
[6,5,605,"Atlanta","New Orleans","605-New Orleans","Loomis","20_13_32503","8800 ELY ROAD PENSACOLA FL 32514 USA ","8800 Ely Road","Pensacola","FL",32514,"YES","YES","PNSL",70,"No Restrictions","Fork Lift,  Pallet Jack","Driver loads/unloads to tailgate","M-F 9:00AM - 1:00PM","None","850-969-0233","850-969-0244","Shermaine Adkins"]
[5,3,503,"Richmond","Charlotte","503-Charlotte","Loomis","20_13_27560","125 NOVA DRIVE MORRISVILLE NC 27560 USA ","125 Nova Drive","Morrisville","NC",27560,"YES","YES","RALL",200,"15ft. 9 inches","Pallet Jack","Onsite employees load/unload","M-F 10:00AM - 3:00PM","None","919-469-5992","919-469-5992","Camille Walker"]
[5,1,501,"Richmond","Richmond","501-Richmond","Brinks, Inc.","20_13_23219","2880 CHARLES CITY ROAD RICHMOND VA 23219 USA ","2880 Charles City Rd.","Richmond","VA",23219,"YES","YES","RICB",150,"Cannot accept a semi in building","Pallet Jack, Fork lift","Driver loads and unloads from the dock","M-F 9:00AM - 4:00PM","If semi is used, the driver will need to accept shipment from the front of the truck.","804-783-9292","222-1579","Bill Synnot/David Bertelsen"]
[5,1,501,"Richmond","Richmond","501-Richmond","Federal Reserve Bank","20_13_23261","701 EAST BYRD AVENUE RICHMOND VA 23219 USA ","701 East Byrd Street","Richmond","VA",23219,"YES","YES","RICH",1450,"trailer should not exceed 48' in length","Fork Lift,  Pallet Jack","Drive dock-load and unload","M-F 7:00AM - 2:00PM","","804-697-8917","697-8305","Adam Roberson"]
[5,1,501,"Richmond","Richmond","501-Richmond","Loomis","20_13_24019","738  LEE HIGHWAY #A ROANOKE VA 24019 USA ","738  Lee Hwy #A","Roanoke","VA",24019,"YES","YES","ROAL",100,"No Restrictions","Pallet Jack","Driver loads and unloads from the dock","M-F 9:00AM - 2:00PM","None","804 756-7080","866-592-4151","Kevin Hodges"]
[5,1,501,"Richmond","Richmond","501-Richmond","Brinks, Inc.","20_13_24153","20 TURNER ROAD SALEM VA 24153 USA ","20 Turner Rd.","Salem","VA",24153,"YES","YES","ROAS",200,"No Restrictions","Fork Lift,  Pallet Jack","Brinks Unloads","M-F 8:00AM - 4:00PM","truck will have to load on side street","540-387-4284","540 387-4032","Ashley Tate"]
[4,1,401,"Cleveland","Cleveland","401-Cleveland","Loomis","20_13_14624","65 VANTAGE POINT ROAD ROCHESTER NY 14624 USA ","65  Vantage Point","Rochester","NY",14624,"YES","YES","ROCA",194,"Trailer should not exceed 12'x30'","Fork Lift,  Pallet Jack, Shrink wrap","Driver loads/unloads to tailgate","M-F 7:00AM - 2:00PM","no raised dock or loading platform available.  All shipments off loaded on the exterior of the building under armed guard.","585-758-5017","585-352-6073","Darvon Murphy"]
[8,4,804,"St. Louis","Memphis","804-Memphis","Loomis","20_13_72202B","1300 SOUTH CHESTER STREET LITTLE ROCK AR 72202 USA ","1300 S. Chester St.","Little Rock","AR",72202,"YES","YES","ROWF",400,"H 13 ft. W 12 ft.","Fork Lift,  Pallet Jack","Driver loads/unloads to tailgate.","M-F 6:00-8:00 / 1:00-2:00","None","1-800-372-5502","1-501-975-2654","Christopher Runshe"]
[6,3,603,"Atlanta","Jacksonville","603-Jacksonville","Loomis","20_13_31419","785 KING GEORGE BLVD. SAVANNAH GA 31419 USA ","785 King George Blvd.","Savannah","GA",31419,"YES","YES","SAVE",60,"No dock","Fork Lift,  Pallet Jack","Driver loads/unloads to tailgate","None","None","912-961-6222","912-361-6256","Ron White, Branch Manager"]
[8,4,804,"St. Louis","Memphis","804-Memphis","Loomis","20_13_71107","1124 FORUM DR SHREVEPORT LA 71107 USA ","1124 Forum Dr","Shreveport","LA",71107,"YES","YES","SHPL",120,"No Restrictions","Fork Lift,  Pallet Jack, Shrink wrap","Driver loads/unloads to tailgate.","M-F 9:00AM - 4:00AM","None","318-562-2302","318-424-8002","Barry Doyle"]
[7,1,701,"Chicago","Chicago","701-Chicago","Brinks, Inc.","20_13_62707","2930 GRANGER DRIVE SPRINGFIELD IL 62707 USA ","2930 Granger Drive","Springfield","IN",62707,"YES","YES","SPIB",80,"No Restrictions","Fork Lift,  Pallet Jack","Drive dock-load and unload","M-F 9:00AM - 3:00PM","Special arrangements can be made to hold dock open later.","217.522.0932","217-522-0932","Chris Kirk/Lisa Leaser"]
[8,1,801,"St. Louis","St. Louis","801-St. Louis","Brinks, Inc.","20_13_63106","909 NORTH 18TH STREET SAINT LOUIS MO 63106 USA ","909 N. 18th Street","St. Louis","MO",63106,"YES","YES","STLB",150,"No Restrictions","Fork Lift,  Pallet Jack, Shrink wrap","Driver loads and unloads from the dock","M-F 8:30AM - 1:30PM","Trucks back up to dock in carrier bay.  If available, employees will remove the pallets from truck, otherwise driver will.","314-421-4448","314-421-5620","Denis Echele"]
[8,1,801,"St. Louis","St. Louis","801-St. Louis","Loomis","20_13_63045","1 Moxie Place, Eath City MO 63045 USA ","1 Moxie Place","Earth City","MO",63045,"YES","YES","STLL",115,"No restricitons","Fork lift, pallet jack (to move pallets to tailgate) and shrink wrap","Driver loads/unloads to tailgate.","M-F 8:30AM - 1:30PM","Trucks back into the carriers bay, there is no dock.  Employees operate fork lift and remove coin pallets from tailgate.","314-835-9070","314-835-9070","Mat Hubson"]
[8,1,801,"St. Louis","St. Louis","801-St. Louis","Federal Reserve Bank","20_13_63102A","1 FEDERAL RESERVE BANK PLAZA SAINT LOUIS MO 63102 USA ","1 Federal Reserve Bank Plaza ","St. Louis","MO",63102,"YES","YES","STLO",0,"No restrictions","Pallet Jack","Carriers load/unload at carrier dock and travel down a freight elevator to the lower level transfer room.  ","M-F 7:45AM - 2:00PM","All over the road shipments are delivered to terminals and later transferred to the Fed in smaller increments via armored carrier.","314-444-8876","314-444-8457","Angie Harter"]
[8,1,801,"St. Louis","St. Louis","801-St. Louis","Garda","20_13_63102B","1022 9TH STREET SAINT LOUIS MO 63102 USA ","1022 South 9th Street","St. Louis","MO",63102,"YES","YES","STLS",240,"No Restrictions","Fork Lift,  Pallet Jack, Shrink wrap","Driver loads/unloads to tailgate.","M-F 8:30AM - 1:30PM","Trucks back into the carriers bay, there is no dock.  Employees operate fork lift and remove coin pallets from tailgate.","314-231-4030","314-436-3306","Jamie Stevens"]
[4,1,401,"Cleveland","Cleveland","401-Cleveland","Loomis","20_13_13057","6605 JOY ROAD EAST SYRACUSE NY 13057 USA ","6605 Joy Drive","Syracuse","NY",13057,"YES","YES","SYRA",185,"Trailer should not exceed 13'x45'","Fork Lift,  Pallet Jack","Driver loads/unloads to tailgate","M-F 9:00AM - Noon","1 day notice to schedule help","315-434-8852","315-433-1362","Bill Pelin"]
[6,4,604,"Atlanta","Atlanta","Brinks, Inc.","Brinks, Inc.","20_13_37915","1701 LEWISVILLE DRIVE KNOXVILLE TN 37915 USA ","1701 Louisville Drive Suite 102","Knoxville","TN",37915,"YES","YES","TYSB",160,"No Restrictions","Fork Lift,  Pallet Jack","Driver loads/unloads to tailgate","M-F 10:00AM - 2:00PM","None","865-909-0091","865-909-0037","Dustin Marlow"]
[6,4,604,"Atlanta","Atlanta","Loomis","Loomis","20_13_37917","120 METROPLEX COURT KNOXVILLE TN 37917 USA ","120 Metroplex Court","Knoxville","TN",37917,"YES","YES","TYSL",100,"No Restrictions","All Equipment Provided","Onsite employees load/unload","M-F 8:00AM - 2:00PM","Unloads in secured fenced area at dock","865-291-6751","615-297-9337","Troy Tucker"]
[5,2,502,"Richmond","Baltimore",{"$f":"C113&\"-\"&E113","v":"502-Baltimore"},"Loomis","20_13_22153","8015 CORPORATED COURT SPRINGFIELD VA 22153 USA ","8015 Corporated Ct.","Springfield","VA",22153,"YES","YES","WASL",85,"No Restrictions","Fork Lift","Drive dock-load and unload","M-F 5:00AM - 3:30PM","None","703-866-0400","703-455-1836","Dale Johnson"]
[5,2,502,"Richmond","Baltimore",{"$f":"C114&\"-\"&E114","v":"502-Baltimore"},"Dunbar Armored","20_13_20705B","6510 VIRGINIA MANOR ROAD BELTSVILLE MD 20705 USA ","6510 Virgina Manor Rd","Beltsville","MD",20705,"YES","YES","WASU",295,"No Restrictions","Fork Lift","Onsite employees load/unload","M-F 9:00AM - 3:00PM","None","240-387-0910","240-870-0191","Fred Montgomery or Gary Carroll"]
[4,1,401,"Cleveland","Cleveland","Cleveland","Dunbar Armored","20_13_14624A","465 PAUL ROAD CHILI NY 14624","465 Paul Road","Chili ","NY",14624,"YES","YES","CHDR",60,"No Restrictions","Fork Lift,  Pallet Jack","Driver loads/unloads to tailgate","M-F 8:00AM - 2:00PM","None","585-247-1737","585-247-8184","Paul Liedkie"]
[5,1,501,"Richmond","Richmond",{"$f":"C116&\"-\"&E116","v":"501-Richmond"},"Garda","20_13_23150","5330 Lewis Road, Richmond, VA 23150","5330 Lewis Road","Richmond","VA",23150,"YES","NO","RICG",40,"Maximun 48'","Fork Lift, Pallet Jack","Driver loads/unloads to tailgate","M-F 9:00AM - 2:00PM","None","804-651-0720","804-652-2071","Wayne Todd"]
[null,null,null,null,null,null,null,"20_13_44128","4956 NEO PARKWAY GARFIELD HEIGHTS OH 44128","4956 Neo Parkway ","Garfield Heights","OH",44128,"YES","YES","CLVL",50,null,"Fork Lift,  Pallet Jack","Fork Lift,  Pallet Jack to and from Coin bay area","M-F 9:00 AM - 12:30 PM","None","216-662-9736",null,"Brett Sabol"]

{"sheet":"DEN SHIPMENT LANES","index":3,"n_rows":123,"n_cols":25,"rows_kept":123,"cut":false,"hidden":false,"merged":[[0,0,0,6]]}
["MINOR COIN SHIPMENT LANES FROM THE DENVER MINT (TPI CUSTOMER ID: USM-20-12-CO)"]
["District Number","Office Number","FRB Office ID","District","Office",null,"Name","TPI Hub Id","TPI Hub Address","Address","City","State","Zip Code","Active","Mint Site","Mint Code","Pallet Capacity","Truck Restrictions","Equipment Provided","Driver Loads/Unloads","Dock Hours","Other restrictions","Phone#","FAX#","Contact Name"]
[6,1,601,"Atlanta","Atlanta",{"$f":"C3&\"-\"&E3","v":"601-Atlanta"},"Loomis","20_13_30054","3635 SOUTH INDUSTRIAL PARKWAY ATLANTA GA 30354 USA ","3635 Southside Industrial Parkway","Atlanta","GA",30054,"YES","YES","ATLW",285,"76 length 13.6 height Min size","Pallet Jack","Driver loads/unloads to tailgate","M-F 7:00AM - 6:00PM","None","404-876-6484","404-876-5624","Stephan Sessions"]
[6,1,601,"Atlanta","Atlanta","601-Atlanta","Garda","20_13_30082","5400 UNITED DRIVE SMYRNA GA 30082 USA ","5400 United Drive","Smyrna","GA",30082,"YES","YES","ATLT",174,"75 length 13.6 height Min size","Pallet Jack","Drive dock-load and unload","M-F 9:00AM - 1:00PM","Advance notice from FRB","678-556-0900","678-556-0362","Dorian Robinson"]
[6,1,601,"Atlanta","Atlanta","601-Atlanta","Dunbar Armored","20_13_30092","6670 CORNERS INDUSTRIAL COURT NORCROSS GA 30092 USA ","6670 Corners Industrial Ct.","Norcross","GA",30092,"YES","YES","ATLD",60,"75 length 13.6 height Min size","Pallet Jack","Driver loads/unloads to tailgate","M-F 10:00AM - 1:00PM","None","770-409-1815","770-409-1769","Leon Mitchell"]
[6,1,601,"Atlanta","Atlanta","601-Atlanta","Federal Reserve Bank","20_13_30309","1000 PEACHTREE STREET, NE ATLANTA GA 30309 USA ","1000 Peachtree St. NE","Atlanta","GA",30309,"YES","YES","ATLA",960,"75 length 13.6 height Min size","Fork Lift,  Pallet Jack, Shrink wrap","Drive dock-load and unload to/from transfer room","M-F 7:00AM - 2:00PM","must show certification for fork lift and driver to off load","404-498-8155","404-498-8123","Todd Henrich"]
[6,1,601,"Atlanta","Atlanta","601-Atlanta","Brinks, Inc.","20_13_30318A","1466 CHATTAHOOCHEE AVE. ATLANTA GA 30318 USA ","1466 Chattahoochee Ave.","Atlanta","GA",30318,"YES","YES","ATLB",250,"75 length 13.6 height Min size","Pallet Jack","Driver loads/unloads to tailgate","M-F 7:00AM - 2:00PM","None","404-351-8788","404-351-1632","Lydell Anderson"]
[6,5,605,"Atlanta","New Orleans","605-New Orleans","Loomis","20_13_32503","8800 ELY ROAD PENSACOLA FL 32514 USA ","8800 Ely Road","Pensacola","FL",32514,"YES","YES","PNSL",135,"No Restrictions","Fork Lift,  Pallet Jack","Driver loads/unloads to tailgate","M-F 9:00AM - 1:00PM","None","850-969-0233","850-969-0244","Shermaine Adkins"]
[6,1,601,"Atlanta","Atlanta","601-Atlanta","Brinks, Inc.","20_13_35210","4749 ALTON COURT IRONDALE AL 35210 USA ","4749 Alton Court","Irondale","AL",35210,"YES","YES","BIRB",280,"No Restrictions","Fork Lift,  Pallet Jack","Brinks Unloads","M-F 8:00AM - 2:00PM","None","205-951-0321","205-951-0947","Tiffany Piper"]
[6,1,601,"Atlanta","Atlanta","601-Atlanta","Loomis","20_13_35222A","517 35th Street North Birmingham AL 35222","517 35th Street North","Birmingham","AL",35222,"YES","YES","BIRW",317,"No Restrictions","Fork Lift","Driver loads and unloads from the dock","M-F 9:00AM - 2:00PM","None","205-917-5200","205-989-4440","Authur Ruffin or Mark Higginbotham"]
[6,5,605,"Atlanta","New Orleans","605-New Orleans","Brinks, Inc.","20_13_36619","4684 SHIPYARD ROAD MOBILE AL 36619 USA ","4684 Shipyard Rd","Mobile","AL",36619,"YES","YES","MOBB",120,"No Restrictions","Fork Lift,  Pallet Jack","Driver loads/unloads to tailgate","M-F 8:00AM - 2:00PM","None","251-660-7569","251-666-4884","Sam Ledbetter"]
[6,4,604,"Atlanta","Atlanta","Loomis","Loomis","20_13_37207","3020 BRICK CHURCH PIKE DRIVE, NASHVILLE TN 37207 USA","3020 Brick Church Pike Drive","Nashville","TN",37207,"YES","YES","NASW",117,"No Restrictions","All Equipment Provided","Onsite employees load/unload","M-F 8:30AM - Noon","Unloads in secured fenced area","615-916-4463","615-650-2428","Tracie Toland"]
[6,4,604,"Atlanta","Atlanta","Brinks, Inc.","Brinks, Inc.","20_13_37210","299 HERMITAGE AVENUE NASHVILLE TN 37210 USA ","299 Hermitage Ave","Nashville","TN",37210,"YES","YES","NASB",380,"No Restrictions","All Equipment Provided","Brinks Unloads","M-F 8:00AM - 2:00PM","Unloads at dock in terminal","615-248-4007","615-726-3319","Kasey Waddy"]
[6,1,601,"Atlanta","Atlanta",{"$f":"C14&\"-\"&E14","v":"601-Atlanta"},"Loomis","20_13_37406B","2305 B DODSON AVENUE CHATTANOOGA TN 37406 USA ","2305 B. Dodson Ave","Chattanooga","TN",37406,"YES","YES","CHTA",70,"75 length 13.6 height Min size","Pallet Jack","Driver loads/unloads to tailgate","M-F 9:00AM - 1:00PM","None","423-622-6043","423-648-0473","Brian Suttles"]
[6,4,604,"Atlanta","Atlanta","Brinks, Inc.","Brinks, Inc.","20_13_37915","1701 LOUISVILLE DRIVE SUITE 102 KNOXVILLE TN 37915 USA ","1701 Louisville Drive Suite 102","Knoxville","TN",37915,"YES","YES","TYSB",160,"No Restrictions","Fork Lift,  Pallet Jack","Driver loads/unloads to tailgate","M-F 10:00AM - 2:00PM","None","865-909-0091","865-909-0037","Dustin Marlow"]
[6,4,604,"Atlanta","Atlanta","Loomis","Loomis","20_13_37917","120 METROPLEX COURT KNOXVILLE TN 37917 USA ","120 Metroplex Court","Knoxville","TN",37917,"YES","YES","TYSL",114,"No Restrictions","All Equipment Provided","Onsite employees load/unload","M-F 8:00AM - 2:00PM","Unloads in secured fenced area at dock","865-291-6751","615-297-9337","Troy Tucker"]
[8,4,804,"St. Louis","Memphis",{"$f":"C17&\"-\"&E17","v":"804-Memphis"},"Federal Reserve Bank","20_13_38101","200 NORTH MAIN STREET MEMPHIS TN 38101 USA ","200 North Main Street","Memphis","TN",38101,"YES","YES","MEMP",0,"No Restrictions","Fork Lift,  Pallet Jack","Drive dock-load and unload to/from transfer room","M-F 7:00-11:30 / 12:30-2:00","None","1-901-579-2426","1-901-570-2497","Eugene O'Dell"]
[8,4,804,"St. Louis","Memphis","804-Memphis","Loomis","20_13_38111","2600 SOUTHERN AVE MEMPHIS TN 38111 USA ","2600 Southern Ave","Memphis","TN",38111,"YES","YES","MEML",650,"No Restrictions","Fork Lift,  Pallet Jack","Driver loads/unloads to tailgate.","M-F 8:00AM - 12:00PM","None","1-901-248-1374","1-901-527-6674","Travis Mikesh"]
[8,4,804,"St. Louis","Memphis","804-Memphis","Loomis","20_13_39204","1625 HANDY Ave. JACKSON MS 39204 USA ","1625 Handy Ave.","Jackson","MS",39204,"YES","YES","JANL",120,"No Restrictions","Fork Lift,  Pallet Jack","Driver loads/unloads to tailgate.","M-F 9;00am -2:00PM ","None","1-601-353-5405","1-601-353-0804","Paul Dearing"]
[4,2,402,"Cleveland","Cincinnati","402-Cincinnati","Garda","20_13_40203","1050 SOUTH 9TH STREET LOUISVILLE KY 40203 USA ","1050 South 9th St","Louisville","KY",40203,"YES","YES","LOUA",200,"14' door heighth","Fork Lift,  Pallet Jack, Shrink wrap","Driver loads/unloads to tailgate.","M-F 9:00AM - 2:30PM","None","502-584-2187","502-561-7077","Lou Lopez or Lakeesha Lawler"]
[4,2,402,"Cleveland","Cincinnati","402-Cincinnati","Loomis","20_13_40299","1722 BLUEGRASS CT LOUISVILLE KY 40299 USA ","1722 Bluegrass Ct","Louisville","KY",40299,"YES","YES","LOUL",75,"No Restrictions","Fork Lift,  Pallet Jack","Drive dock-load and unload to/from transfer room","M-F 7:30AM - 2:00PM","None","502-614-4988","502-267-5535","Amanda Miles"]
[4,2,402,"Cleveland","Cincinnati","402-Cincinnati","Federal Reserve Bank","20_13_45201","150 EAST 4TH STREET CINCINNATI OH 45202 USA ","150 East Fourth St.","Cincinnati","OH",45202,"YES","YES","CINN",520," Trailer should not exceed 20' height; 45' length","Fork Lift,  Pallet Jack","Drive dock-load and unload to/from transfer room","M-F 7:00AM - 2:00PM","None","513-455-4331","513-455-4589","Joe Guido or Annette Borders "]
[4,2,402,"Cleveland","Cincinnati","402-Cincinnati","Brinks, Inc.","20_13_45203","1045 HOPKINS STREET CINCINNATI OH 45203 USA ","1045 Hopkins St","Cincinnati","OH",45203,"YES","YES","CINB",200,"No Restrictions","Fork Lift, Pallet Jack","Drive dock-load and unload to/from transfer room","M-F 7:00AM - 2:00PM","None","513-621-5549","513-621-2429","Andrew Malone or Nick Houser"]
[4,2,402,"Cleveland","Cincinnati","402-Cincinnati","Dunbar Armored","20_13_45203A","1249 WEST 7TH ST. CINCINNATI OH 45203 USA ","1249 West 7th St.","Cincinnati","OH",45203,"YES","YES","CIND",75,"Dunbar does not accept Mint shipments.","Fork Lift,  Pallet Jack","Driver loads/unloads to tailgate","M-F 8:00AM - 3:00PM","Dunbar has a ramp - not a dock. No Mint Shpts.","513-381-8000","513-381-0511","Joe Steimle"]
[4,2,402,"Cleveland","Cincinnati","402-Cincinnati","Garda","20_13_45203B","1017 HOPKINS STREET CINCINNATI OH 45203 USA ","1017 Hopkins Street","Cincinnati","OH",45203,"YES","YES","CINA",100,"No Restrictions","Fork Lift,  Pallet Jack","Drive dock-load and unload to/from transfer room","M-F 7:30AM - 2:00PM","None","513-621-0245","513-621-0245","Cindy Williams or Margaret Greer"]
[7,1,701,"Chicago","Chicago","701-Chicago","Garda","20_13_46202","68 N. GALE STREET INDIANAPOLIS IN 46202 USA ","68 N. Gale Street","Indianapolis","IN",46202,"YES","YES","INDU",100,"No Restrictions","All Equipment Provided","Driver loads/unloads to tailgate.","M-F 8:00AM - 2:00PM","Special arrangements can be made to hold dock open later.","317-352-1030x413110","317-352-1125","Martin Meagher or Joe Wood"]
[4,2,402,"Cleveland","Cincinnati","402-Cincinnati","Loomis","20_13_46202A","122 NORTH COLLEGE AVENUE INDIANAPOLIS IN 46202 USA ","122 N. College Ave","Indianapolis","IN",46202,"YES","YES","CINL",85,"dock 12'","Fork Lift,  Pallet Jack","Drive dock-load tailgate-unload","M-F 8:30AM - 2:00PM","Special arrangements can be made to hold dock open later.","317-632-3421","317-637-5802","Danny Cross or Paul Dominguez"]
[7,1,701,"Chicago","Chicago","701-Chicago","Brinks, Inc.","20_13_46202C","402 NORTH DORMAN STREET INDIANAPOLIS IN 46202 USA ","402 N. Dorman Street","Indianapolis","IN",46202,"YES","YES","INDB",175,"48 foot length","Electric Pallet Jack","Drive dock-loads/unloads to tailgate","M-F 7:00AM - 5:00PM","Narrow street; special arrangements can be made to hold dock open later.","371-624-9434 Option 5","317-624-9613","Scott Zuelke or Anna Mitchell"]
[7,2,702,"Chicago","Detroit","702-Detroit","Garda","20_13_48151","12435 MERRIMAN ROAD LIVONIA MI 48150 USA ","12435 Merriman Road","Livonia","MI",48150,"YES","YES","DETX",175,"No Restrictions","Pallet Jack, Shrink wrap","Driver loads/unloads to tailgate","M-F 9:00 - 3:00 PM","Delivery best before 1:00","734.425.2130 x557114","734.425.2230","Ben Behling"]
[7,2,702,"Chicago","Detroit","702-Detroit","Brinks, Inc.","20_13_48201","1351 SPRUCE DETROIT MI 48201 USA ","1351 Spruce","Detroit","MI",48201,"YES","YES","DETB",160,"No Restrictions"," Pallet Jack, Shrink wrap","Driver loads/unloads to tailgate","M-F 9:00AM - 2:00PM","Delivery best before 1:00","313.496.3551","313.981.2623","Brian Dardzinski"]
[7,2,702,"Chicago","Detroit","702-Detroit","Loomis","20_13_48203","15045 HAMILTON HIGHLAND PARK MI 48203 USA ","15045 Hamilton","Highland Park","MI",48203,"YES","YES","DETL",207,"No Restrictions","Fork Lift,  Pallet Jack, Shrink wrap","Driver loads/unloads to tailgate.","M-F 8:00AM - 3:00PM","Delivery best before 1:00","313-826-3458","810-732-1444","Mike Hodnicki"]
[7,2,702,"Chicago","Detroit","702-Detroit","Federal Reserve Bank","20_13_48207","1600 E WARREN DETROIT MI 48207 USA","1600 E. Warren","Detroit","MI",48207,"YES","YES","DETR",1513,"No Restrictions","Fork Lift,  Pallet Jack, Shrink wrap","Driver loads and unloads from the dock","M-F 8:00AM - 2:00PM","Delivery best before 12:00","313-964-6048","313-964-6046","Amy Collins"]
[7,2,702,"Chicago","Detroit","702-Detroit","Loomis","20_13_48661","600 SOUTH VALLEY ROAD WEST BRANCH MI 48661 USA ","600 S. Valley Rd","West Branch","MI",48661,"YES","YES","DETF",203,"No Restrictions","Fork Lift,  Pallet Jack, Shrink wrap","Driver loads/unloads to tailgate.","M-F 8:00AM - 4:00PM","Delivery best before 1:00","989-345-5820","989-345-3782","Jean Beckwith or Matt Kohlhoff"]
[7,2,702,"Chicago","Detroit","702-Detroit","Loomis","20_13_49321","871 WEST RIVER CENTER ROAD COMSTOCK PARK MI 49321 USA ","871 West River Center Road","Comstock Park","MI",49321,"YES","YES","DTCM",125,"No Restrictions"," Pallet Jack, Shrink wrap","Driver loads/unloads to tailgate","M-F 9:00AM - 2:00PM","Delivery best before 1:01","616-785-8771","616-785-8818","Chris Armstrong"]
[7,2,702,"Chicago","Detroit","702-Detroit","Brinks, Inc.","20_13_49544","3380 THREE MILE ROAD GRAND RAPIDS MI 49544 USA ","3380 Three Mile Road","Grand Rapids","MI",49544,"YES","YES","GRRB",110,"No Restrictions","Fork Lift,  Pallet Jack, Shrink wrap","Driver loads/unloads to tailgate.","M-F 8:00AM - 4:00PM","Delivery best before 1:00","616-735-3942 x-224","616-735-3664","Jessica McClure"]
[10,1,1001,"Kansas City","Kansas City","1001-Kansas City","Rochester Armored Car Co.","20_13_50321","2500 BELL AVENUE DES MOINES IA 50321 USA ","2500 Bell Avenue","Des Moines","IA",50321,"YES","YES","DSML",220,"No Restrictions","Fork Lift,  Pallet Jack, Shrink wrap","Drive dock-load and unload","M-F 5:00AM - 7:00PM","None","515-243-7179","515-282-2017","John Nikell"]
[10,1,1001,"Kansas City","Kansas City","1001-Kansas City","Rochester Armored Car Co.","20_13_52244","92 COMMERCIAL DRIVE IOWA CITY IA 52244 USA ","92 Commercial Drive","Iowa City","IA",52244,"YES","YES","IOCL",70,"No Restrictions","Fork Lift,  Pallet Jack, Shrink wrap","Drive dock-load and unload","M-F 7:00AM - 2:00PM","Non-adjustable dock plate","319-351-5466","319-351-5832","Paul Slaymaker"]
[7,1,701,"Chicago","Chicago","701-Chicago","Brinks, Inc.","20_13_52802","1704 WEST 2ND STREET DAVENPORT IA 52802 USA ","1704 West 2nd Street","Davenport","IA",52802,"YES","YES","MLIB",90,"No Restrictions","Fork Lift,  Pallet Jack","Driver loads/unloads to tailgate.","M-F 9:00AM - 4:00PM","Special arrangements can be made to hold dock open later.","563-322-1688","563-322-3246","Ralph Lake II or Mike Ortiz"]
[7,1,701,"Chicago","Chicago","701-Chicago","Garda","20_13_52804","17040 215TH STREET DAVENPORT IA 52804 USA ","17040 215th Street","Davenport","IA",52804,"YES","YES","MLIU",80,"No Restrictions","Fork Lift, Shrink wrap","Drive dock-load and unload","M-F 10:00AM - 2:00PM","Special arrangements can be made to hold dock open later.","563-386-2540","563-386-6289","John Luedtke or Michelle Kaster"]
[7,1,701,"Chicago","Chicago","701-Chicago","Loomis","20_13_53218B","5920 BENDER COURT MILWAUKEE WI 53218 USA ","5920 Bender Court","Milwaukee","WI",53218,"YES","YES","CHLM",450,"No Restrictions","Fork Lift,  Pallet Jack","Drive dock-load and unload","M-F 8:00AM - 2:00PM","Circulated coin must be shrink wrapped","414.462.9162","414.481.2230","Nathan Kirchhoff or Josh Bernier"]
[7,1,701,"Chicago","Chicago","701-Chicago","Garda","20_13_54115","STE103B 2001 LAWRENCE DRIVE DE PERE WI 54115 USA ","2001 Lawrence Dr., Suite 103B","Depere","WI",54115,"YES","YES","GRBA",60,"No Restrictions","Fork Lift","Driver loads/unloads to tailgate.","M-F 8:00AM - 5:00PM","None","920-983-8083","920.983.8103","Phil Tritabaugh"]
[7,1,701,"Chicago","Chicago","701-Chicago","Loomis","20_13_54303","1232 ELIZABETH STREET GREEN BAY WI 54302 USA ","1232 Elizabeth Street","Green Bay","WI",54302,"YES","YES","GRBB",156,"No Restrictions","Fork Lift","Drive dock-load and unload","M-F 8:00AM - 4:00PM","No dock to back up to; fork lift must unload truck","920-435-5910","920-435-5912","Ryan Nelson or Chris Kantelberg"]
[9,1,901,"Minneapolis","Minneapolis","901-Minneapolis","Loomis","20_13_55106","999 EAST 7TH STREET SAINT PAUL MN 55106 USA ","999 East 7th Street","St. Paul","MN",55106,"YES","YES","MINL",352,"Width- 12' 1\", Height- 14' 3\"","Forklifts, Pallet Jacks, Shrink Wrap","Tailgate","M-F 5:00AM - 3:00PM","N.A.","651-645-8063","651-774-1989","Johnathan Brandon"]
[9,1,901,"Minneapolis","Minneapolis","901-Minneapolis","Garda","20_13_55114","527 ALDINE AVE SAINT PAUL MN 55104 USA ","527 Aldine Avenue","St. Paul","MN",55104,"YES","YES","MINA",212,"No Restrictions","Fork Lift,  Pallet Jack","Drive dock-load and unload","M-F 7:00AM - 3:00PM","Single stacked pallets","651-523-6776","651-644-5266","Scott Ward"]
[9,1,901,"Minneapolis","Minneapolis","901-Minneapolis","Federal Reserve Bank","20_13_55401","90 HENNEPIN AVENUE MINNEAPOLIS MN 55480 USA ","90 Hennepin Ave","Minneapolis","MN",55480,"YES","YES","MINN",917,"14' X 70'","Pallet Jack","Drive dock-load and unload to/from transfer room","M-F 7:30AM - 3:30PM","None","612-204-5244","888-297-6031","Todd Keckhafer"]
[9,1,901,"Minneapolis","Minneapolis","901-Minneapolis","Brinks, Inc.","20_13_55427","830 BOONE AVENUE NORTH GOLDEN Valley MN 55427 USA ","830 Boone Ave North","Golden Valley","MN",55427,"YES","YES","MPLB",300,"No Restrictions","Fork Lift,  Pallet Jack, Shrink wrap","Drive dock-load and unload","M-F 9:00AM - 4:30PM","None","763-486-1730","763-486-1736","Truman Tabor"]
[9,1,901,"Minneapolis","Minneapolis","901-Minneapolis","Rochester Armored Car Co.","20_13_57101","826 N. WEBER AVE SIOUX FALLS SD 57101 USA ","826 N. Weber Ave","Sioux Falls","SD",57101,"YES","YES","FSDR",132,"No Restrictions","Fork Lift,  Pallet Jack","Driver loads/unloads to tailgate","M-F 8:00AM - 4:00PM","None","605-335-3220","605-335-2779","Neil Benally"]
[9,1,901,"Minneapolis","Minneapolis","901-Minneapolis","Rochester Armored Car Co.","20_13_57702","2340 DEADWOOD AVE SUITE P RAPID CITY SD 57702 USA ","2340 Deadwood Ave Suite P","Rapid City","SD",57702,"YES","YES","RAPR",45,"No dock","Fork Lift,  Pallet Jack","Driver loads/unloads to tailgate.","M-F 6:00AM - 3:00PM","None","605-342-6256","605-394-3665","Paul Cameron"]
[9,1,901,"Minneapolis","Minneapolis",{"$f":"C49&\"-\"&E49","v":"901-Minneapolis"},"Rochester Armored Car Co.","20_13_58102","1414 39TH ST. N.W. FARGO ND 58102 USA ","1414 39th St. N.W.","Fargo","ND",58102,"YES","YES","FNDR",40,"No Restrictions","Fork Lift,  Pallet Jack","Driver loads/unloads to tailgate","M-F 6:00AM - 4:00PM","None","701-237-0045","701-281-1032","Tracie Lundon"]
[9,2,902,"Minneapolis","Helena","902-Helena","Federal Reserve Bank","20_13_59601A","100 NEILL AVE. HELENA MT 59601 USA ","100 Neill Avenue","Helena ","MT",59601,"YES","YES","HELN",320,"Inside Garage Entry: Height - 13 10\", Width - 12', Length - 29\"  Outside Loading Dock - No restrictions","Pallet Jack","Drive dock-load and unload to/from transfer room","M-F 8:00AM - 2:00PM","None","406-447-3938","406-447-3932","Diane Keltz"]
[9,2,902,"Minneapolis","Helena","902-Helena","Garda","20_13_59601B","2500 N. COOKE HELENA MT 59601 USA ","2500 N. Cooke","Helena ","MT",59601,"YES","YES","HLNS",127,"No Restrictions","Fork Lift,  Pallet Jack","Driver loads and unloads from the dock","M-F 6:00AM - 4:00PM","using forklift, driver unloads coin into terminal from semi.","406-443-3353","406-442-7330","Wanda Douglas"]
[9,2,902,"Minneapolis","Helena","902-Helena","Grizzly Armored Express","20_13_59901","1050 HUSKY STREET KALISPELL MT 59901 USA ","1050 Husky St.","Kalispell","MT",59901,"YES","YES","FCAG",54,"16' H x 14' W garage door","Fork Lift,  Pallet Jack","Driver loads and unloads from the dock","M-F 8:30AM - 5:00PM",null,"406-756-5949","406-755-5958","Marla Richmond"]
[7,1,701,"Chicago","Chicago","701-Chicago","Garda","20_13_60153A","2500 S. 25TH AVE BROADVIEW IL 60153 USA ","2500 S. 25th Ave","Broadview","IL",60153,"YES","YES","CHIA",500,"dock is 13' 8\"","All Equipment Provided","Drive dock-load and unload","M-F 9:00AM - 2:00PM",null,"224 -478 -5169","708.345.2737","Lawrence Fitzpatrick"]
[7,1,701,"Chicago","Chicago","701-Chicago","Loomis","20_13_60527","8100 SOUTH MADISON BURR RIDGE IL 60527 USA ","8100 South Madison","Burr Ridge","IL",60527,"YES","YES","CHIL",100,"No Restrictions","Fork Lift,  Pallet Jack, Shrink wrap","Driver loads/unloads to tailgate.","M-F 9:00AM - 1:00PM","None","630.560.3858",null,"Chris Sulzner"]
[7,1,701,"Chicago","Chicago","701-Chicago","Brinks, Inc.","20_13_60612","919 SOUTH CALIFORNIA AVE CHICAGO IL 60612 USA ","919 S. California Ave. ","Chicago","IL",60612,"YES","YES","CHIB",300,"No Restrictions","All Equipment Provided","Driver loads/unloads to tailgate.","M-F 8:00AM - 4:00PM","Special arrangements can be made to hold dock open later.","773-475-2710 or 2699","773-475-2713","Clendora Glover Sebastian Merchut"]
[7,1,701,"Chicago","Chicago","701-Chicago","Davis Bancorp","20_13_60623","2100 SOUTH SAWYER STREET CHICAGO IL 60623 USA ","2100 South Sawyer Street","Chicago","IL",60623,"YES","YES","CHIV",638,"53'trailers","All Equipment Provided","Drive dock-load and unload","M-F 7:00AM - 2:00PM","Special arrangements can be made to hold dock open later.","847-998-9000 x4465","773-762-3855","Andrea Lopez"]
[7,1,701,"Chicago","Chicago","701-Chicago","Federal Reserve Bank","20_13_60632","230 SOUTH LASALLE STREET CHICAGO IL 60604 USA ","230 S. Lasalle Street","Chicago","IL",60604,"YES","YES","CHIC",0,"Coin shipments are not delivered to the Bank","Pallet Jack","Driver loads and unloads from the dock","N/A","None","313-964-6118","313-964-6046","Amy Collins"]
[7,1,701,"Chicago","Chicago","701-Chicago","Dunbar Armored","20_13_60651","4500 WEST CHICAGO AVENUE CHICAGO IL 60651 USA ","4500 W. Chicago Ave","Chicago","IL",60651,"YES","YES","CHID",195,"No Restrictions","Pallet Jack","Driver loads/unloads to tailgate.","M-F 8:00AM - 2:00PM","None","773-276-2528","773-276-4771","Aida Perez or Hector Hernandez"]
[7,1,701,"Chicago","Chicago","701-Chicago","Brinks, Inc.","20_13_61604","6200 WEST PLANK ROAD BELLEVUE IL 61604 USA ","6200 West Plank Road","Bellevue","IL",61604,"YES","YES","PIAB",60,"No Restrictions","All Equipment Provided","Driver loads/unloads to tailgate.","M-F 9:00AM - 2:00PM","Special arrangements can be made to hold dock open later.","309-697-5050 option #5","309-697-9589","Mike Odell/David Hill "]
[7,1,701,"Chicago","Chicago","701-Chicago","Brinks, Inc.","20_13_62707","2930 GRANGER DRIVE SPRINGFIELD IL 62707 USA ","2930 Granger Drive","Springfield","IN",62707,"YES","YES","SPIB",40,"No Restrictions","Fork Lift,  Pallet Jack","Drive dock-load and unload","M-F 9:00AM - 3:00PM","Special arrangements can be made to hold dock open later.","217.522.0932","217.522.0932","Chris Kirk or Lisa Leaser"]
[8,1,801,"St. Louis","St. Louis","801-St. Louis","Loomis","20_13_63045","1 Moxie Place Earth City MO, 63045","1 Moxie Place","Earth City","MO",63045,"YES","YES","STLL",100,"Building is so small that all tractor trailer trucks are in the carriers drive way.  Only normal sized armored trucks can fit through bay opening.","Fork lift, pallet jack (to move pallets to tailgate) and shrink wrap","To tailgate","M-F 8:30AM - 1:30PM","Employees unload coin from tailgate using a forklift.  Since the truck is in the carriers driveway the carrier has two armed guards stationed at the truck.","314-835-9070","314-835-9070","Max Hubson"]
[8,1,801,"St. Louis","St. Louis","801-St. Louis","Federal Reserve Bank","20_13_63102A","1 FEDERAL RESERVE BANK PLAZA SAINT LOUIS MO 63102 USA ","1 Federal Reserve Bank Plaza ","St. Louis","MO",63102,"YES","YES","STLO",0,"FRB does have the dock capability","Pallet Jack","Carriers load/unload at carrier dock and travel down a freight elevator to the lower level transfer room.  ","M-F 7:45AM - 2:00PM","none","314-444-8876","314-444-8457","Angie Harter"]
[8,1,801,"St. Louis","St. Louis","801-St. Louis","Garda","20_13_63102B","1022 SOUTH 9TH STREET SAINT LOUIS MO 63102 USA ","1022 South 9th Street","St. Louis","MO",63102,"YES","YES","STLS",240,"No Restrictions","Fork Lift,  Pallet Jack, Shrink wrap","Driver loads/unloads to tailgate.","M-F 8:30AM - 1:30PM","Trucks back into the carriers bay, there is no dock.  Employees operate fork lift and remove coin pallets from tailgate.","314-231-4030","314-436-3306","Jamie Stevens"]
[8,1,801,"St. Louis","St. Louis","801-St. Louis","Brinks, Inc.","20_13_63106","909 NORTH 18TH STREET SAINT LOUIS MO 63106 USA ","909 N. 18th Street","St. Louis","MO",63106,"YES","YES","STLB",150,"No Restrictions","Fork Lift,  Pallet Jack, Shrink wrap","Driver loads and unloads from the dock","M-F 8:30AM - 1:30PM","Trucks back up to dock in carrier bay.  If available, employees will remove the pallets from truck, otherwise driver will.","314-421-4448","314-421-5620","Denis Echele"]
[10,1,1001,"Kansas City","Kansas City","1001-Kansas City","Loomis","20_13_64150","300 NW PARKWAY RIVERSIDE MO 64150 USA ","300 NW Parkway","Riverside","MO",64150,"YES","YES","KANL",107,"No Restrictions","Fork Lift,  Pallet Jack, Shrink wrap","Driver loads and unloads from the dock","M-F 9:00AM - 1:00PM","None","816-505-7412","816-587-7441","Doug Cooper"]
[10,1,1001,"Kansas City","Kansas City","1001-Kansas City","Federal Reserve Bank","20_13_64198","1 MEMORIAL DRIVE KANSAS CITY MO 64198 USA ","1 Memorial Drive ","Kansas City","MO",64198,"YES","YES","KANS",1400,"Standard semi-capable","Fork lift, pallet jack, and shrink wrap.","Driver loads/unloads at tailgate","M-F 8:00am-2:00pm","Driver must be able to operate forklift","816-881-2249","816-881-2151","Sandy O'Neal"]
[10,1,1001,"Kansas City","Kansas City","1001-Kansas City","Garda","20_13_66619","6534 SE JABARA STREET TOPEKA KS 66619 USA ","6534 SE Jabara Street","Topeka","KS",66619,"YES","YES","TOPP",150,"Standard semi-capability","All Equipment Provided","Drive dock-load and unload","M-F 10:00AM - 2:00PM","Dock plate must be manually inserted","785-267-9203","785-862-0089","Tony Traylor"]
[10,1,1001,"Kansas City","Kansas City","1001-Kansas City","Rochester Armored Car Co.","20_13_68101","3937 LEAVENWORTH STREET OMAHA NE 68105 USA ","3937 Leavenworth Street","Omaha","NE",68105,"YES","YES","OMAR",267,"No Restrictions","Fork Lift,  Pallet Jack, Shrink wrap","Drive dock-load and unload","M-F 5:00AM - 2:00PM","None","402-558-9901","402-898-3048","Mark Phillips"]
[6,5,605,"Atlanta","New Orleans","605-New Orleans","Loomis","20_13_70119","2600 POYDRAS STREET NEW ORLEANS LA 70119 USA ","2600 Poydras Street","New Orleans","LA",70119,"YES","YES","NORX",189,"No Restrictions","Fork Lift,  Pallet Jack","Driver loads/unloads to tailgate","M-F 9:00AM - Noon","None","504-822-0701","504-821-8031","Arely Paniagua"]
[6,5,605,"Atlanta","New Orleans","605-New Orleans","Grada","20_13_70130","933 ERATO STREET NEW ORLEANS LA 70130 USA ","933 Erato Street","New Orleans","LA",70130,"YES","YES","NORV",180,"No Restrictions","Fork Lift,  Pallet Jack","Driver loads/unloads on street","M-F 8:00AM - 2:00PM","None","504-581-3689","504-569-9162","Dexter Bourque"]
[6,5,605,"Atlanta","New Orleans","605-New Orleans","Federal Reserve Bank","20_13_70160","525 ST. CHARLES AVENUE NEW ORLEANS LA 70130 USA ","525 St. Charles Ave","New Orleans","LA",70130,"YES","YES","NORL",170,"No Restrictions","Fork Lift,  Pallet Jack, Shrink wrap","Drive dock-load and unload","M-F 7:30AM - 2:00PM","Carrier should arrive before 6:00 am to avoid street car traffic, loading dock is available.","504-593-3379","504-593-3218","Lionel Dupart"]
[8,4,804,"St. Louis","Memphis","804-Memphis","Loomis","20_13_71107","1124 FORUM DR SHREVEPORT LA 71107 USA ","1124 Forum Dr","Shreveport","LA",71107,"YES","YES","SHPL",120,"No Restrictions","Fork Lift,  Pallet Jack, Shrink wrap","Driver loads/unloads to tailgate.","M-F 9:00AM - 4:00AM","None","318-562-2302","318-424-8002","Barry Doyle"]
[8,4,804,"St. Louis","Memphis","804-Memphis","Garda","20_13_72202A","711 DAISY L GASTON BATES DRIVE LITTLE ROCK AR 72202 USA ","711 W. Daisy L. Gaston Bates Dr.","Little Rock","AR",72202,"YES","YES","LITA",60,"H 10 ft 3 in, W 12 ft.","Fork Lift,  Pallet Jack","Driver loads/unloads to tailgate.","M-F 8:00AM - 10:00AM","None","1-501-374-7500","1-501-374-9272","Julian Pacheco"]
[8,4,804,"St. Louis","Memphis","804-Memphis","Loomis","20_13_72202B","1300 SOUTH CHESTER STREET LITTLE ROCK AR 72202 USA ","1300 S. Chester St.","Little Rock","AR",72202,"YES","YES","ROWF",400,"H 13 ft. W 12 ft.","Fork Lift,  Pallet Jack","Driver loads/unloads to tailgate.","M-F 6:00-8:00 / 1:00-2:00","None","1-800-372-5502","1-501-975-2654","Christopher Runshe"]
[11,1,1101,"Dallas","Dallas","1101-Dallas","Brinks, Inc.","20_13_73111","2600 SHULL AVENUE OKLAHOMA CITY OK 73111 USA ","2600 Shull Avenue","Oklahoma City","OK",73111,"YES","YES","OKCB",130,"No Restrictions","Fork Lift,  Pallet Jack","Driver loads/unloads to tailgate.","M-F 8:00AM - 4:00PM","None","405-520-2305","405-419-2948","Garret Lovern"]
[11,1,1101,"Dallas","Dallas","1101-Dallas","Loomis","20_13_73117","1610 NE 4TH STREET OKLAHOMA CITY OK 73117 USA ","1610 NE 4th Street","Oklahoma City","OK",73117,"YES","YES","OKCL",195,"No Restrictions","Fork Lift,  Pallet Jack","Driver loads/unloads to tailgate.","M-F 8:00AM - 5:00PM","None","405-693-1635","405-272-9814","James Foster"]
[11,1,1101,"Dallas","Dallas","1101-Dallas","Brinks, Inc.","20_13_75062","2530 CENTURY LAKE DRIVE IRVING TX 75062 USA ","2530 Century Lake Dr","Irving","TX",75062,"YES","YES","DALB",470,"13.6 hgt - 9 w  -  75 long","Fork Lift,  Pallet Jack","Driver loads and unloads from the dock","M-F 9:00AM - Noon","None","972-819-1161","972-438-1645","Jacquelyn Schley / Narce Rivera"]
[11,1,1101,"Dallas","Dallas","1101-Dallas","Federal Reserve Bank","20_13_75201","2200 NORTH PEARL STREET DALLAS TX 75201 USA ","2200 North Pearl St","Dallas","TX",75201,"YES","YES","DALL",814,"13.6 hgt - 9 w  -  75 long","Pallet Jack, Shrink wrap","Drive dock-load and unload to/from transfer room","M-F 7:00AM - 2:00PM","None","214-922-6604","214-922-6825","Lisa McKenzie or Marco Cepeda"]
[11,1,1101,"Dallas","Dallas","1101-Dallas","Loomis","20_13_75208","1655 VILBIG ROAD DALLAS TX 75208 USA ","1655 Vilbig Rd","Dallas","TX",75208,"YES","YES","DALA",425,"13.6 hgt - 9 w  -  75 long","Fork Lift,  Pallet Jack","Driver loads/unloads to tailgate","M-F 9:00AM - 3:00PM","None","214-272-5632","800-310-1814","Ann Kral"]
[11,9,1101,"Dallas","Dallas","1101-Dallas","Rochester Armored Car Co.","20_13_79106","2205 NW 3RD AVENUE AMARILLO TX 79106","2205 NW 3rd Avenue","Dallas","TX",79106,"YES","YES","AMRA",75,"H 11 W 19","Fork Lift, Pallet Jack","Driver loads/unloads to tailgate ","M-F 8:00 AM - 5:00 PM","None","402-558-9323","806-374-3019","Blake Binder"]
[11,3,1103,"Dallas","Houston","1103-Houston","Federal Reserve Bank","20_13_77019","1801 ALLEN PARKWAY HOUSTON TX 77019 USA ","1801 Allen Parkway","Houston","TX",77019,"YES","YES","HOUS",1324,"No Restrictions","Fork Lift,  Pallet Jack","Driver loads/unloads to tailgate.","M-F 6:30AM - 1:00PM","Vehicles subject to search prior to backing up to dock","713-483-3636","713-483-3144","Jesse Perez"]
[11,3,1103,"Dallas","Houston",{"$f":"C82&\"-\"&E82","v":"1103-Houston"},"Garda","20_13_77023","2121 GULF CENTRAL DRIVE HOUSTON TX 77023 USA ","2121 Gulf Central Drive","Houston","TX",77023,"YES","YES","HOUG",126,"Load and unload outside; no restrictions","Fork Lift,  Pallet Jack","Driver loads/unloads to tailgate.","M-F 8:00AM - 3:00PM","load and unload outside","713-923-6300","713-923-9959","Dee Herrera"]
[11,3,1103,"Dallas","Houston","1103-Houston","Loomis","20_13_77051","9225 PARK SOUTH VIEW HOUSTON TX 77051 USA ","9225 Park South View","Houston","TX",77051,"YES","YES","HOUL",175,"Load and unload outside; no restrictions","Fork Lift,  Pallet Jack","Driver loads/unloads to tailgate.","M-F 9:00AM - 1:00PM","Vehicles subject to search prior to backing up to dock","713-227-0344","713-227-0476","Raynard Davis"]
[11,3,1103,"Dallas","Houston","1103-Houston","Brinks, Inc.","20_13_77054","220 FARISS HOUSTON TX 77054 USA ","220 Fariss","Houston","TX",77054,"YES","YES","HOUB",252,"Load and unload outside; no restrictions","Pallet jack, forklift","Brinks gives driver pallet jack to bring coin to tailgate","M-F 9:00AM - 3:00PM","Vehicles subject to search prior to backing up to dock","713-394-3700","713-394-3735","Sandra Green"]
[11,3,1104,"Dallas","Houston","1104-Houston","Loomis","20_13_78217","9555 Ball  STREET SAN ANTONIO TX 78217 USA ","9555 Ball  STREET SAN ANTONIO TX 78217 USA ","San Antonio","TX",78217,"YES","YES","SANL",130,"No Restrictions","Fork Lift,  Pallet Jack, Shrink wrap","Driver loads/unloads to tailgate.","M-F 9:00AM - 5:00PM","Vehicles subject to search prior to backing up to dock","210-800-2614","210-226-6581","Luis Mendiola"]
[11,3,1104,"Dallas","Houston","1104-Houston","Garda","20_13_78219B","914 PAULSUN STREET SAN ANTONIO TX 78219 USA ","914 Paulson Street","San Antonio","TX",78219,"YES","YES","SATA",180,"No Restrictions","Fork Lift,  Pallet Jack","Driver loads/unloads to tailgate.","M-F 9:00AM - 2:00PM","Vehicles subject to search prior to backing up to dock","210-222-8505 ext.130","210-222-2680","Rudy Duque"]
[11,3,1104,"Dallas","Houston","1104-Houston","Brinks, Inc.","20_13_78219C","1006 PAULSON STREET SAN ANTONIO TX 78219 USA ","1006 Paulson Street","San Antonio","TX",78219,"YES","YES","SATB",200,"No Restrictions","Fork Lift,  Pallet Jack, Shrink wrap","Driver loads/unloads to tailgate.","M-F 5:30AM - 3:00PM","Vehicles subject to search prior to backing up to dock","210-226-1700","210-226-9377","Ross Manti"]
[11,3,1104,"Dallas","Houston","1104-Houston","Dunbar Armored","20_13_78219D","1030 BRUSSELS STREET SAN ANTONIO TX 78219 USA ","1030 Brussels Street","San Antonio","TX",78219,"YES","YES","SATD",75,"No Restrictions","Fork Lift,  Pallet Jack","Driver loads/unloads to tailgate.","M-F 9:00AM - 2:00PM","Vehicles subject to search prior to backing up to dock","(210) 270-7523","210-222-1092","Cindy Nua"]
[11,3,1104,"Dallas","Houston","1104-Houston","Rochester Armored Car Co.","20_13_78577","1424 WEST POLK PHARR TX 78577 USA ","1424 West Polk","Pharr","TX",78577,"YES","YES","MFER",227,"No Restrictions","Fork Lift,  Pallet Jack, Shrink wrap","Driver loads/unloads to tailgate.","M-F 8:30AM - 3:30PM","Vehicles subject to search prior to backing up to dock","956-631-8825","956-631-8812","Robert  Garza"]
[11,2,1102,"Dallas","El Paso","1102-El Paso","Miracle Delivery Armored Service","20_13_79901","515 SOUTH KANSAS EL PASO TX 79901 USA ","515 S. Kansas","El Paso","TX",79901,"YES","YES","ELPM",55,"Height - 10' x 10'","Pallet Jack","Driver loads/unloads to tailgate","M-F 8:30AM - 2:00PM","No Restrictions","915-532-6959","915-532-8658","Albert Alderete"]
[11,2,1102,"Dallas","El Paso","1102-El Paso","Loomis","20_13_79924","5869 WAYCROSS AVENUE EL PASO TX 79905 USA ","5869 Waycross Ave. ","El Paso","TX",79905,"YES","YES","ELPL",200,"Height - 14' x 10'","Pallet Jack","Driver loads/unloads to tailgate","M-F 8:00AM - 1:00PM","Design of building is not suitable for semi-trucks to get inside building.","915-532-6109","915-532-3159","Adrian Choa"]
[11,2,1102,"Dallas","El Paso","1102-El Paso","Federal Reserve Bank","20_13_79999","301 EAST MAIN STREET EL PASO TX 79901 USA ","301 E. Main Street","El Paso","TX",79901,"YES","YES","EPAS",61,"Height - 12' x 12'","Pallet Jack","Driver loads/unloads to tailgate","M-F 7:00AM - 2:00PM","Semi-Trucks can't get inside the Security court.","915-521-5266","915-521-5283","Steve Ramirez"]
[10,2,1002,"Kansas City","Denver","1002-Denver","Loomis","20_13_80011","STE20 17650 EAST 32ND PLACE AURORA CO 80011 USA ","17650 E 32nd Place Ste 20","Aurora","CO",80011,"YES","YES","DENL",300,"9' wide x 10' high","Fork Lift,  Pallet Jack, Shrink wrap","Onsite employees load/unload","M-F 8:00AM - 5:30PM","None","303-214-1606","303-214-1631","Amy Asevedo"]
[10,2,1002,"Kansas City","Denver","1002-Denver","Federal Reserve Bank","20_13_80217","1020 16TH STREET DENVER CO 80202 USA ","1020 16th Street","Denver","CO",80202,"YES","YES","DENV",865,"10' wide x 14' high","Fork Lift,  Pallet Jack, Shrink wrap","Drive dock-load and unload to/from transfer room","M-F 6:00AM - 3:00PM","Transfer room and Dock are on 2 different floors.  Driver must be able to operate a forklift.","303-572-2548","303-572-2574","Alexander St Bernard"]
[12,4,1204,"San Francisco","Salt Lake City","1204-Salt Lake City","Loomis","20_13_83706","5677 BETHEL STREET BOISE ID 83706 USA ","5677 Bethel Street","Boise","ID",83706,"YES","YES","BOIL",77,"Tractor trailors park outside and coin is shuttled to transfer room.","Fork Lift,  Pallet Jack, Shrink wrap","Driver loads/unloads to tailgate","M-F 9:00am - 3:00pm","None","208-571-8727","208-376-8780","Jeremiah Massey"]
[12,4,1204,"San Francisco","Salt Lake City","1204-Salt Lake City","Loomis","20_13_84104","2535 WEST CALIFORNIA AVENUE SALT LAKE CITY UT 84104 USA ","2535 W. California Ave.","Salt Lake City","UT",84104,"YES","YES","SLCW",130,"Tractor trailors park inside and coin is shuttled to transfer room.","Fork Lift,  Pallet Jack, Shrink wrap","Driver loads/unloads to tailgate","M-F 9:00am - 12:30pm","None","801-736-0200","801-972-1886","Ap Boongrataung"]
[12,4,1204,"San Francisco","Salt Lake City","1204-Salt Lake City","Federal Reserve Bank","20_13_84111","120 SOUTH STATE STREET SALT LAKE CITY UT 84111 USA ","120 S. State Street","Salt Lake City","UT",84111,"YES","YES","SALK",260,"Tractor trailors park outside and coin is shuttled to basement / transfer room.","Fork Lift,  Pallet Jack, Shrink wrap","Driver loads/unloads to tailgate","M-F 7:00AM - Noon","None","801-322-7814","801-322-7845","Steve Seal"]
[12,6,1206,"San Francisco","Phoenix","1206-Phoenix","Brinks, Inc.","20_13_85019A","3660 W. THOMAS ROAD PHOENIX AZ 85019 USA ","3660 W. Thomas Rd","Phoenix","AZ",85019,"YES","YES","PHXB",250,"No Restrictions","Pallet Jack","Driver loads/unloads to tailgate","M-F 7:00AM - 5:00PM","None","602-442-7227","602-442-7257","Leonard Saurez"]
[12,6,1206,"San Francisco","Phoenix",null,"BofA Phoenix CO Garda Tempe","20_13_85034","2070 SOUTH 16TH STREET PHOENIX AZ 85034 USA ","2070 South 16th Street","Phoenix","AZ",85034,"YES","YES","PHTG",null,"No Restrictions","Fork Lift","Driver loads/unloads to transfer room","M-F 9:00AM - 4:00PM","No dock to back up to; fork lift must unload truck","602 252-4647","602 256-9248","Nyle Yazzie / Chad Hall"]
[12,6,1206,"San Francisco","Phoenix",{"$f":"C100&\"-\"&E100","v":"1206-Phoenix"},"Federal Reserve Bank","20_13_85043","1550 NORTH 47TH AVENUE PHOENIX AZ 85043 USA ","1550 North 47th Ave","Phoenix","AZ",85043,"YES","YES","PHXP",1371,"No Restrictions","Fork Lift,  Pallet Jack","Drive dock-load and unload to/from transfer room","M-F 7:00-11:00 / 12:00-2:00","None","602-477-7751","602-477-7825","Regina Murphy"]
[12,6,1206,"San Francisco","Phoenix",{"$f":"C101&\"-\"&E101","v":"1206-Phoenix"},"Loomis","20_13_85282","849 W. 24TH STREET TEMPE AZ 85282 USA ","849 W. 24th St","Tempe","AZ",85282,"YES","YES","PHXL",184,"No Restrictions","Fork Lift,  Pallet Jack","Driver loads/unloads to tailgate","M-F 7:00AM - 2:00PM","None","480--612-6195 or 480-612-6194","480-557-6730","Clarissa Lopez"]
[11,2,1102,"Dallas","El Paso",{"$f":"C102&\"-\"&E102","v":"1102-El Paso"},"Brinks, Inc.","20_13_87106","3900 VASSER DRIVE, NE #B ALBUQUERQUE NM 87107 USA ","3900 Vassar Drive N.E. #B","Albuquerque","NM",87107,"YES","YES","ABQB",120,"Height - 12' x 10'","Pallet Jack","Driver loads/unloads to tailgate","M-F 8:00AM - 2:00PM","Pull up and unload outside bldg.","505-883-4916","505-881-4409","Jessica Crook"]
[12,2,1202,"San Francisco","Los Angeles",{"$f":"C103&\"-\"&E103","v":"1202-Los Angeles"},"Loomis","20_13_89104B","3370 PALM PARKWAY LAS VEGAS NV 89104 USA ","3370 Palm Pkwy","Las Vegas","NV",89104,"YES","YES","LASL",254,"Unload/load at door-no entry","Fork Lift,  Pallet Jack","Driver loads/unloads to tailgate.","M-F 6:00AM - 2:00PM","24 hour notice prior to delivery","702-207-0135 or 0138","702-457-7804","Hugo Perla"]
[12,2,1202,"San Francisco","Los Angeles",null,"BofA Las Vegas CO Garda","20_13_89104C","1685 SOUTH PALM STREET LAS VEGAS NV 89104 USA ","1685 South Palm Street","Las Vegas","NV",89104,"YES","YES","LSVG",null,"No Restrictions","Fork Lift,  Pallet Jack","Driver loads/unloads to tailgate.","M-F 9:00AM - 4:00PM","24 hour notice prior to delivery","702-207-8528","702-207-8533","Grachelle Brooks"]
[12,1,1201,"San Francisco","San Francisco",{"$f":"C105&\"-\"&E105","v":"1201-San Francisco"},"Loomis","20_13_89502","4904 AMPERE WAY RENO NV 89502 USA ","4904 Ampere Way","Reno","NV",89502,"YES","YES","RNOL",113,"Coin comes from SF vault","Pallet Jack","Driver loads and unloads from the dock","N/A","None","775-200-0130","775-857-6808","Dale Johnson"]
[12,2,1202,"San Francisco","Los Angeles","1202-Los Angeles","Federal Reserve Bank","20_13_90015","950 S. GRAND AVE. LOS ANGELES CA 90015 USA ","950 S. Grand Ave","Los Angeles","CA",90015,"YES","YES","LAGS",968,"Ht.13 ft 6 in/Length 72 feet","Pallet Jack, Shrink wrap","Drive dock-load and unload to/from transfer room","M-F 5:30AM - 2:00PM","24 hour notice prior to delivery","213-683-2337","213-683-2367","Jose M. Gonzalez"]
[12,2,1202,"San Francisco","Los Angeles","1202-Los Angeles","Sectran Security, Inc.","20_13_90060","7633 INDUSTRY AVE. PICO RIVERA CA 90660 USA ","7633 Industry Ave","Pico Rivera","CA",90660,"YES","YES","LASS",106,"Ht.10 ft/Length 72 feet","Fork Lift","Driver loads/unloads to tailgate.","M-F 5:30AM - 2:00PM","24 hour notice prior to delivery","562-948-1446 Ext.17 or 19","562-949-4327","Rony Ghaby/Darius Barfatani"]
[12,2,1202,"San Francisco","Los Angeles","1202-Los Angeles","Loomis","20_13_91761","1375 EAST ACACIA BLVD. ONTARIO CA 91761 USA ","1375 East Acacia Blvd.","Ontario","CA",91761,"YES","YES","LALF",236,"13 ft. /Length 72 feet/Ramp available","Fork Lift,  Pallet Jack","Driver loads/unloads to tailgate.","M-F 10:00AM - 2:00PM","24 hour notice prior to delivery","909-947-9797","909-947-3998","Gunther Johnston or Hugo Perla"]
[12,2,1202,"San Francisco","Los Angeles","1202-Los Angeles","Garda","20_13_90040","4901 ZAMBRANO STREET COMMERCE CA 90040 USA ","4901 Zambrano Street Commerce ","Commerce","CA",90040,"YES","YES","LAAT",275,"Unload/load at door-no entry","Fork Lift,  Pallet Jack","Driver loads/unloads to tailgate.","M-F 6:30AM - 3:00PM","24 hour notice prior to delivery","213-330-1004 ext 578132","213 345 2466 ","Loreen Ha-Ida Baker"]
[12,1,1201,"San Francisco","San Francisco","1201-San Francisco","Federal Reserve Bank","20_13_94105","101 MARKET STREET SAN FRANCISCO CA 94105 USA ","101 Market Street","San Francisco","CA",94105,"YES","YES","SFAO",1000,"No Restrictions","Fork Lift,  Pallet Jack","Drive dock-load and unload to/from transfer room","M-F 6:00AM - 2:00PM","None","415-974-3213","415-974-3383","Jennifer Sturtevant"]
[12,1,1201,"San Francisco","San Francisco","1201-San Francisco","Garda","20_13_94607A","725 85TH AVE. SUITE A OAKLAND CA 94621 USA ","725 - 85th Ave., Suite A","Oakland","CA",94621,"YES","YES","OAKA",220,"No Restrictions","Fork Lift,  Pallet Jack","Driver loads/unloads to tailgate","M-F 7:30AM - 3:30PM","None","707-310-9803","510-451-4574","Vince Clagg"]
[12,1,1201,"San Francisco","San Francisco","1201-San Francisco","Loomis","20_13_95035","897 WRIGLEY  WAY MILPITAS, CA 95035 USA","897 Wrigley Way","Milpitas","CA",95035,"YES","YES","SFLS",226,"No Restrictions","Fork Lift,  Pallet Jack","Driver loads/unloads to tailgate","M-F 8:30AM - 4:00PM","None","408-273-1101","408 941-9671","Robert Colgin"]
[12,5,1205,"San Francisco","Seattle","1205-Seattle","BofA Portland CO Garda","20_13_97203","4810 NORTH LAGOON SUITE 500 PORTLAND OR 97203 USA ","4810 North Lagoon Suite 500","Portland","OR",97203,"YES","YES","PORG",50,"No Restrictions","Fork Lift,  Pallet Jack","Driver loads/unloads to tailgate.","M-F 10:00AM - 5:00PM","Must ave advanced notification to open gates","503 240-0900 ex 486170 or 486113","503 240-0999","Hanson, Connie or Teria Wampler"]
[12,5,1205,"San Francisco","Seattle","1205-Seattle","Brinks, Inc.","20_13_97217A","8517 N. ALBINA AVENUE PORTLAND OR 97217 USA ","8517 N. Albina Avenue","Portland","OR",97217,"YES","YES","PORB",125,"If over 53', can unload at street and move coin in truck bay with forklift. 48' may have trouble negotiating the driveway","Fork Lift,  Pallet Jack","Driver loads/unloads to tailgate.","M-F 7:00AM - 2:00PM","Loads must arrive between 7AM & 1 PM, 24 hour prior notification required ","360.518.5055","503.283.0255","Julie Ward"]
[12,5,1205,"San Francisco","Seattle","1205-Seattle","Loomis","20_13_97217B","6645 NORTH ENSIGN STREET PORTLAND OR 97214 USA ","6645 North Ensign Street","Portland","OR",97214,"YES","YES","PORL",430,"Door Height 12'; width 9', may need to have truck back up against door opening and offload coin from that point.","Fork Lift,  Pallet Jack","Driver loads/unloads to tailgate.","M-F 7:00AM - 2:00PM","Delivery only between 9AM & 2PM","503.232.2825","503-235-3401","Ed White"]
[12,5,1205,"San Francisco","Seattle","1205-Seattle","Federal Reserve Bank","20_13_98057","2700 NACHES AVE, SW RENTON WA 98057 USA ","2700 Naches Ave  SW","Renton","WA",98057,"YES","YES","SEAT",650,"No Restrictions","Fork Lift,  Pallet Jack","Driver loads and unloads from the dock","M-F 7:00AM - 2:00PM","Manditory notification to Police Services prior to delivery, and the delivery must be received prior to 2 PM","425-203-0827","425-203-0724","David DeChand"]
[12,5,1205,"San Francisco","Seattle",null,"BofA Seattle CO Garda","20_13_98057A","2985 NACHES AVE, SW RENTON WA 98057 USA ","2985 NACHES AVE SW","Renton","WA",98057,"YES","YES",null,50,"42' Tractor Trailer or smaller","Fork Lift,  Pallet Jack","Driver loads/unloads to tailgate.","M-F 7:00AM - 5:00PM","Must ave advanced notification to open gates","206 639-7510","425 271-2051","Kelly Mettler"]
[12,5,1205,"San Francisco","Seattle",{"$f":"C118&\"-\"&E118","v":"1205-Seattle"},"Loomis","20_13_98134C","5200 EAST MARGINAL WAY SEATTLE WA 98134 USA ","5200 East Marginal Way","Seattle","WA",98134,"YES","YES","SEAL",250,"No Restrictions","Fork Lift,  Pallet Jack","Driver loads and unloads from the dock","M-F 7:00AM - 3:00PM","24 hour notice prior to delivery, delivery only between 7AM & 3PM","206.762.2141","206.762.1220","Meng Mang"]
[12,5,1205,"San Francisco","Seattle",{"$f":"C119&\"-\"&E119","v":"1205-Seattle"},"Loomis","20_13_99217","6202 N. FREYA SPOKANE WA 99217 USA ","6202 N. Freya","Spokane","WA",99217,"YES","YES","GEGL",100,"No Restrictions","Fork Lift,  Pallet Jack","Driver loads/unloads to tailgate.","M-F 6:00AM - 2:00PM","Delivery best before Noon","509 532-2911","509 536-8155","Tanda Gunderson"]
[null,null,null,null,null,null,null,"20_13_80239_CWID","4940 PARIS STREET, DENVER, CO, 80239, USA ","4940 PARIS STREET"," DENVER"," CO",80239,null,null,"CWID"]
[null,null,null,null,null,null,null,"20_13_75220_CWDA","STE300 10760 SHADY TRAIL, DALLAS ,TX ,75220, USA ","STE300 10760 SHADY TRAIL"," DALLAS ","TX ",75220,null,null,"CWDA"]
[null,null,null,null,null,null,null,"20_13_90040_CWLA","4901 ZAMBRANO STREET, LOS ANGELES, CA, 90040, USA ","4901 ZAMBRANO STREET"," LOS ANGELES"," CA",90040,null,null,"CWLA"]
[null,null,null,null,null,null,"Loomis","20_13_33172A","3301 NW 97th AVENUE DORAL FLORIDA 33172","3301 NW 97th Ave","Doral ","FL",33172,"Yes","NO","MIAV",0,"No Restrictions","Fork lift, pallet jack (to move pallets to tailgate) and shrink wrap",null,"M-F 9:00AM - 2:00PM","None",3054317317]

{"sheet":"CWID SHIPMENT LANES ","index":4,"n_rows":79,"n_cols":25,"rows_kept":79,"cut":false,"hidden":false,"merged":[[0,0,0,6]]}
["MINOR COIN SHIPMENT LANES FROM COINWRAP DENVER, CO - CWID (TPI CUSTOMER ID: USM-20-12-CO)"]
["District Number","Office Number","FRB Office ID","District","Office",null,"Name","TPI Hub Id","TPI Hub Address","Address","City","State","Zip Code","Active","Mint Site","Mint Code","Pallet Capacity","Truck Restrictions","Equipment Provided","Driver Loads/Unloads","Dock Hours","Other restrictions","Phone#","FAX#","Contact Name"]
[11,2,1102,"Dallas","El Paso",{"$f":"C3&\"-\"&E3","v":"1102-El Paso"},"Brinks, Inc.","20_13_87106"," 3900 VASSER DRIVE, NE# B ALBUQUERQUE NM 87107 USA ","3900 Vassar Drive N.E. #B","Albuquerque","NM",87107,"YES","YES","ABQB",120,"Height - 12' x 10'","Pallet Jack","Driver loads/unloads to tailgate","M-F 8:00AM - 2:00PM","Pull up and unload outside bldg.","505-883-4916","505-881-4409","Jessica Crook"]
[12,4,1204,"San Francisco","Salt Lake City",{"$f":"C4&\"-\"&E4","v":"1204-Salt Lake City"},"Loomis","20_13_83706","5677 BETHEL STREET BOISE ID 83706 USA ","5677 Bethel Street","Boise","ID",83706,"YES","YES","BOIL",77,"Tractor trailors park outside and coin is shuttled to transfer room.","Fork Lift,  Pallet Jack, Shrink wrap","Driver loads/unloads to tailgate","M-F 9:00am - 3:00pm","None","208-571-8727","208-376-8780","Jeremiah Massey"]
[7,1,701,"Chicago","Chicago","701-Chicago","Garda","20_13_60153A","2500 S. 25TH AVE BROADVIEW IL 60153 USA ","2500 S. 25th Ave","Broadview","IL",60153,"YES","YES","CHIA",500,"dock is 13' 8\"","All Equipment Provided","Drive dock-load and unload","M-F 9:00AM - 2:00PM",null,"224-478-5169","708.345.2737","Lawerce Fritzpatrick "]
[7,1,701,"Chicago","Chicago","701-Chicago","Brinks, Inc.","20_13_60612","919 SOUTH CALIFORNIA  CHICAGO IL 60612 USA ","919 S. California","Chicago","IL",60612,"YES","YES","CHIB",300,"No Restrictions","All Equipment Provided","Driver loads/unloads to tailgate.","M-F 8:00AM - 4:00PM","Special arrangements can be made to hold dock open later.","773-475-2710 or 2699","773-475-2713","Clendora Glover/Sebastian Murchut"]
[7,1,701,"Chicago","Chicago","701-Chicago","Federal Reserve Bank","20_13_60632","230 S LASALLE STREET CHICAGO IL 60604 USA ","230 S. Lasalle Street","Chicago","IL",60604,"YES","YES","CHIC",0,"Coin shipments are not delivered to the Bank","Pallet Jack","Driver loads and unloads from the dock","N/A","None","313-964-6118","313-964-6046","Amy Collins "]
[7,1,701,"Chicago","Chicago","701-Chicago","Dunbar Armored","20_13_60651","4500 W CHICAGO AVENUE CHICAGO IL 60651 USA ","4500 W. Chicago Ave","Chicago","IL",60651,"YES","YES","CHID",195,"No Restrictions","Pallet Jack","Driver loads/unloads to tailgate.","M-F 8:00AM - 2:00PM","None","773-276-2528","773-276-4771","Aida Perez or Hector Hernandez"]
[7,1,701,"Chicago","Chicago","701-Chicago","Loomis","20_13_60527","8100 SOUTH MADISON BURR RIDGE IL 60527 USA ","8100 South Madison","Burr Ridge","IL",60527,"YES","YES","CHIL",100,"No Restrictions","Fork Lift,  Pallet Jack, Shrink wrap","Driver loads/unloads to tailgate.","M-F 9:00AM - 1:00PM","None","630.560.3858",null,"Chris Sulzner"]
[7,1,701,"Chicago","Chicago","701-Chicago","Davis Bancorp","20_13_60623","2100 SOUTH SAWYER STREET CHICAGO IL 60623 USA ","2100 South Sawyer Street","Chicago","IL",60623,"YES","YES","CHIV",638,"53'trailers","All Equipment Provided","Drive dock-load and unload","M-F 7:00AM - 2:00PM","Special arrangements can be made to hold dock open later.","847-998-9000 x4465","773-762-3855","Andrea Lopez"]
[7,1,701,"Chicago","Chicago","701-Chicago","Loomis","20_13_53218B","5920  BENDER COURT MILWAUKEE WI 53218 USA ","5920 Bender Court","Milwaukee","WI",53218,"YES","YES","CHLM",450,"No Restrictions","Fork Lift,  Pallet Jack","Drive dock-load and unload","M-F 8:00AM - 2:00PM","Circulated coin must be shrink wrapped","414.462.9162","414.481.2230","Nathan Kirchhoff or Josh Bernier"]
[11,1,1101,"Dallas","Dallas","1101-Dallas","Federal Reserve Bank","20_13_75201","2200 NORTH PEARL DALLAS TX 75201 USA ","2200 North Pearl St","Dallas","TX",75201,"YES","YES","DALL",814,"13.6 hgt - 9 w  -  75 long","Pallet Jack, Shrink wrap","Drive dock-load and unload to/from transfer room","M-F 7:00AM - 2:00PM","None","214-922-6604","214-922-6825","Lisa McKenzie or Marco Cepeda"]
[11,9,1101,"Dallas","Dallas","1101-Dallas","Rochester Armored Car Co.","20_13_79106","2205 NW 3RD AVENUE AMARILLO TX 79106","2205 NW 3rd Avenue","Dallas","TX",79106,"YES","YES","AMRA",75,"H 11 W 19","Fork Lift, Pallet Jack","Driver loads/unloads to tailgate ","M-F 8:00 AM - 5:00 PM","None","402-558-9323","806-374-3019","Blake Binder"]
[10,2,1002,"Kansas City","Denver","1002-Denver","Loomis","20_13_80011"," 17650 EAST 32ND STE 20 PLACE AURORA CO 80011 USA ","17650 E 32nd Place Ste 20","Aurora","CO",80011,"YES","YES","DENL",300,"9' wide x 10' high","Fork Lift,  Pallet Jack, Shrink wrap","Onsite employees load/unload","M-F 8:00AM - 5:30PM","None","303-214-1606","303-214-1631","Amy Asevedo "]
[10,2,1002,"Kansas City","Denver","1002-Denver","Federal Reserve Bank","20_13_80217","1020 16TH STREET DENVER CO 80202 USA ","1020 16th Street","Denver","CO",80202,"YES","YES","DENV",865,"10' wide x 14' high","Fork Lift,  Pallet Jack, Shrink wrap","Drive dock-load and unload to/from transfer room","M-F 6:00AM - 3:00PM","Transfer room and Dock are on 2 different floors.  Driver must be able to operate a forklift.","303-572-2548","303-572-2574","Alexander St. Bernard "]
[10,1,1001,"Kansas City","Kansas City","1001-Kansas City","Rochester Armored Car Co.","20_13_50321","2500 BELL AVENUE DES MOINES IA 50321 USA ","2500 Bell Avenue","Des Moines","IA",50321,"YES","YES","DSML",220,"No Restrictions","Fork Lift,  Pallet Jack, Shrink wrap","Drive dock-load and unload","M-F 5:00AM - 7:00PM","None","515-243-7179","515-282-2017","John Nikell "]
[11,2,1102,"Dallas","El Paso","1102-El Paso","Loomis","20_13_79924","5869 WAYCROSS AVE  EL PASO TX 79924 USA ","5869 WAYCROSS AVE","El Paso","TX",79924,"YES","YES","ELPL",200,"Height - 14' x 10'","Pallet Jack","Driver loads/unloads to tailgate","M-F 8:00AM - 1:00PM","Design of building is not suitable for semi-trucks to get inside building.","915-532-6109","915-532-3159","Adrian Choa "]
[11,2,1102,"Dallas","El Paso","1102-El Paso","Miracle Delivery Armored Service","20_13_79901","515 SOUTH KANSAS EL PASO TX 79901 USA ","515 S. Kansas","El Paso","TX",79901,"YES","YES","ELPM",55,"Height - 10' x 10'","Pallet Jack","Driver loads/unloads to tailgate","M-F 8:30AM - 2:00PM","No Restrictions","915-532-6959","915-532-8658","Albert Alderete"]
[11,2,1102,"Dallas","El Paso","1102-El Paso","Federal Reserve Bank","20_13_79999","301 EAST MAIN STREET EL PASO TX 79901 USA ","301 E. Main Street","El Paso","TX",79901,"YES","YES","EPAS",61,"Height - 12' x 12'","Pallet Jack","Driver loads/unloads to tailgate","M-F 7:00AM - 2:00PM","Semi-Trucks can't get inside the Security court.","915-521-5266","915-521-5283","Steve Ramirez"]
[9,2,902,"Minneapolis","Helena","902-Helena","Grizzly Armored Express","20_13_59901","1050 HUSKY STREET KALISPELL MT 59901 USA ","1050 Husky St.","Kalispell","MT",59901,"YES","YES","FCAG",54,"16' H x 14' W garage door","Fork Lift,  Pallet Jack","Driver loads and unloads from the dock","M-F 8:30AM - 5:00PM",null,"406-756-5949","406-755-5958","Marla Richmond"]
[12,5,1205,"San Francisco","Seattle","1205-Seattle","Loomis","20_13_99217","6202 N. FREYA SPOKANE WA 99217 USA ","6202 N. Freya","Spokane","WA",99217,"YES","YES","GEGL",100,"No Restrictions","Fork Lift,  Pallet Jack","Driver loads/unloads to tailgate.","M-F 6:00AM - 2:00PM","Delivery best before Noon","509 532-2911","509 536-8155","Tanda Gunderson"]
[7,1,701,"Chicago","Chicago","701-Chicago","Garda","20_13_54115","2001 LAWRENCE DRIVE STE 103B DE PERE WI 54115 USA ","2001 Lawrence Dr., Suite 103B","Depere","WI",54115,"YES","YES","GRBA",60,"No Restrictions","Fork Lift","Driver loads/unloads to tailgate.","M-F 8:00AM - 5:00PM","None","920-983-8083","920.983.8103","Phil Tritabaugh"]
[7,1,701,"Chicago","Chicago","701-Chicago","Loomis","20_13_54303","1232 ELIZABETH STREET GREEN BAY WI 54302 USA ","1232 Elizabeth Street","Green Bay","WI",54302,"YES","YES","GRBB",156,"No Restrictions","Fork Lift","Drive dock-load and unload","M-F 8:00AM - 4:00PM","No dock to back up to; fork lift must unload truck","920-435-5910","920-435-5912","Ryan Nelson or Chris Kantelberg"]
[9,2,902,"Minneapolis","Helena","902-Helena","Federal Reserve Bank","20_13_59601A","100 NEILL AVE. HELENA MT 59601 USA ","100 Neill Avenue","Helena ","MT",59601,"YES","YES","HELN",320,"Inside Garage Entry: Height - 13 10\", Width - 12', Length - 29\"  Outside Loading Dock - No restrictions","Pallet Jack","Drive dock-load and unload to/from transfer room","M-F 8:00AM - 2:00PM","None","406-447-3938","406-447-3932","Diane Keltz"]
[9,2,902,"Minneapolis","Helena","902-Helena","Garda","20_13_59601B","2500 N. COOKE HELENA MT 59601 USA ","2500 N. Cooke","Helena ","MT",59601,"YES","YES","HLNS",127,"No Restrictions","Fork Lift,  Pallet Jack","Driver loads and unloads from the dock","M-F 6:00AM - 4:00PM","using forklift, driver unloads coin into terminal from semi.","406-443-3353","406-442-7330","Wanda Douglas"]
[11,3,1103,"Dallas","Houston","1103-Houston","Brinks, Inc.","20_13_77054","220 FARISS HOUSTON TX 77054 USA ","220 Fariss","Houston","TX",77054,"YES","YES","HOUB",252,"Load and unload outside; no restrictions","Pallet jack, forklift","Brinks gives driver pallet jack to bring coin to tailgate","M-F 9:00AM - 3:00PM","Vehicles subject to search prior to backing up to dock","713-394-3700","713-394-3735","Sandra Green"]
[11,3,1103,"Dallas","Houston","1103-Houston","Garda","20_13_77023","2121 GULF CENTRAL DRIVE HOUSTON TX 77023 USA ","2121 Gulf Central Drive","Houston","TX",77023,"YES","YES","HOUG",126,"Load and unload outside; no restrictions","Fork Lift,  Pallet Jack","Driver loads/unloads to tailgate.","M-F 8:00AM - 3:00PM","load and unload outside","713-923-6300","713-923-9959","Dee Herrera"]
[11,3,1103,"Dallas","Houston","1103-Houston","Loomis","20_13_77051","9225 PARK SOUTH VIEW HOUSTON TX 77051 USA ","9225 Park South View","Houston","TX",77051,"YES","YES","HOUL",175,"Load and unload outside; no restrictions","Fork Lift,  Pallet Jack","Driver loads/unloads to tailgate.","M-F 9:00AM - 1:00PM","Vehicles subject to search prior to backing up to dock","713-227-0344","713-227-0476","Raynard Davis"]
[11,3,1103,"Dallas","Houston","1103-Houston","Federal Reserve Bank","20_13_77019","1801 ALLEN PARKWAY HOUSTON TX 77019 USA ","1801 Allen Parkway","Houston","TX",77019,"YES","YES","HOUS",1324,"No Restrictions","Fork Lift,  Pallet Jack","Driver loads/unloads to tailgate.","M-F 6:30AM - 1:00PM","Vehicles subject to search prior to backing up to dock","713-483-3636","713-483-3144","Jesse Perez"]
[7,1,701,"Chicago","Chicago","701-Chicago","Brinks, Inc.","20_13_46202C","42 NORTH DORMAN STREET INDIANAPOLIS IN 46202 USA ","402 N. Dorman Street","Indianapolis","IN",46202,"YES","YES","INDB",175,"48 foot length","Electric Pallet Jack","Drive dock-loads/unloads to tailgate","M-F 7:00AM - 5:00PM","Narrow street; special arrangements can be made to hold dock open later.","371-624-9434 x5221","317-624-9613","Scott Zuelke or Anna Mitchell"]
[7,1,701,"Chicago","Chicago","701-Chicago","Garda","20_13_46202","68 N. GALE STREET INDIANAPOLIS IN 46202 USA ","68 N. Gale Street","Indianapolis","IN",46202,"YES","YES","INDU",100,"No Restrictions","All Equipment Provided","Driver loads/unloads to tailgate.","M-F 8:00AM - 2:00PM","Special arrangements can be made to hold dock open later.","317-352-1030x413110","317-352-1125","Martin Meagher or Joe Wood"]
[10,1,1001,"Kansas City","Kansas City","1001-Kansas City","Rochester Armored Car Co.","20_13_52244","92 COMMERCIAL DRIVE IOWA CITY IA 52244 USA ","92 Commercial Drive","Iowa City","IA",52244,"YES","YES","IOCL",70,"No Restrictions","Fork Lift,  Pallet Jack, Shrink wrap","Drive dock-load and unload","M-F 7:00AM - 2:00PM","Non-adjustable dock plate","319-351-5466","319-351-5832","Paul Slaymaker"]
[8,4,804,"St. Louis","Memphis","804-Memphis","Loomis","20_13_39204","1625 HANDY JACKSON MS 39204 USA ","1625 Handy Ave.","Jackson","MS",39204,"YES","YES","JANL",120,"No Restrictions","Fork Lift,  Pallet Jack","Driver loads/unloads to tailgate.","M-F 9;00am -2:00PM ","None","1-601-353-5405","1-601-353-0804","Paul Dearing"]
[10,1,1001,"Kansas City","Kansas City","1001-Kansas City","Loomis","20_13_64150","300 NW PARKWAY RIVERSIDE MO 64150 USA ","300 NW Parkway","Riverside","MO",64150,"YES","YES","KANL",120,"No Restrictions","Fork Lift,  Pallet Jack, Shrink wrap","Driver loads and unloads from the dock","M-F 9:00AM - 1:00PM","None","816-505-7412","816-587-7441","Doug Cooper"]
[10,1,1001,"Kansas City","Kansas City","1001-Kansas City","Federal Reserve Bank","20_13_64198","1 MEMORIAL DRIVE KANSAS CITY MO 64198 USA ","1 Memorial Drive ","Kansas City","MO",64198,"YES","YES","KANS",1400,"Standard semi-capable","Fork lift, pallet jack, and shrink wrap.","Driver loads/unloads at tailgate","8:00am-2:00pm","n/a","816-881-2249","816-881-2151","Sandy O'Neal"]
[12,2,1202,"San Francisco","Los Angeles","1202-Los Angeles","Garda","20_13_90040","4901 ZAMBRANO STREET COMMERCE, CA 90040","4901 Zambrano Street","Commerce ","CA",90040,"YES","YES","LAAT",275,"Unload/load at door-no entry","Fork Lift,  Pallet Jack","Driver loads/unloads to tailgate.","M-F 6:30AM - 3:00PM","24 hour notice prior to delivery","213-330-1004 X 578132","213-345-2466","Loreen Ha-ida Baker "]
[12,2,1202,"San Francisco","Los Angeles","1202-Los Angeles","Federal Reserve Bank","20_13_90015","950 S. GRAND AVE. LOS ANGELES CA 90015 USA ","950 S. Grand Ave","Los Angeles","CA",90015,"YES","YES","LAGS",968,"Ht.13 ft 6 in/Length 72 feet","Pallet Jack, Shrink wrap","Drive dock-load and unload to/from transfer room","M-F 5:30AM - 2:00PM","24 hour notice prior to delivery","213-683-2337","213-683-2367","Jose M. Gonzalez"]
[12,2,1202,"San Francisco","Los Angeles","1202-Los Angeles","Loomis","20_13_91761","1375 EAST ACACIA BLVD. ONTARIO CA 91761 USA ","1375 East Acacia Blvd.","Ontario","CA",91761,"YES","YES","LALF",236,"13 ft. /Length 72 feet/Ramp available","Fork Lift,  Pallet Jack","Driver loads/unloads to tailgate.","M-F 10:00AM - 2:00PM","24 hour notice prior to delivery","909-947-9797","909-947-3998","Gunther Johnston or Hugo Perla"]
[12,2,1202,"San Francisco","Los Angeles","1202-Los Angeles","Loomis","20_13_89104B","3370 PALM PARKWAY LAS VEGAS NV 89104 USA ","3370 Palm Pkwy","Las Vegas","NV",89104,"YES","YES","LASL",254,"Unload/load at door-no entry","Fork Lift,  Pallet Jack","Driver loads/unloads to tailgate.","M-F 6:00AM - 2:00PM","24 hour notice prior to delivery","702-207-0135 or 0138","702-457-7804","Hugo Perla"]
[12,2,1202,"San Francisco","Los Angeles","1202-Los Angeles","Sectran Security, Inc.","20_13_90060","7633 INDUSTRY AVE. PICO RIVERA CA 90660 USA ","7633 Industry Ave","Pico Rivera","CA",90660,"YES","YES","LASS",106,"Ht.10 ft/Length 72 feet","Fork Lift","Driver loads/unloads to tailgate.","M-F 5:30AM - 2:00PM","24 hour notice prior to delivery","562-948-1446 Ext.17 or 19","562-949-4327","Rony Ghaby/Darius Barfatani"]
[8,4,804,"St. Louis","Memphis","804-Memphis","Garda","20_13_72202A","711 W. DAISY L GASTON BATES DR LITTLE ROCK AR 72202 USA ","711 W. Daisy L. Gaston Bates Dr.","Little Rock","AR",72202,"YES","YES","LITA",60,"H 10 ft 3 in, W 12 ft.","Fork Lift,  Pallet Jack","Driver loads/unloads to tailgate.","M-F 8:00AM - 10:00AM","None","1-501-374-7500","1-501-374-9272","Julian Pacheco"]
[12,2,1202,"San Francisco","Los Angeles",null,"BofA Las Vegas CO Garda","20_13_89104C","1685 SOUTH PALM STREET LAS VEGAS NV 89104 USA ","1685 South Palm Street","Las Vegas","NV",89104,"YES","YES","LSVG",null,"No Restrictions","Fork Lift,  Pallet Jack","Driver loads/unloads to tailgate.","M-F 9:00AM - 4:00PM","24 hour notice prior to delivery","702-207-8528","702-207-8533","Grachelle Brooks"]
[8,4,804,"St. Louis","Memphis",{"$f":"C43&\"-\"&E43","v":"804-Memphis"},"Loomis","20_13_38111","2600 SOUTHERN AVE MEMPHIS TN 38111 USA ","2600 Southern Ave","Memphis","TN",38111,"YES","YES","MEML",650,"No Restrictions","Fork Lift,  Pallet Jack","Driver loads/unloads to tailgate.","M-F 8:00AM - 12:00PM","None","1-901-248-1374","1-901-527-6674","Travis Mikesh"]
[8,4,804,"St. Louis","Memphis","804-Memphis","Federal Reserve Bank","20_13_38101","200 NORTH MAIN STREET MEMPHIS TN 38101 USA ","200 North Main Street","Memphis","TN",38101,"YES","YES","MEMP",0,"No Restrictions","Fork Lift,  Pallet Jack","Drive dock-load and unload to/from transfer room","M-F 7:00-11:30 / 12:30-2:00","None","1-901-579-2426","1-901-570-2497","Eugene O'Dell"]
[11,3,1104,"Dallas","Houston","1104-Houston","Rochester Armored Car Co.","20_13_78577","1424 WEST POLK PHARR TX 78577 USA ","1424 West Polk","Pharr","TX",78577,"YES","YES","MFER",227,"No Restrictions","Fork Lift,  Pallet Jack, Shrink wrap","Driver loads/unloads to tailgate.","M-F 8:30AM - 3:30PM","Vehicles subject to search prior to backing up to dock","956-631-8825","956-631-8812","Robert  Garza"]
[7,1,701,"Chicago","Chicago","701-Chicago","Brinks, Inc.","20_13_52802","1704 WEST 2ND STREET DAVENPORT IA 52802 USA ","1704 West 2nd Street","Davenport","IA",52802,"YES","YES","MLIB",90,"No Restrictions","Fork Lift,  Pallet Jack","Driver loads/unloads to tailgate.","M-F 9:00AM - 4:00PM","Special arrangements can be made to hold dock open later.","563-322-1688","563-322-3246","Ralph Lake II or Mike Ortiz"]
[7,1,701,"Chicago","Chicago","701-Chicago","Garda","20_13_52804","17040 215TH STREET DAVENPORT IA 52804 USA ","17040 215th Street","Davenport","IA",52804,"YES","YES","MLIU",80,"No Restrictions","Fork Lift, Shrink wrap","Drive dock-load and unload","M-F 10:00AM - 2:00PM","Special arrangements can be made to hold dock open later.","563-386-2540","563-386-6289","John Luedtke or Michelle Kaster"]
[12,1,1201,"San Francisco","San Francisco","1201-San Francisco","Garda","20_13_94607A"," 725 85TH AVE.   SUITE A OAKLAND CA 94621 USA ","725 - 85th Ave., Suite A","Oakland","CA",94621,"YES","YES","OAKA",220,"No Restrictions","Fork Lift,  Pallet Jack","Driver loads/unloads to tailgate","M-F 7:30AM - 3:30PM","None","707-310-9803","510-451-4574","Vince Clagg"]
[11,1,1101,"Dallas","Dallas","1101-Dallas","Brinks, Inc.","20_13_73111","2600 SHULL AVENUE OKLAHOMA CITY OK 73111 USA ","2600 Shull Avenue ","Oklahoma City","OK",73111,"YES","YES","OKCB",130,"No Restrictions","Fork Lift,  Pallet Jack","Driver loads/unloads to tailgate.","M-F 8:00AM - 4:00PM","None","405-520-2305","405-419-2948","Garret Lovern"]
[11,1,1101,"Dallas","Dallas","1101-Dallas","Loomis","20_13_73117","1610 NE 4TH STREET OKLAHOMA CITY OK 73117 USA ","1610 NE 4th Street","Oklahoma City","OK",73117,"YES","YES","OKCL",195,"No Restrictions","Fork Lift,  Pallet Jack","Driver loads/unloads to tailgate.","M-F 8:00AM - 5:00PM","None","405-693-1635","405-272-9814","James Foster"]
[10,1,1001,"Kansas City","Kansas City","1001-Kansas City","Rochester Armored Car Co.","20_13_68101","3937 LEAVENWORTH STREET OMAHA NE 68105 USA ","3937 Leavenworth Street","Omaha","NE",68105,"YES","YES","OMAR",267,"No Restrictions","Fork Lift,  Pallet Jack, Shrink wrap","Drive dock-load and unload","M-F 5:00AM - 2:00PM","None","402-558-9901","402-898-3048","Mark Phillips"]
[12,6,1206,"San Francisco","Phoenix",null,"BofA Phoenix CO Garda Tempe","20_13_85034","2070 SOUTH 16TH STREET PHOENIX AZ 85034 USA ","2070 South 16th Street","PHOENIX","AZ",85034,"Not CT","YES","PHTG",null,"No Restrictions","Fork Lift","Driver loads/unloads to transfer room","M-F 9:00AM - 4:00PM","No dock to back up to; fork lift must unload truck","602 252-4647","602 256-9248","Nyle Yazzie/Chad Hall "]
[12,6,1206,"San Francisco","Phoenix",{"$f":"C53&\"-\"&E53","v":"1206-Phoenix"},"Brinks, Inc.","20_13_85019A","3660 W. THOMAS PHOENIX AZ 85019 USA ","3660 W. Thomas Rd","Phoenix","AZ",85019,"YES","YES","PHXB",250,"No Restrictions","Pallet Jack","Driver loads/unloads to tailgate","M-F 7:00AM - 5:00PM","None","602-442-7227","602-442-7257","Leonard Saurez"]
[12,6,1206,"San Francisco","Phoenix","1206-Phoenix","Loomis","20_13_85282","849 W. 24TH STREET TEMPE AZ 85282 USA ","849 W. 24th St","Tempe","AZ",85282,"YES","YES","PHXL",184,"No Restrictions","Fork Lift,  Pallet Jack","Driver loads/unloads to tailgate","M-F 7:00AM - 2:00PM","None","480--612-6195 or 480-612-6194","480-557-6730","Clarissa Lopez "]
[12,6,1206,"San Francisco","Phoenix","1206-Phoenix","Federal Reserve Bank","20_13_85043","1550 NORTH 47TH AVENUE PHOENIX AZ 85043 USA ","1550 North 47th Ave","Phoenix","AZ",85043,"YES","YES","PHXP",1371,"No Restrictions","Fork Lift,  Pallet Jack","Drive dock-load and unload to/from transfer room","M-F 7:00-11:00 / 12:00-2:00","None","602-477-7751","602-477-7825","Regina Murphy"]
[7,1,701,"Chicago","Chicago","701-Chicago","Brinks, Inc.","20_13_61604","6200 WEST PLANK ROAD BELLEVUE IL 61604 USA ","6200 West Plank Road","Bellevue","IL",61604,"YES","YES","PIAB",60,"No Restrictions","All Equipment Provided","Driver loads/unloads to tailgate.","M-F 9:00AM - 2:00PM","Special arrangements can be made to hold dock open later.","309-697-5050 Option 5 ","309-697-9589","Mike Odell/David Hill "]
[12,5,1205,"San Francisco","Seattle","1205-Seattle","Brinks, Inc.","20_13_97217A","8517 N. ALBINA AVENUE PORTLAND OR 97217 USA ","8517 N. Albina Avenue","Portland","OR",97217,"YES","YES","PORB",125,"If over 53', can unload at street and move coin in truck bay with forklift. 48' may have trouble negotiating the driveway","Fork Lift,  Pallet Jack","Driver loads/unloads to tailgate.","M-F 7:00AM - 2:00PM","Loads must arrive between 7AM & 1 PM, 24 hour prior notification required ","360.518.5055","503.283.0255","Julie Ward"]
[12,5,1205,"San Francisco","Seattle","1205-Seattle","BofA Portland CO Garda","20_13_97203","STE500 4810  N LAGOON STUITE 500 PORTLAND OR 97203 USA ","4810 North Lagoon Suite 500","Portland","OR",97203,"YES","YES","PORG",50,"No Restrictions","Fork Lift,  Pallet Jack","Driver loads/unloads to tailgate.","M-F 10:00AM - 5:00PM","Must ave advanced notification to open gates","503 240-0900 ex 486170 or 486113","503 240-0999","Hanson, Connie or Teria Wampler"]
[12,5,1205,"San Francisco","Seattle","1205-Seattle","Loomis","20_13_97217B","6645 NORTH ENSIGN STREET PORTLAND OR 97214 USA ","6645 North Ensign Street","Portland","OR",97214,"YES","YES","PORL",430,"Door Height 12'; width 9', may need to have truck back up against door opening and offload coin from that point.","Fork Lift,  Pallet Jack","Driver loads/unloads to tailgate.","M-F 7:00AM - 2:00PM","Delivery only between 9AM & 2PM","503.232.2825","503-235-3401","Ed White"]
[12,1,1201,"San Francisco","San Francisco","1201-San Francisco","Loomis","20_13_89502","4904 AMPERE WAY RENO NV 89502 USA ","4904 Ampere Way","Reno","NV",89502,"YES","YES","RNOL",113,"Coin comes from SF vault","Pallet Jack","Driver loads and unloads from the dock","N/A","None","775-857-6800","775-857-6808","Dale Johnson "]
[8,4,804,"St. Louis","Memphis","804-Memphis","Loomis","20_13_72202B","1300 S CHESTER STREET LITTLE ROCK AR 72202 USA ","1300 S. Chester St.","Little Rock","AR",72202,"YES","YES","ROWF",400,"H 13 ft. W 12 ft.","Fork Lift,  Pallet Jack","Driver loads/unloads to tailgate.","M-F 6:00-8:00 / 1:00-2:00","None","1-800-372-5502","1-501-975-2654","Christopher Runshe "]
[12,4,1204,"San Francisco","Salt Lake City","1204-Salt Lake City","Federal Reserve Bank","20_13_84111","120 SOUTH STATE STREET SALT LAKE CITY UT 84111 USA ","120 S. State Street","Salt Lake City","UT",84111,"YES","YES","SALK",260,"Tractor trailors park outside and coin is shuttled to basement / transfer room.","Fork Lift,  Pallet Jack, Shrink wrap","Driver loads/unloads to tailgate","M-F 7:00AM - Noon","None","801-322-7814","801-322-7845","Steve Seal"]
[11,3,1104,"Dallas","Houston","1104-Houston","Loomis","20_13_78217","9555 BALL STREET SAN ANTONIO TX 78217 USA ","9555 Ball Street ","San Antonio","TX",78217,"YES","YES","SANL",130,"No Restrictions","Fork Lift,  Pallet Jack, Shrink wrap","Driver loads/unloads to tailgate.","M-F 9:00AM - 5:00PM","Vehicles subject to search prior to backing up to dock","210-800-2614","210-226-6581","Luis Mendiola "]
[11,3,1104,"Dallas","Houston","1104-Houston","Garda","20_13_78219B","914 PAULSUN SAN ANTONIO TX 78219 USA ","914 Paulson Street","San Antonio","TX",78219,"YES","YES","SATA",180,"No Restrictions","Fork Lift,  Pallet Jack","Driver loads/unloads to tailgate.","M-F 9:00AM - 2:00PM","Vehicles subject to search prior to backing up to dock","210-222-8505 ext.130","210-222-2680","Rudy Duque "]
[11,3,1104,"Dallas","Houston","1104-Houston","Brinks, Inc.","20_13_78219C","1006 PAULSON STREET SAN ANTONIO TX 78219 USA ","1006 Paulson Street","San Antonio","TX",78219,"YES","YES","SATB",200,"No Restrictions","Fork Lift,  Pallet Jack, Shrink wrap","Driver loads/unloads to tailgate.","M-F 5:30AM - 3:00PM","Vehicles subject to search prior to backing up to dock","210-226-1700","210-226-9377","Ross Manti"]
[11,3,1104,"Dallas","Houston","1104-Houston","Dunbar Armored","20_13_78219D","1030 BRUSSELS STREET SAN ANTONIO TX 78219 USA ","1030 Brussels Street","San Antonio","TX",78219,"YES","YES","SATD",75,"No Restrictions","Fork Lift,  Pallet Jack","Driver loads/unloads to tailgate.","M-F 9:00AM - 2:00PM","Vehicles subject to search prior to backing up to dock","(210) 270-7523","210-222-1092","Cindy Nua"]
[12,5,1205,"San Francisco","Seattle",null,"BofA Seattle CO Garda","20_13_98057A","2985 NACHES AVE. SW RENTON WA 98057","2985 Naches Ave  SW","Renton","WA",98057,"YES","YES","SEAG",50,"42' Tractor Trailer or smaller","Fork Lift,  Pallet Jack","Driver loads/unloads to tailgate.","M-F 7:00AM - 5:00PM","Must ave advanced notification to open gates","206 639-7510","425 271-2051","Kelly Mettler"]
[12,5,1205,"San Francisco","Seattle",{"$f":"C68&\"-\"&E68","v":"1205-Seattle"},"Loomis","20_13_98134C","5200 EAST MARGINAL WAY SEATTLE WA 98134 USA ","5200 East Marginal Way","Seattle","WA",98134,"YES","YES","SEAL",250,"No Restrictions","Fork Lift,  Pallet Jack","Driver loads and unloads from the dock","M-F 7:00AM - 3:00PM","24 hour notice prior to delivery, delivery only between 7AM & 3PM","206.762.2141","206.762.1220","Meng Mang"]
[12,5,1205,"San Francisco","Seattle","1205-Seattle","Federal Reserve Bank","20_13_98057","2700 NACHES AVE, SW RENTON WA 98057 USA ","2700 Naches Ave  SW","Renton","WA",98057,"YES","YES","SEAT",650,"No Restrictions","Fork Lift,  Pallet Jack","Driver loads and unloads from the dock","M-F 7:00AM - 2:00PM","Manditory notification to Police Services prior to delivery, and the delivery must be received prior to 2 PM","425-203-0827","425-203-0724","David DeChand"]
[12,1,1201,"San Francisco","San Francisco","1201-San Francisco","Federal Reserve Bank","20_13_94105","101 MARKET STREET SAN FRANCISCO CA 94105 USA ","101 Market Street","San Francisco","CA",94105,"YES","YES","SFAO",1000,"No Restrictions","Fork Lift,  Pallet Jack","Drive dock-load and unload to/from transfer room","M-F 6:00AM - 2:00PM","None","415-974-3213","415-974-3383","Jennifer Sturtevant"]
[12,1,1201,"San Francisco","San Francisco","1201-San Francisco","Loomis","20_13_95035","897 WRIGLEY  WAY MILPITAS, CA 95035 USA","897 Wrigley Way ","Milpitas","CA",95035,"YES","YES","SFLS",226,"No Restrictions","Fork Lift,  Pallet Jack","Driver loads/unloads to tailgate","M-F 8:30AM - 4:00PM","None","408-273-1101","408 941-9671","Robert Colgin"]
[8,4,804,"St. Louis","Memphis","804-Memphis","Loomis","20_13_71107","1124 FORUM DR SHREVEPORT LA 71107 USA ","1124 Forum Dr","Shreveport","LA",71107,"YES","YES","SHPL",120,"No Restrictions","Fork Lift,  Pallet Jack, Shrink wrap","Driver loads/unloads to tailgate.","M-F 9:00AM - 4:00AM","None","318-562-2302","318-424-8002","Barry Doyle"]
[12,4,1204,"San Francisco","Salt Lake City","1204-Salt Lake City","Loomis","20_13_84104","2535 WEST CALIFORNIA AVENUE SALT LAKE CITY UT 84104 USA ","2535 W. California Ave.","Salt Lake City","UT",84104,"YES","YES","SLCW",130,"Tractor trailors park inside and coin is shuttled to transfer room.","Fork Lift,  Pallet Jack, Shrink wrap","Driver loads/unloads to tailgate","M-F 9:00am - 12:30 pm","None","801-736-0200","801-972-1886","Ap Boongrataung"]
[7,1,701,"Chicago","Chicago","701-Chicago","Brinks, Inc.","20_13_62707","2930 GRANGER DRIVE SPRINGFIELD IL 62707 USA ","2930 Granger Drive","Springfield","IN",62707,"YES","YES","SPIB",40,"No Restrictions","Fork Lift,  Pallet Jack","Drive dock-load and unload","M-F 9:00AM - 3:00PM","Special arrangements can be made to hold dock open later.","217-522-0932","217-522-0932","Chris Kirk or Lisa Leaser "]
[8,1,801,"St. Louis","St. Louis","801-St. Louis","Brinks, Inc.","20_13_63106","909 NORTH 18TH STREET SAINT LOUIS MO 63106 USA ","909 N. 18th Street","St. Louis","MO",63106,"YES","YES","STLB",150,"No Restrictions","Fork Lift,  Pallet Jack, Shrink wrap","Driver loads and unloads from the dock","M-F 8:30AM - 1:30PM","Trucks back up to dock in carrier bay.  If available, employees will remove the pallets from truck, otherwise driver will.","314-421-4448","314-421-5620","Dennis Echele"]
[8,1,801,"St. Louis","St. Louis","801-St. Louis","Loomis","20_13_63045","1 MOXIE PLACE EARTH CITY, MO 63045 ","1 Moxie Place ","Earth City ","MO",63045,"YES","YES","STLL",115,"Building is so small that all tractor trailer trucks are in the carriers drive way.  Only normal sized armored trucks can fit through bay opening.","Fork lift, pallet jack (to move pallets to tailgate) and shrink wrap","To tailgate","M-F 8:30AM - 1:30PM","Employees unload coin from tailgate using a forklift.  Since the truck is in the carriers driveway the carrier has two armed guards stationed at the truck.","314-835-9070","314-835-9070","Max Hubson "]
[8,1,801,"St. Louis","St. Louis","801-St. Louis","Federal Reserve Bank","20_13_63102A","1 FEDERAL RESERVE BANK PLAZA SAINT LOUIS MO 63102 USA ","1 Federal Reserve Bank Plaza ","St. Louis","MO",63102,"YES","YES","STLO",35,"FRB does have the dock capability","Pallet Jack","Carriers load/unload at carrier dock and travel down a freight elevator to the lower level transfer room.  ","M-F 7:45AM - 2:00PM","None","314-444-8876","314-444-8457","Angie Harter"]
[8,1,801,"St. Louis","St. Louis","801-St. Louis","Garda","20_13_63102B","1022 SOUTH 9TH STREET SAINT LOUIS MO 63102 USA ","1022 South 9th Street","St. Louis","MO",63102,"YES","YES","STLS",240,"No Restrictions","Fork Lift,  Pallet Jack, Shrink wrap","Driver loads/unloads to tailgate.","M-F 8:30AM - 1:30PM","Trucks back into the carriers bay, there is no dock.  Employees operate fork lift and remove coin pallets from tailgate.","314-231-4030","314-436-3306","Jamie Stevens "]
[10,1,1001,"Kansas City","Kansas City","1001-Kansas City","Garda","20_13_66619","6534 SE JABARA STREET TOPEKA KS 66619 USA ","6534 SE Jabara Street","Topeka","KS",66619,"YES","YES","TOPP",150,"Standard semi-capability","All Equipment Provided","Drive dock-load and unload","M-F 10:00AM - 2:00PM","Dock plate must be manually inserted","785-267-9203","785-862-0089","Tony Traylor"]

{"sheet":"CWDA SHIPMENT LANES ","index":5,"n_rows":32,"n_cols":25,"rows_kept":32,"cut":false,"hidden":false,"merged":[[0,0,0,6]]}
["MINOR COIN SHIPMENTS LANES FROM COINWRAP DALLAS, TX - CWDA (TPI CUSTOMER ID: USM-20-13-DC)"]
["District Number","Office Number","FRB Office ID","District","Office",null,"Name","TPI Hub Id","TPI Hub Address","Address","City","State","Zip Code","Active","Mint Site","Mint Code","Pallet Capacity","Truck Restrictions","Equipment Provided","Driver Loads/Unloads","Dock Hours","Other restrictions","Phone#","FAX#","Contact Name"]
[11,2,1102,"Dallas","El Paso",{"$f":"C3&\"-\"&E3","v":"1102-El Paso"},"Brinks, Inc.","20_13_87106","3900 VASSER DRIVE, NE #B ALBUQUERQUE NM 87107 USA ","3900 Vassar Drive N.E. #B","Albuquerque","NM",87107,"YES","YES","ABQB",120,"Height - 12' x 10'","Pallet Jack","Driver loads/unloads to tailgate","M-F 8:00AM - 2:00PM","Pull up and unload outside bldg.","505-883-4916","505-881-4409","Jessica Crook "]
[11,9,1101,"Dallas","Dallas","1101-Dallas","Rochester Armored Car Co.","20_13_79106","2205 NW 3RD AVENUE AMARILLO TX 79106","2205 NW 3rd Avenue","Dallas","TX",79106,"YES","YES","AMRA",75,"H 11 W 19","Fork Lift, Pallet Jack","Driver loads/unloads to tailgate ","M-F 8:00 AM - 5:00 PM","None","402-558-9323","806-374-3019","Blake Binder"]
[11,1,1101,"Dallas","Dallas","1101-Dallas","Loomis","20_13_75208","1655 VILBIL ROAD DALLAS TX 75208 USA ","1655 Vilbil Rd","Dallas","TX",75208,"YES","YES","DALA",425,"13.6 hgt - 9 w  -  75 long","Fork Lift,  Pallet Jack","Driver loads/unloads to tailgate","M-F 9:00AM - 3:00PM","None","214-272-5632","800-310-1814","Ann Kral"]
[11,1,1101,"Dallas","Dallas","1101-Dallas","Brinks, Inc.","20_13_75062","2530 CENTURY LAKE DRIVE IRVING TX 75062 USA ","2530 Century Lake Dr","Irving","TX",75062,"YES","YES","DALB",470,"13.6 hgt - 9 w  -  75 long","Fork Lift,  Pallet Jack","Driver loads and unloads from the dock","M-F 9:00AM - Noon","None","972-819-1161","972-438-1645","Jacquelyn Schley/Narce Rivera"]
[11,1,1101,"Dallas","Dallas","1101-Dallas","Federal Reserve Bank","20_13_75201","2200 NORTH PEARL DALLAS TX 75201 USA ","2200 North Pearl St","Dallas","TX",75201,"YES","YES","DALL",814,"13.6 hgt - 9 w  -  75 long","Pallet Jack, Shrink wrap","Drive dock-load and unload to/from transfer room","M-F 7:00AM - 2:00PM","None","214-922-6604","214-922-6825","Lisa McKenzie or Marco Cepeda"]
[11,2,1102,"Dallas","El Paso","1102-El Paso","Loomis","20_13_79924"," 5869 WAYCROSS  AVENUE EL PASO TX 79924 USA ","5869 WAYCROSS AVE ","El Paso","TX",79924,"YES","YES","ELPL",200,"Height - 14' x 10'","Pallet Jack","Driver loads/unloads to tailgate","M-F 8:00AM - 1:00PM","Design of building is not suitable for semi-trucks to get inside building.","915-532-6109","915-532-3159","Adrian Choa"]
[11,2,1102,"Dallas","El Paso","1102-El Paso","Miracle Delivery Armored Service","20_13_79901","515 SOUTH KANSAS EL PASO TX 79901 USA ","515 S. Kansas","El Paso","TX",79901,"YES","YES","ELPM",55,"Height - 10' x 10'","Pallet Jack","Driver loads/unloads to tailgate","M-F 8:30AM - 2:00PM","No Restrictions","915-532-6959","915-532-8658","Albert Alderete"]
[11,2,1102,"Dallas","El Paso","1102-El Paso","Federal Reserve Bank","20_13_79999","301 EAST MAIN STREET EL PASO TX 79901 USA ","301 E. Main Street","El Paso","TX",79901,"YES","YES","EPAS",61,"Height - 12' x 12'","Pallet Jack","Driver loads/unloads to tailgate","M-F 7:00AM - 2:00PM","Semi-Trucks can't get inside the Security court.","915-521-5266","915-521-5283","Steve Ramirez"]
[11,3,1103,"Dallas","Houston","1103-Houston","Brinks, Inc.","20_13_77054","220 FARISS HOUSTON TX 77054 USA ","220 Fariss","Houston","TX",77054,"YES","YES","HOUB",252,"Load and unload outside; no restrictions","Pallet jack, forklift","Brinks gives driver pallet jack to bring coin to tailgate","M-F 9:00AM - 3:00PM","Vehicles subject to search prior to backing up to dock","713-394-3700","713-394-3735","Sandra Green"]
[11,3,1103,"Dallas","Houston","1103-Houston","Garda","20_13_77023","2121 GULF CENTRAL DRIVE HOUSTON TX 77023 USA ","2121 Gulf Central Drive","Houston","TX",77023,"YES","YES","HOUG",126,"Load and unload outside; no restrictions","Fork Lift,  Pallet Jack","Driver loads/unloads to tailgate.","M-F 8:00AM - 3:00PM","load and unload outside","713-923-6300","713-923-9959","Dee Herrera"]
[11,3,1103,"Dallas","Houston","1103-Houston","Loomis","20_13_77051","9225 PARK SOUTH VIEW HOUSTON TX 77051 USA ","9225 Park South View","Houston","TX",77051,"YES","YES","HOUL",175,"Load and unload outside; no restrictions","Fork Lift,  Pallet Jack","Driver loads/unloads to tailgate.","M-F 9:00AM - 1:00PM","Vehicles subject to search prior to backing up to dock","713-227-0344","713-227-0476","Raynard Davis"]
[11,3,1103,"Dallas","Houston","1103-Houston","Federal Reserve Bank","20_13_77019","1801 ALLEN PARKWAY HOUSTON TX 77019 USA ","1801 Allen Parkway","Houston","TX",77019,"YES","YES","HOUS",1324,"No Restrictions","Fork Lift,  Pallet Jack","Driver loads/unloads to tailgate.","M-F 6:30AM - 1:00PM","Vehicles subject to search prior to backing up to dock","713-483-3636","713-483-3144","Jesse Perez "]
[8,4,804,"St. Louis","Memphis","804-Memphis","Loomis","20_13_39204","1625 G. HANDY JACKSON MS 39204 USA ","1625 Handy Ave.","Jackson","MS",39204,"YES","YES","JANL",120,"No Restrictions","Fork Lift,  Pallet Jack","Driver loads/unloads to tailgate.","M-F 9;00am -2:00PM ","None","1-601-353-5405","1-601-353-0804","Paul Dearing"]
[8,4,804,"St. Louis","Memphis","804-Memphis","Garda","20_13_72202A","711 W. DAISY L GASTON BATES DR.  LITTLE ROCK AR 72202 USA ","711 W. Daisy L. Gaston Bates Dr.","Little Rock","AR",72202,"YES","YES","LITA",60,"H 10 ft 3 in, W 12 ft.","Fork Lift,  Pallet Jack","Driver loads/unloads to tailgate.","M-F 8:00AM - 10:00AM","None","1-501-374-7500","1-501-374-9272","Julian Pacheco"]
[8,4,804,"St. Louis","Memphis","804-Memphis","Loomis","20_13_38111","2600 SOUTHERN AVE MEMPHIS TN 38111 USA ","2600 Southern Ave","Memphis","TN",38111,"YES","YES","MEML",650,"No Restrictions","Fork Lift,  Pallet Jack","Driver loads/unloads to tailgate.","M-F 8:00AM - 12:00PM","None","1-901-248-1374","1-901-527-6674","Travis Mikesh"]
[8,4,804,"St. Louis","Memphis","804-Memphis","Federal Reserve Bank","20_13_38101","200 NORTH MAIN STREET MEMPHIS TN 38101 USA ","200 North Main Street","Memphis","TN",38101,"YES","YES","MEMP",0,"No Restrictions","Fork Lift,  Pallet Jack","Drive dock-load and unload to/from transfer room","M-F 7:00-11:30 / 12:30-2:00","None","1-901-579-2426","1-901-570-2497","Eugene O'Dell"]
[11,3,1104,"Dallas","Houston","1104-Houston","Rochester Armored Car Co.","20_13_78577","1424 WEST POLK PHARR TX 78577 USA ","1424 West Polk","Pharr","TX",78577,"YES","YES","MFER",227,"No Restrictions","Fork Lift,  Pallet Jack, Shrink wrap","Driver loads/unloads to tailgate.","M-F 8:30AM - 3:30PM","Vehicles subject to search prior to backing up to dock","956-631-8825","956-631-8812","Robert  Garza"]
[6,5,605,"Atlanta","New Orleans",{"$f":"C20&\"-\"&E20","v":"605-New Orleans"},"Brinks, Inc.","20_13_36619","4684 SHIPYARD ROAD MOBILE AL 36619 USA ","4684 Shipyard Rd","Mobile","AL",36619,"YES","YES","MOBB",120,"No Restrictions","Fork Lift,  Pallet Jack","Driver loads/unloads to tailgate","M-F 8:00AM - 2:00PM","None","251-660-7569","251-666-4884","Sam Ledbetter"]
[6,5,605,"Atlanta","New Orleans","605-New Orleans","Federal Reserve Bank","20_13_70160","525 ST. CHARLES AVENUE NEW ORLEANS LA 70130 USA ","525 St. Charles Ave","New Orleans","LA",70130,"YES","YES","NORL",170,"No Restrictions","Fork Lift,  Pallet Jack, Shrink wrap","Drive dock-load and unload","M-F 7:30AM - 2:00PM","Carrier should arrive before 6:00 am to avoid street car traffic, loading dock is available.","504-593-3379","504-593-3218","Lionel Dupart"]
[6,5,605,"Atlanta","New Orleans","605-New Orleans","Grada","20_13_70130","933 ERATO STREET NEW ORLEANS LA 70130 USA ","933 Erato Street","New Orleans","LA",70130,"YES","YES","NORV",180,"No Restrictions","Fork Lift,  Pallet Jack","Driver loads/unloads on street. ","M-F 8:00AM - 2:00PM","None","504-581-3689","504-569-9162","Dexter Bourque"]
[6,5,605,"Atlanta","New Orleans","605-New Orleans","Loomis","20_13_70119","2600 POYDRAS STREET NEW ORLEANS LA 70119 USA ","2600 Poydras Street","New Orleans","LA",70119,"YES","YES","NORX",189,"No Restrictions","Fork Lift,  Pallet Jack","Driver loads/unloads to tailgate","M-F 9:00AM - Noon","None","504-822-0701","504-821-8031","Arely Paniagua"]
[11,1,1101,"Dallas","Dallas","1101-Dallas","Brinks, Inc.","20_13_73111","2600 SHULL AVENUE OKLAHOMA CITY OK 73111 USA ","2600 Shull Avenue ","Oklahoma City","OK",73111,"YES","YES","OKCB",130,"No Restrictions","Fork Lift,  Pallet Jack","Driver loads/unloads to tailgate.","M-F 8:00AM - 4:00PM","None","405-520-2305","405-419-2948","Garret Lovern"]
[11,1,1101,"Dallas","Dallas","1101-Dallas","Loomis","20_13_73117","1610 NE 4TH STREET OKLAHOMA CITY OK 73117 USA ","1610 NE 4th Street","Oklahoma City","OK",73117,"YES","YES","OKCL",195,"No Restrictions","Fork Lift,  Pallet Jack","Driver loads/unloads to tailgate.","M-F 8:00AM - 5:00PM","None","405-693-1635","405-272-9814","James Foster"]
[6,5,605,"Atlanta","New Orleans","605-New Orleans","Loomis","20_13_32503","8800 ELY ROAD PENSACOLA FL 32514 USA ","8800 Ely Road","Pensacola","FL",32514,"YES","YES","PNSL",135,"No Restrictions","Fork Lift,  Pallet Jack","Driver loads/unloads to tailgate","M-F 9:00AM - 1:00PM","None","850-969-0233","850-969-0244","Shermaine Adkins"]
[8,4,804,"St. Louis","Memphis","804-Memphis","Loomis","20_13_72202B","1300 S CHESTER STREET LITTLE ROCK AR 72202 USA ","1300 S. Chester St.","Little Rock","AR",72202,"YES","YES","ROWF",400,"H 13 ft. W 12 ft.","Fork Lift,  Pallet Jack","Driver loads/unloads to tailgate.","M-F 6:00-8:00 / 1:00-2:00","None","1-800-372-5502","1-501-975-2654","Christopher Runshe"]
[11,3,1104,"Dallas","Houston","1104-Houston","Loomis","20_13_78217","9555 BALL STREET SAN ANTONIO TX 78217 USA ","9555 BALL STREET","San Antonio","TX",78217,"YES","YES","SANL",130,"No Restrictions","Fork Lift,  Pallet Jack, Shrink wrap","Driver loads/unloads to tailgate.","M-F 9:00AM - 5:00PM","Vehicles subject to search prior to backing up to dock","210-800-2614","210-226-6581","Luis Mendiola "]
[11,3,1104,"Dallas","Houston","1104-Houston","Garda","20_13_78219B","914 PAULSUN SAN ANTONIO TX 78219 USA ","914 Paulson Street","San Antonio","TX",78219,"YES","YES","SATA",180,"No Restrictions","Fork Lift,  Pallet Jack","Driver loads/unloads to tailgate.","M-F 9:00AM - 2:00PM","Vehicles subject to search prior to backing up to dock","210-222-8505 ext.130","210-222-2680","Rudy Duque"]
[11,3,1104,"Dallas","Houston","1104-Houston","Brinks, Inc.","20_13_78219C","1006 PAULSON STREET SAN ANTONIO TX 78219 USA ","1006 Paulson Street","San Antonio","TX",78219,"YES","YES","SATB",200,"No Restrictions","Fork Lift,  Pallet Jack, Shrink wrap","Driver loads/unloads to tailgate.","M-F 5:30AM - 3:00PM","Vehicles subject to search prior to backing up to dock","210-226-1700","210-226-9377","Ross Manti"]
[11,3,1104,"Dallas","Houston","1104-Houston","Dunbar Armored","20_13_78219D","1030 BRUSSELS STREET SAN ANTONIO TX 78219 USA ","1030 Brussels Street","San Antonio","TX",78219,"YES","YES","SATD",75,"No Restrictions","Fork Lift,  Pallet Jack","Driver loads/unloads to tailgate.","M-F 9:00AM - 2:00PM","Vehicles subject to search prior to backing up to dock","(210) 270-7523","210-222-1092","Cindy Nua"]
[8,4,804,"St. Louis","Memphis","804-Memphis","Loomis","20_13_71107","1124 FORUM DR SHREVEPORT LA 71107 USA ","1124 Forum Dr","Shreveport","LA",71107,"YES","YES","SHPL",120,"No Restrictions","Fork Lift,  Pallet Jack, Shrink wrap","Driver loads/unloads to tailgate.","M-F 9:00AM - 4:00AM","None","318-562-2302","318-424-8002","Barry Doyle"]

{"sheet":"CWCH SHIPMENT LANES","index":6,"n_rows":43,"n_cols":25,"rows_kept":43,"cut":false,"hidden":false,"merged":[[0,0,0,6]]}
["MINOR COIN SHIPMENTS LANES FROM COINWRAP CHARLOTTE, NC - CWCH (TPI CUSTOMER ID: USM-20-13-DC)"]
["District Number","Office Number","FRB Office ID","District","Office",null,"Name","TPI Hub Id","TPI Hub Address","Address","City","State","Zip Code","Active","Mint Site","Mint Code","Pallet Capacity","Truck Restrictions","Equipment Provided","Driver Loads/Unloads","Dock Hours","Other restrictions","Phone#","FAX#","Contact Name"]
[6,1,601,"Atlanta","Atlanta",{"$f":"C3&\"-\"&E3","v":"601-Atlanta"},"Federal Reserve Bank","20_13_30309","1000 PEACHTREE STREET, NE ATLANTA GA 30309 USA ","1000 Peachtree St. NE","Atlanta","GA",30309,"YES","YES","ATLA",960,"75 length 13.6 height Min size","Fork Lift,  Pallet Jack, Shrink wrap","Drive dock-load and unload to/from transfer room","M-F 7:00AM - 2:00PM","must show certification for fork lift and driver to off load","404-498-8155","404-498-8123","Todd Henrich"]
[6,1,601,"Atlanta","Atlanta","601-Atlanta","Brinks, Inc.","20_13_30318A","1466 CHATTAHOOCHEE AVE. ATLANTA GA 30318 USA ","1466 Chattahoochee Ave.","Atlanta","GA",30318,"YES","YES","ATLB",150,"75 length 13.6 height Min size","Pallet Jack","Driver loads/unloads to tailgate","M-F 7:00AM - 2:00PM","None","404-351-8788","404-351-1632","Lydell Anderson "]
[6,1,601,"Atlanta","Atlanta","601-Atlanta","Dunbar Armored","20_13_30092","6670 CORNERS INDUSTRIAL COURT NORCROSS GA 30092 USA ","6670 Corners Industrial Ct.","Norcross","GA",30092,"YES","YES","ATLD",150,"75 length 13.6 height Min size","Pallet Jack","Driver loads/unloads to tailgate","M-F 10:00AM - 1:00PM","None","770-409-1815","770-409-1769","Leon Mitchell"]
[6,1,601,"Atlanta","Atlanta","601-Atlanta","Garda","20_13_30082","5400 UNITED DRIVE SMYRNA GA 30082 USA ","5400 United Drive","Smyrna","GA",30082,"YES","YES","ATLT",100,"75 length 13.6 height Min size","Pallet Jack","Drive dock-load and unload","M-F 9:00AM - 1:00PM","Advance notice from FRB","678-556-0900","678-556-0362","Dorian Robinson "]
[6,1,601,"Atlanta","Atlanta","601-Atlanta","Loomis","20_13_30054","3635 SOUTH INDUSTRIAL PARKWAY ATLANTA GA 30354 USA ","3635 Southside Industrial Parkway","Atlanta","GA",30054,"YES","YES","ATLW",190,"76 length 13.6 height Min size","Pallet Jack","Driver loads/unloads to tailgate","M-F 7:00AM - 6:00PM","None","404-876-6484","404-876-5624","Stephan Sessions"]
[6,1,601,"Atlanta","Atlanta","601-Atlanta","Brinks, Inc.","20_13_35210","4749 ALTON COURT IRONDALE AL 35210 USA ","4749 Alton Court","Irondale","AL",35210,"YES","YES","BIRB",150,"No Restrictions","Fork Lift,  Pallet Jack","Brinks Unloads","M-F 8:00AM - 2:00PM","None","205-951-0321","205-951-0947","Tiffany Piper "]
[6,1,601,"Atlanta","Atlanta","601-Atlanta","Loomis","20_13_35222A","517 35TH STREET NORTH BIRMINGHAM AL 35517","517 35th Street ","Birmingham","AL",35517,"YES","YES","BIRW",200,"No Restrictions","Fork Lift","Driver loads and unloads from the dock","M-F 9:00AM - 2:00PM","None","205-917-5200","205-989-4440","Authur Ruffin or Mark Higginbotham"]
[5,3,503,"Richmond","Charlotte","503-Charlotte","Garda","20_13_28216","4300- SUITE 200A  NORTH LAKE COURT CHARLOTTE NC 28216 USA ","4300-SUITE 200A North Lake Street","Charlotte","NC",28216,"YES","YES","CHAA",255,"15ft. 9 inches","Pallet Jack","Driver loads and unloads from the dock","M-F 7:00AM - 3:00PM","None","704-509-2885","704-597-6782","Tony Waters"]
[5,3,503,"Richmond","Charlotte","503-Charlotte","Brinks, Inc.","20_13_28208A","2415 EXECUTIVE STREET CHARLOTTE NC 28208 USA ","2415 Executive Street","Charlotte","NC",28208,"YES","Yes","CHAB",300,"15ft. 9 inches","Pallet Jack","Onsite employees load/unload","M-F 8:30AM - 1:30PM","None","704-398-7960","704-398-7971","Michael Powell"]
[5,3,503,"Richmond","Charlotte","503-Charlotte","Federal Reserve Bank","20_13_28230","530 E. TRADE STREET CHARLOTTE NC 28202 USA ","530 E. Trade Street","Charlotte","NC",28202,"YES","YES","CHAR",1510,"13ft 6 inches","Pallet Jack","Driver loads and unloads from the dock","M-F 7:00AM - 2:00PM","None","704-358-2345","704-358-2278","Stephanie Mehlhouse "]
[5,1,501,"Richmond","Richmond","501-Richmond","Loomis","20_13_23320A","500 WOODLAKE CIRCLE CHESAPEAKE VA 23320 USA ","500 Woodlake Circle","Chesapeake","VA",23320,"YES","YES","CHSL",50,"No Restrictions","Fork Lift, Pallet Jack","Driver loads/unloads to tailgate.","M-F 9:00AM - 2:00PM","None","757-413-2410","757-413-2425","Keith Beezhold"]
[6,1,601,"Atlanta","Atlanta","601-Atlanta","Loomis","20_13_37406A","2305 B DODSON AVENUE CHATTANOOGA TN 37406 USA ","2305 B. Dodson Ave","Chattanooga","TN",37406,"YES","YES","CHTA",60,"75 length 13.6 height Min size","Pallet Jack","Driver loads/unloads to tailgate","M-F 9:00AM - 1:00PM","None","423-622-6043","423-648-0473","Brian Suttles"]
[4,2,402,"Cleveland","Cincinnati","402-Cincinnati","Garda","20_13_45203B","1017 HOPKINS STREET CINCINNATI OH 45203 USA ","1017 Hopkins Street","Cincinnati","OH",45203,"YES","YES","CINA",100,"No Restrictions","Fork Lift,  Pallet Jack","Drive dock-load and unload to/from transfer room","M-F 7:30AM - 2:00PM","None","513-621-0245","513-621-0245","Cindy Williams"]
[4,2,402,"Cleveland","Cincinnati","402-Cincinnati","Brinks, Inc.","20_13_45203","1045 HOPKINS STREET CINCINNATI OH 45203 USA ","1045 Hopkins St","Cincinnati","OH",45203,"YES","YES","CINB",200,"No Restrictions","Fork Lift, Pallet Jack","Drive dock-load and unload to/from transfer room","M-F 7:00AM - 2:00PM","None","513-621-5549","513-621-2429","Nick Houser"]
[4,2,402,"Cleveland","Cincinnati","402-Cincinnati","Dunbar Armored","20_13_45203A","1249 WEST 7TH ST. CINCINNATI OH 45203 USA ","1249 West 7th St.","Cincinnati","OH",45203,"YES","YES","CIND",75,"Dunbar does not accept Mint shipments.","Fork Lift,  Pallet Jack","Driver loads/unloads to tailgate","M-F 8:00AM - 3:00PM","Dunbar has a ramp - not a dock. No Mint Shpts.","513-381-8000","513-381-0511","Joe Steimle"]
[4,2,402,"Cleveland","Cincinnati","402-Cincinnati","Loomis","20_13_46202A","122 NORTH COLLEGE AVENUE INDIANAPOLIS IN 46202 USA ","122 N. College Ave","Indianapolis","IN",46202,"YES","YES","CINL",85,"dock 12'","Fork Lift,  Pallet Jack","Drive dock-load tailgate-unload","M-F 8:30AM - 2:00PM","Special arrangements can be made to hold dock open later.","317-632-3421","317-637-5802","Danny Cross or Paul Dominguez"]
[4,2,402,"Cleveland","Cincinnati","402-Cincinnati","Federal Reserve Bank","20_13_45201","150 EAST 4TH STREET CINCINNATI OH 45201 USA ","150 East Fourth St.","Cincinnati","OH",45201,"YES","YES","CINN",520," Trailer should not exceed 20' height; 45' length","Fork Lift,  Pallet Jack","Drive dock-load and unload to/from transfer room","M-F 7:00AM - 2:00PM","None","513-455-4331","513-455-4589","Annette Borders"]
[5,3,503,"Richmond","Charlotte","503-Charlotte","Loomis","20_13_28208C","3221 STAFFORD DRIVE CHARLOTTE NC 28208 USA ","3221 Stafford Drive","Charlotte","NC",28208,"YES","YES","CLTL",150,"No Restrictions","Pallet Jack","Onsite employees load/unload","M-F 9:00AM - 2:00PM","None","704-916-8589","704-333-5094","Brittany Sanders "]
[6,3,603,"Atlanta","Jacksonville","603-Jacksonville","Brinks, Inc.","20_13_32821","9900 SATTELITE BLVD. ORLANDO FL 32837 USA ","9900 Satellite Blvd","Orlando","FL",32837,"YES","YES","JABO",200,"No Restrictions","Fork Lift,  Pallet Jack","Driver loads/unloads to tailgate","M-F 9:00AM - 2:00PM","None","407-541-2949","407-547-2989","Larry Osborne, Coin Manager"]
[6,3,603,"Atlanta","Jacksonville","603-Jacksonville","Brinks, Inc.","20_13_33607","5115 W NASSAU STREET TAMPA FL 33607 USA ","5115 W. Nassau Street","Tampa","FL",33607,"YES","YES","JABT",200,"No Restrictions","Fork Lift,  Pallet Jack, Shrink wrap","Drive dock-load and unload","M-F 9:00AM - 1:00PM","None","813-282-1515","813-282-8995","Marc Sequeira, Coin Manager"]
[6,3,603,"Atlanta","Jacksonville","603-Jacksonville","Federal Reserve Bank","20_13_32204","800 WATER STREET JACKSONVILLE FL 32204 USA ","800 Water Street","Jacksonville","FL",32204,"YES","YES","JACK",810,"No Restrictions","Fork Lift,  Pallet Jack","Drive dock-load and unload to/from transfer room","M-F 8:00AM - 3:00PM","None","904-360-1276","904-632-3584","Kim McConico, Supervisor"]
[6,3,603,"Atlanta","Jacksonville","603-Jacksonville","Loomis","20_13_32806A","40 WEST CRYSTAL LAKE STREET ORLANDO FL 32806 USA ","40 West Crystal Lake Street","Orlando","FL",32806,"YES","YES","JAWO",30,"Height 15' - length 70'","Fork Lift,  Pallet Jack","Drive dock-load and unload to/from transfer room","M-F 9:00-2:00 / 2:00-4:00","Lift gate required","407-422-5010","407-839-1673","Hector Munoz, Coin Manager"]
[6,3,603,"Atlanta","Jacksonville","603-Jacksonville","Loomis","20_13_33619","2030 MASSARO BLVD TAMPA FL 33619","2030 Massaro Blvd ","Tampa","FL",33619,"YES","YES","JAWT",97,"No restrictions coin unloaded outside","Fork Lift,  Pallet Jack","Driver loads/unloads to tailgate","M-F 9:00AM - 3:30PM","None","813-223-6822","813-228-9413","Judy Eztevez, CMS Manager"]
[4,2,402,"Cleveland","Cincinnati","402-Cincinnati","Garda","20_13_40203","1050 SOUTH 9TH STREET LOUISVILLE KY 40203 USA ","1050 South 9th St","Louisville","KY",40203,"YES","YES","LOUA",200,"14' door heighth","Fork Lift,  Pallet Jack, Shrink wrap","Driver loads/unloads to tailgate.","M-F 9:00AM - 2:30PM","None","502-584-2187","502-561-7077","Lou Lopez"]
[4,2,402,"Cleveland","Cincinnati","402-Cincinnati","Loomis","20_13_40299","1722 BLUEGRASS CT LOUISVILLE KY 40299 USA ","1722 Bluegrass Ct","Louisville","KY",40299,"YES","YES","LOUL",75,"No Restrictions","Fork Lift,  Pallet Jack","Drive dock-load and unload to/from transfer room","M-F 7:30AM - 2:00PM","None","502-614-4988","502-267-5535","Amanda Miles "]
[6,6,606,"Atlanta","Miami","606-Miami","Brinks, Inc.","20_13_33178A","5575 N.W. 87TH AVENUE MIAMI FL 33178 USA ","5575 NW 87th Ave","Miami","FL",33178,"YES","YES","MIAB",140,"13'2 X 65'","Pallet Jack","Drive dock-load and unload to/from transfer room","M-F 8:00AM - 2:00PM","None","305-459-5733","305-499-9264","Daniel Graveran"]
[6,6,606,"Atlanta","Miami","606-Miami","Dunbar Armored","20_13_33166","7717 NW 62ND STREET MIAMI FL 33166 USA ","7717 NW 62 ST","Miami","FL",33166,"YES","YES","MIAD",100,"13'2 X 65'","Pallet Jack","Drive dock-load and unload to/from transfer room","M-F 10:00AM - 3:00PM","None","(305) 470-6553","(305) 463-0507","Tonya Martin"]
[6,6,606,"Atlanta","Miami","606-Miami","Federal Reserve Bank","20_13_33178B","9100 N.W. 36TH STREET MIAMI FL 33178 USA ","9100 NW 36th Street","Miami","FL",33178,"YES","YES","MIAM",375,"13'2 X 65'","Pallet Jack","Drive dock-load and unload to/from transfer room","M-F 8:00AM - 2:00PM","None","(305) 471-6269","(305) 471-6299","Al Alrmas/Chondra Garcia"]
[6,6,606,"Atlanta","Miami","606-Miami","Loomis","20_13_33172","1089 NW 20TH STREET MIAMI FL 33127 USA ","1089 NW 20 ST","Miami","FL",33127,"YES","YES","MIAW",86,"13'2 X 65'","Pallet Jack","Drive dock-load and unload to/from transfer room","M-F 8:00AM - 2:00PM","None","786-437-6105","305-324-0397","Magdiel Mcke+A26:Y26rcher"]
[6,4,604,"Atlanta","Atlanta","Brinks, Inc.","Brinks, Inc.","20_13_37210","299 HERMITAGE AVENUE NASHVILLE TN 37210 USA ","299 Hermitage Ave","Nashville","TN",37210,"YES","YES","NASB",150,"No Restrictions","All Equipment Provided","Brinks Unloads","M-F 8:00AM - 2:00PM","Unloads at dock in terminal","615-248-4007","615-726-3319","Kasey Waddy"]
[6,4,604,"Atlanta","Atlanta","Loomis","Loomis","20_13_37207","3020 BRICK CHURCH PIKE, NASHVILLE TN 37204 USA","3020 Brick Church Park Drive","Nashville","TN",37207,"YES","YES","NASW",155,"No Restrictions","All Equipment Provided","Onsite employees load/unload","M-F 8:30AM - Noon","Unloads in secured fenced area","615-916-4463","615-650-2428","Frank Briar"]
[5,1,501,"Richmond","Richmond",{"$f":"C34&\"-\"&E34","v":"501-Richmond"},"Brinks, Inc.","20_13_23320"," 1223 EXECUTIVE BLVD. CHESAPEAKE VA 23320 USA ","1223 Executive Blvd.","Chesapeake","VA",23320,"YES","YES","ORFB",200,"Maximun 48'","Fork Lift, Shrink wrap","Driver loads/unloads to tailgate.","M-F 7:00AM - 3:00PM","None","757-548-1765","757-547-5304","John Ferell"]
[6,3,603,"Atlanta","Jacksonville","603-Jacksonville","Garda","20_13_32837","9820 SATELLITE BVLD #A ORLANDO FL 32837 USA ","9820 Satellite Boulevard #A","Orlando","FL",32837,"YES","YES","ORLG",75,"No Restrictions","Fork Lift,  Pallet Jack","Driver loads/unloads to tailgate","M-F 8:00AM - 2:00PM","None","407-947-5438","407-857-7757","Keith Apodaca, Branch Manager"]
[5,3,503,"Richmond","Charlotte","503-Charlotte","Loomis","20_13_27560","125 NOVA DRIVE MORRISVILLE NC 27560 USA ","125 Nova Drive","Morrisville","NC",27560,"YES","YES","RALL",200,"15ft. 9 inches","Pallet Jack","Onsite employees load/unload","M-F 10:00AM - 3:00PM","None","919-469-5992","919-469-5992","Camille Walker"]
[5,1,501,"Richmond","Richmond","501-Richmond","Brinks, Inc.","20_13_23219","2880 CHARLES CITY ROAD RICHMOND VA 23219 USA ","2880 Charles City Rd.","Richmond","VA",23219,"YES","YES","RICB",150,"Cannot accept a semi in building","Pallet Jack, Fork lift","Driver loads and unloads from the dock","M-F 9:00AM - 4:00PM","If semi is used, the driver will need to accept shipment from the front of the truck.","804-783-9292","804-222-1579","Bill Synnot/David Bertelsen "]
[5,1,501,"Richmond","Richmond","501-Richmond","Federal Reserve Bank","20_13_23261","701 EAST BYRD AVENUE RICHMOND VA 23219 USA ","701 East Byrd Street","Richmond","VA",23219,"YES","YES","RICH",1450,"trailer should not exceed 48' in length","Fork Lift,  Pallet Jack","Drive dock-load and unload","M-F 7:00AM - 2:00PM","","804-697-8917","697-8305","Adam Roberson "]
[5,1,501,"Richmond","Richmond","501-Richmond","Loomis","20_13_24019","738 LEE HIGHWAY #A ROANOKE VA 24019 USA ","738 A Lee Hwy #A","Roanoke","VA",24019,"YES","YES","ROAL",100,"No Restrictions","Pallet Jack","Driver loads and unloads from the dock","M-F 9:00 AM - 2:00PM","None","804-756-7080","866-592-4151","Kevin Hodges"]
[5,1,501,"Richmond","Richmond","501-Richmond","Brinks, Inc.","20_13_24153","20 TURNER ROAD SALEM VA 24153 USA ","20 Turner Rd.","Salem","VA",24153,"YES","YES","ROAS",200,"No Restrictions","Fork Lift,  Pallet Jack","Brinks Unloads","M-F 8:00AM - 4:00PM","truck will have to load on side street","540-387-4284","387-4032","Ashley Tate"]
[6,3,603,"Atlanta","Jacksonville","603-Jacksonville","Loomis","20_13_31419","785 KING GEORGE BLVD. SAVANNAH GA 31419 USA ","785 King George Blvd.","Savannah","GA",31419,"YES","YES","SAVE",60,"No dock","Fork Lift,  Pallet Jack","Driver loads/unloads to tailgate","None","None","912-961-6222","912-361-6256","Dustin Cole, Branch Manager"]
[6,4,604,"Atlanta","Atlanta","Brinks, Inc.","Brinks, Inc.","20_13_37915","1701 LEWISVILLE SUITE 102 DRIVE KNOXVILLE TN 37915 USA ","1701 Louisville Drive Suite 102","Knoxville","TN",37915,"YES","YES","TYSB",160,"No Restrictions","Fork Lift,  Pallet Jack","Driver loads/unloads to tailgate","M-F 10:00AM - 2:00PM","None","865-909-0091","865-909-0037","Dustin Marlow "]
[6,4,604,"Atlanta","Atlanta","Loomis","Loomis","20_13_37917","120 METROPLEX COURT KNOXVILLE TN 37917 USA ","120 Metroplex Court","Knoxville","TN",37917,"YES","YES","TYSL",100,"No Restrictions","All Equipment Provided","Onsite employees load/unload","M-F 8:00AM - 2:00PM","Unloads in secured fenced area at dock","865-291-6751","615-297-9337","Troy Tucker"]

{"sheet":"CWMN SHIPMENT LANES ","index":7,"n_rows":67,"n_cols":25,"rows_kept":67,"cut":false,"hidden":false,"merged":[[0,0,0,6]]}
["MINOR COIN SHIPMENTS LANES FROM COINWRAP SAINT PAUL, MN - CWMN (TPI CUSTOMER ID: USM-20-13-DC)"]
["District Number","Office Number","FRB Office ID","District","Office",null,"Name","TPI Hub Id","TPI Hub Address","Address","City","State","Zip Code","Active","Mint Site","Mint Code","Pallet Capacity","Truck Restrictions","Equipment Provided","Driver Loads/Unloads","Dock Hours","Other restrictions","Phone#","FAX#","Contact Name"]
[2,1,201,"New York","New York",{"$f":"C3&\"-\"&E3","v":"201-New York"},"Loomis","20_13_12205","21 RAILROAD AVENUE COLONIE NY 12205 USA ","21 Railroad Ave","Colonie","NY",12205,"YES","YES","ALBA",141,"14'x30'","Fork Lift,  Pallet Jack, Shrink wrap","Onsite employees load/unload","M-F 9:00AM - 3:00PM","None","518-438-9074","518-435-1636","Jeff Schembeck"]
[1,1,101,"Boston","Boston","101-Boston","Dunbar Armored","20_13_06050","444 JOHN DOWNEY DRIVE NEW BRITAIN CT 06050 USA ","444 John Downey Drive","New Britain","CT",6050,"YES","YES","BDLD",107,"30' L 20 ' H","Fork Lift,  Pallet Jack","Drive dock-load tailgate-unload","M-F 10:00AM - 2:00PM","None","860-826-4706","860-224-9775","Donna Anderson/James Ziegler"]
[1,1,101,"Boston","Boston","101-Boston","Brinks, Inc.","20_13_02368","67 TEED DRIVE RANDOLPH MA 02368 USA ","67 TEED DRIVE","Randolph","MA",2368,"YES","YES","BOSB",250,"Inside height restriction if 13' ","Fork Lift,  Pallet Jack","Driver loads and unloads from the dock","M-F 7:00AM - 2:00PM","None","781-986-2700 EXT. 2222","781-986-1550","MICHAEL GEMME"]
[1,1,101,"Boston","Boston","101-Boston","Dunbar Armored","20_13_01852","2O3 INDUSTRIAL AVENUE LOWELL MA 01852 USA ","203 Industrial Avenue","Lowell","MA",1852,"YES","YES","BOSL",90,"No Restrictions","Fork Lift,  Pallet Jack","Driver loads/unloads to tailgate.","M-F 10:00AM - 2:00PM","Advance notice from FRB","978-441-6564","978-441-9076","Scott Patz"]
[1,1,101,"Boston","Boston","101-Boston","Federal Reserve Bank","20_13_02106","600 ATLANTIC AVENUE BOSTON MA 02210 USA ","600 Atlantic Ave","Boston","MA",2106,"YES","YES","BOST",1000,"13'  10 \" H 59' L 10' 5' W","Pallet Jack, Shrink wrap","Drive dock-load and unload to/from transfer room","M-F 7:30AM - 2:00PM","None","617-973-3719","617-973-3825","Franklin Ortiz/Gerard Mason"]
[7,1,701,"Chicago","Chicago","701-Chicago","Garda","20_13_60153A","2500 S. 25TH AVE BROADVIEW IL 60153 USA ","2500 S. 25th Ave","Broadview","IL",60153,"YES","YES","CHIA",500,"dock is 13' 8\"","All Equipment Provided","Drive dock-load and unload","M-F 9:00AM - 2:00PM",null,"224-474-5169","708.345.2737","Lawrence Fitzpatrick "]
[7,1,701,"Chicago","Chicago","701-Chicago","Brinks, Inc.","20_13_60612","919 SOUTH CALIFORNIA AVE CHICAGO IL 60612 USA ","919 S. California","Chicago","IL",60612,"YES","YES","CHIB",300,"No Restrictions","All Equipment Provided","Driver loads/unloads to tailgate.","M-F 8:00AM - 5:00PM","Special arrangements can be made to hold dock open later.","773-475-2710","773-475-2713","Clendora Glover"]
[7,1,701,"Chicago","Chicago","701-Chicago","Federal Reserve Bank","20_13_60604","230 S. LASALLE STREET CHICAGO IL 60604 USA ","230 S. Lasalle Street","Chicago","IL",60604,"YES","YES","CHIC",0,"Coin shipments are not delivered to the Bank","Pallet Jack","Driver loads and unloads from the dock","N/A","None","313-964-6048","313-964-6046","Kevin Gearin"]
[7,1,701,"Chicago","Chicago","701-Chicago","Dunbar Armored","20_13_60651","4500 WEST CHICAGO AVENUE CHICAGO IL 60651 USA ","4500 W. Chicago Ave","Chicago","IL",60651,"YES","YES","CHID",195,"No Restrictions","Pallet Jack","Driver loads/unloads to tailgate.","M-F 8:00AM - 1:30PM","None","773-276-2528","773-276-4771","Aida Perez or Hector Hernandez"]
[7,1,701,"Chicago","Chicago","701-Chicago","Loomis","20_13_60527","8100 SOUTH MADISON BURR RIDGE IL 60527 USA ","8100 South Madison","Burr Ridge","IL",60527,"YES","YES","CHIL",100,"No Restrictions","Fork Lift,  Pallet Jack, Shrink wrap","Driver loads/unloads to tailgate.","M-F 9:00AM - 1:00PM","None","630.560.3858",null,"Chris Sulzner"]
[7,1,701,"Chicago","Chicago","701-Chicago","Davis Bancorp","20_13_60623","2100 SOUTH SAWYER STREET CHICAGO IL 60623 USA ","2100 South Sawyer Street","Chicago","IL",60623,"YES","YES","CHIV",638,"53'trailers","All Equipment Provided","Drive dock-load and unload","M-F 7:00AM - 2:00PM","Special arrangements can be made to hold dock open later.","847-998-9000 x4465","773-762-3855","Andrea Lopez"]
[7,1,701,"Chicago","Chicago","701-Chicago","Loomis","20_13_53218B","5920 WEST BENDER COURT MILWAUKEE WI 53218 USA ","5920 Bender Court","Milwaukee","WI",53218,"YES","YES","CHLM",450,"No Restrictions","Fork Lift,  Pallet Jack","Drive dock-load and unload","M-F 8:00AM - 2:00PM","Circulated coin must be shrink wrapped","414.462.9162","414.481.2230","Nathan Kirchhoff or Josh Bernier"]
[4,2,402,"Cleveland","Cincinnati","402-Cincinnati","Garda","20_13_45203B","1017 HOPKINS STREET CINCINNATI OH 45203 USA ","1017 Hopkins Street","Cincinnati","OH",45203,"YES","YES","CINA",100,"No Restrictions","Fork Lift,  Pallet Jack","Drive dock-load and unload to/from transfer room","M-F 7:30AM - 2:00PM","None","513-621-0245","513-621-0245","Cindy Williams"]
[4,2,402,"Cleveland","Cincinnati","402-Cincinnati","Brinks, Inc.","20_13_45203","1045 HOPKINS STREET CINCINNATI OH 45203 USA ","1045 Hopkins St","Cincinnati","OH",45203,"YES","YES","CINB",200,"No Restrictions","Fork Lift, Pallet Jack","Drive dock-load and unload to/from transfer room","M-F 7:00AM - 2:00PM","None","513-621-5549","513-621-2429","Nick Houser"]
[4,2,402,"Cleveland","Cincinnati","402-Cincinnati","Dunbar Armored","20_13_45203A","1249 WEST 7TH ST. CINCINNATI OH 45203 USA ","1249 West 7th St.","Cincinnati","OH",45203,"YES","YES","CIND",75,"Dunbar does not accept Mint shipments.","Fork Lift,  Pallet Jack","Driver loads/unloads to tailgate","M-F 8:00AM - 3:00PM","Dunbar has a ramp - not a dock. No Mint Shpts.","513-381-8000","513-381-0511","Joe Steimle"]
[4,2,402,"Cleveland","Cincinnati","402-Cincinnati","Loomis","20_13_46202A","122 NORTH COLLEGE AVENUE INDIANAPOLIS IN 46202 USA ","122 N. College Ave","Indianapolis","IN",46202,"YES","YES","CINL",85,"dock 12'","Fork Lift,  Pallet Jack","Drive dock-load tailgate-unload","M-F 8:30AM - 2:00PM","Special arrangements can be made to hold dock open later.","317-632-3421","317-637-5802","Danny Cross or Paul Dominguez"]
[4,2,402,"Cleveland","Cincinnati","402-Cincinnati","Federal Reserve Bank","20_13_45201","150 EAST 4TH STREET CINCINNATI OH 45202 USA ","150 East Fourth St.","Cincinnati","OH",45202,"YES","YES","CINN",520," Trailer should not exceed 20' height; 45' length","Fork Lift,  Pallet Jack","Drive dock-load and unload to/from transfer room","M-F 7:00AM - 2:00PM","None","513-455-4331","513-455-4589","Annette Borders"]
[7,2,702,"Chicago","Detroit","702-Detroit","Brinks, Inc.","20_13_48201","1351 SPRUCE DETROIT MI 48201 USA ","1351 Spruce","Detroit","MI",48201,"YES","YES","DETB",160,"No Restrictions"," Pallet Jack, Shrink wrap","Driver loads/unloads to tailgate","M-F 9:00AM - 2:00PM","Delivery best before 1:00","313.496.3551","313.981.2623","Brian Dardzinski"]
[7,2,702,"Chicago","Detroit","702-Detroit","Loomis","20_13_48661","600 SOUTH VALLEY ROAD WEST BRANCH MI 48661 USA ","600 S. Valley Rd","West Branch","MI",48661,"YES","YES","DETF",203,"No Restrictions","Fork Lift,  Pallet Jack, Shrink wrap","Driver loads/unloads to tailgate.","M-F 8:00AM - 3:00PM","Delivery best before 1:00","989-345-5820","989-345-3782","Jean Beckwith or Matt Kohlhoff"]
[7,2,702,"Chicago","Detroit","702-Detroit","Loomis","20_13_48203","15045 HAMILTON HIGHLAND PARK MI 48203 USA ","15045 Hamilton","Highland Park","MI",48203,"YES","YES","DETL",207,"No Restrictions","Fork Lift,  Pallet Jack, Shrink wrap","Driver loads/unloads to tailgate.","M-F 9:00AM - 2:00PM","Delivery best before 1:00","313-826-3458","810-732-1444","Mike Hodnicki"]
[7,2,702,"Chicago","Detroit","702-Detroit","Federal Reserve Bank","20_13_48207","1600 E WARREN DETROIT MI 48207 USA","1600 E. Warren","Detroit","MI",48207,"YES","YES","DETR",1513,"No Restrictions","Fork Lift,  Pallet Jack, Shrink wrap","Driver loads and unloads from the dock","M-F 8:00AM - 2:00PM","Delivery best before 12:00","313-964-6118","313-964-6046","Amy Collins "]
[7,2,702,"Chicago","Detroit","702-Detroit","Garda","20_13_48151","12435 MERRIMAN STREET LIVONIA MI 48150 USA ","12435 Merriman Road","Livonia","MI",48150,"YES","YES","DETX",175,"No Restrictions","Pallet Jack, Shrink wrap","Driver loads/unloads to tailgate","M-F 9:00 - 3:00 PM","Delivery best before 1:00","734.425.2130 x557114","734-425-2203","Ben Behling"]
[10,1,1001,"Kansas City","Kansas City","1001-Kansas City","Rochester Armored Car Co.","20_13_50321","2500 BALL AVENUE DES MOINES IA 50321 USA ","2500 Bell Avenue","Des Moines","IA",50321,"YES","YES","DSML",230,"No Restrictions","Fork Lift,  Pallet Jack, Shrink wrap","Drive dock-load and unload","M-F 5:00AM - 7:00PM","None","515-243-7179","515-282-2017","John Nickell"]
[7,2,702,"Chicago","Detroit","702-Detroit","Loomis","20_13_49321","871 WEST RIVER CENTER ROAD COMSTOCK PARK MI 49321 USA ","871 West River Center Road","Comstock Park","MI",49321,"YES","YES","DTCM",125,"No Restrictions"," Pallet Jack, Shrink wrap","Driver loads/unloads to tailgate","M-F 9:00AM - 3:00PM","Delivery best before 1:01","616-785-8771","616-785-8818","Chris Armstrong"]
[9,1,901,"Minneapolis","Minneapolis","901-Minneapolis","Rochester Armored Car Co.","20_13_58102","1414 39TH ST. N.W. FARGO ND 58102 USA ","1414 39th St. N.W.","Fargo","ND",58102,"YES","YES","FNDR",40,"No Restrictions","Fork Lift,  Pallet Jack","Driver loads/unloads to tailgate","M-F 6:00AM - 4:00PM","None","701-237-0045","701-281-1032","Tracy Lundon "]
[9,1,901,"Minneapolis","Minneapolis","901-Minneapolis","Rochester Armored Car Co.","20_13_57101","826 N. WEBER AVE SIOUX FALLS SD 57101 USA ","826 N. Weber Ave","Sioux Falls","SD",57101,"YES","YES","FSDR",132,"No Restrictions","Fork Lift,  Pallet Jack","Driver loads/unloads to tailgate","M-F 8:00AM - 4:00PM","None","605-335-3220","605-335-2779","Neil Benally"]
[7,1,701,"Chicago","Chicago","701-Chicago","Garda","20_13_54115","2001 LAWRENCE DRIVE, STE103B  DE PERE WI 54115 USA ","2001 Lawrence Dr., Suite 103B","Depere","WI",54115,"YES","YES","GRBA",60,"No Restrictions","Fork Lift","Driver loads/unloads to tailgate.","M-F 8:00AM - 5:00PM","None","920-983-8083","920.983.8103","Phil Tritabaugh"]
[7,1,701,"Chicago","Chicago","701-Chicago","Loomis","20_13_54303","1232 ELIZABETH STREET GREEN BAY WI 54302 USA ","1232 Elizabeth Street","Green Bay","WI",54302,"YES","YES","GRBB",156,"No Restrictions","Fork Lift","Drive dock-load and unload","M-F 8:00AM - 4:00PM","No dock to back up to; fork lift must unload truck","920-435-5910","920-435-5912","Ryan Nelson or Chris Kantelberg"]
[7,2,702,"Chicago","Detroit","702-Detroit","Brinks, Inc.","20_13_49544","3380 THREE MILE ROAD GRAND RAPIDS MI 49544 USA ","3380 Three Mile Road","Grand Rapids","MI",49544,"YES","YES","GRRB",110,"No Restrictions","Fork Lift,  Pallet Jack, Shrink wrap","Driver loads/unloads to tailgate.","M-F 8:00AM - 3:00PM","Delivery best before 1:00","616-735-3942 x-224","616-735-3664","Kevin Speck"]
[7,1,701,"Chicago","Chicago","701-Chicago","Brinks, Inc.","20_13_46202C","402 NORTH DORMAN STREET INDIANAPOLIS IN 46202 USA ","402 N. Dorman Street","Indianapolis","IN",46202,"YES","YES","INDB",175,"48 foot length","Electric Pallet Jack","Drive dock-loads/unloads to tailgate","M-F 7:00AM - 5:00PM","Narrow street; special arrangements can be made to hold dock open later.","371-624-9434 x5221","317-624-9613","Scott Zuelke or Anna Mitchell"]
[7,1,701,"Chicago","Chicago","701-Chicago","Garda","20_13_46202","68 N. GALE STREET INDIANAPOLIS IN 46202 USA ","68 N. Gale Street","Indianapolis","IN",46202,"YES","YES","INDU",100,"No Restrictions","All Equipment Provided","Driver loads/unloads to tailgate.","M-F 8:00AM - 2:00PM","Special arrangements can be made to hold dock open later.","317-352-1030x413110","317-352-1125","Martin Meagher or Joe Wood"]
[10,1,1001,"Kansas City","Kansas City","1001-Kansas City","Rochester Armored Car Co.","20_13_52244","92 COMMERCIAL DRIVE IOWA CITY IA 52244 USA ","92 Commercial Drive","Iowa City","IA",52244,"YES","YES","IOCL",80,"No Restrictions","Fork Lift,  Pallet Jack, Shrink wrap","Drive dock-load and unload","M-F 7:00AM - 2:00PM","Non-adjustable dock plate","319-351-5466","319-351-5832","Paul Slaymaker"]
[2,1,201,"New York","New York","201-New York","Dunbar Armored","20_13_11803","100 COMMERCIAL STREET PLAINVIEW NY 11803 USA ","100 Commercial Street","Plainview","NY",11803,"YES","YES","ISPD",225,"13' max Height; 11' max Width","Fork Lift,  Pallet Jack","Drive dock-load and unload","M-F 9:00AM - 3:00PM","Must have vaild ID","516-349-1203","516-349-1251","Ahmad Shafee"]
[8,4,804,"St. Louis","Memphis","804-Memphis","Loomis","20_13_39204","1625 G. HANDY JACKSON MS 39204 USA ","1625 Handy Ave.","Jackson","MS",39204,"YES","YES","JANL",120,"No Restrictions","Fork Lift,  Pallet Jack","Driver loads/unloads to tailgate.","M-F 9;00am -2:00PM ","None","1-601-353-5405","1-601-353-0804","Paul Dearing"]
[10,1,1001,"Kansas City","Kansas City","1001-Kansas City","Loomis","20_13_64150","300 NW PARKWAY RIVERSIDE MO 64150 USA ","300 NW Parkway","Riverside","MO",64150,"YES","YES","KANL",120,"No Restrictions","Fork Lift,  Pallet Jack, Shrink wrap","Driver loads and unloads from the dock","M-F 9:00AM - 1:00PM","None","816-505-7412","816-587-7441","Doug Cooper"]
[10,1,1001,"Kansas City","Kansas City","1001-Kansas City","Federal Reserve Bank","20_13_64198","1 MEMORIAL DRIVE KANSAS CITY MO 64198 USA ","1 Memorial Drive ","Kansas City","MO",64198,"YES","YES","KANS",1400,"Standard semi-capable","Fork lift, pallet jack, and shrink wrap.","Driver loads/unloads at tailgate","8:00am-2:00pm","n/a","816-881-2249","816-881-2151","Sandy O'Neal"]
[8,4,804,"St. Louis","Memphis","804-Memphis","Garda","20_13_72202A","711 W. DAISY L GASTON BATES LITTLE ROCK AR 72202 USA ","711 W. Daisy L. Gaston Bates Dr.","Little Rock","AR",72202,"YES","YES","LITA",60,"H 10 ft 3 in, W 12 ft.","Fork Lift,  Pallet Jack","Driver loads/unloads to tailgate.","M-F 8:00AM - 10:00AM","None","1-501-374-7500","1-501-374-9272","Julian Pacheco"]
[4,2,402,"Cleveland","Cincinnati","402-Cincinnati","Garda","20_13_40203","1050 SOUTH 9TH STREET LOUISVILLE KY 40203 USA ","1050 South 9th St","Louisville","KY",40203,"YES","YES","LOUA",200,"14' door heighth","Fork Lift,  Pallet Jack, Shrink wrap","Driver loads/unloads to tailgate.","M-F 9:00AM - 2:30PM","None","502-584-2187","502-561-7077","Lou Lopez"]
[4,2,402,"Cleveland","Cincinnati","402-Cincinnati","Loomis","20_13_40299","1722 BLUEGRASS CT LOUISVILLE KY 40299 USA ","1722 Bluegrass Ct","Louisville","KY",40299,"YES","YES","LOUL",75,"No Restrictions","Fork Lift,  Pallet Jack","Drive dock-load and unload to/from transfer room","M-F 7:30AM - 2:00PM","None","502-614-4988","502-267-5535","Amanda Miles "]
[8,4,804,"St. Louis","Memphis","804-Memphis","Loomis","20_13_38111","2600 SOUTHERN AVE MEMPHIS TN 38111 USA ","2600 Southern Ave","Memphis","TN",38111,"YES","YES","MEML",650,"No Restrictions","Fork Lift,  Pallet Jack","Driver loads/unloads to tailgate.","M-F 8:00AM - 12:00PM","None","1-901-248-1374","1-901-527-6674","Travis Mikesh "]
[8,4,804,"St. Louis","Memphis","804-Memphis","Federal Reserve Bank","20_13_38101","200 NORTH MAIN STREET MEMPHIS TN 38101 USA ","200 North Main Street","Memphis","TN",38101,"YES","YES","MEMP",0,"No Restrictions","Fork Lift,  Pallet Jack","Drive dock-load and unload to/from transfer room","M-F 7:00-11:30 / 12:30-2:00","None","1-901-579-2426","1-901-570-2497","Eugene O'Dell"]
[1,1,101,"Boston","Boston","101-Boston","Loomis","20_13_03108","520 MAMMOTH ROAD LONDONDERRY NH 03053 USA ","520 Mammoth Road","Londonderry","NH",3053,"YES","YES","MHTA",250,"No Restrictions","Fork Lift,  Pallet Jack","Drive dock-load tailgate-unload","M-F 9:00AM - 2:00PM","None","603-421-2929","603-425-0172","Kevin Cooper"]
[9,1,901,"Minneapolis","Minneapolis","901-Minneapolis","Garda","20_13_55114","527 ALDINE AVE SAINT PAUL MN 55104 USA ","527 Aldine Avenue","St. Paul","MN",55104,"YES","YES","MINA",212,"No Restrictions","Fork Lift,  Pallet Jack","Drive dock-load and unload","M-F 7:00AM - 3:00PM","Single stacked pallets","651-523-6776","651-644-5266","Scott Ward"]
[9,1,901,"Minneapolis","Minneapolis","901-Minneapolis","Loomis","20_13_55106","999 EAST 7TH STREET SAINT PAUL MN 55106 USA ","999 East 7th Street","St. Paul","MN",55106,"YES","YES","MINL",352,"Width- 12' 1\", Height- 14' 3\"","Forklifts, Pallet Jacks, Shrink Wrap","Tailgate","M-F 5:00AM - 3:00PM","N.A.","651-645-4511","651-774-1989","Johathan Brandon "]
[9,1,901,"Minneapolis","Minneapolis","901-Minneapolis","Federal Reserve Bank","20_13_55401","90 HENNEPIN AVENUE MINNEAPOLIS MN 55480 USA ","90 Hennepin Ave","Minneapolis","MN",55480,"YES","YES","MINN",917,"14' X 70'","Pallet Jack","Drive dock-load and unload to/from transfer room","M-F 7:30AM - 3:30PM","None","612-204-5244","888-297-6031","Todd Keckhafer"]
[7,1,701,"Chicago","Chicago",{"$f":"C48&\"-\"&E48","v":"701-Chicago"},"Brinks, Inc.","20_13_52802","1704 WEST 2ND STREET DAVENPORT IA 52802 USA ","1704 West 2nd Street","Davenport","IA",52802,"YES","YES","MLIB",90,"No Restrictions","Fork Lift,  Pallet Jack","Driver loads/unloads to tailgate.","M-F 9:00AM - 2:00PM","Special arrangements can be made to hold dock open later.","563-322-1688","563-322-3246","Ralph Lake II or Mike Ortiz"]
[7,1,701,"Chicago","Chicago","701-Chicago","Garda","20_13_52804","17040 215TH STREET DAVENPORT IA 52804 USA ","17040 215th Street","Davenport","IA",52804,"YES","YES","MLIU",80,"No Restrictions","Fork Lift, Shrink wrap","Drive dock-load and unload","M-F 10:00AM - 2:00PM","Special arrangements can be made to hold dock open later.","563-386-2540","563-386-6289","John Luedtke or Michelle Kaster"]
[9,1,901,"Minneapolis","Minneapolis","901-Minneapolis","Brinks, Inc.","20_13_55427","830 BOONE AVENUE NORTH GOLDEN VALLEY MN 55427 USA ","830 Boone Ave North","Golden Valley","MN",55427,"YES","YES","MPLB",300,"No Restrictions","Fork Lift,  Pallet Jack, Shrink wrap","Drive dock-load and unload","M-F 9:00AM - 4:30PM","None","763-486-1730","763-486-1736","Truman Tabor"]
[2,1,201,"New York","New York","201-New York","Garda","20_13_11101","5-26 45TH AVENUE LONG ISLAND CITY NY 11101 USA ","5-26 45th Avenue","Long Island City","NY",11101,"YES","YES","NYCD",125,"11'x50'","Fork Lift,  Pallet Jack, Shrink wrap","Driver loads/unloads to tailgate","M-F 7:00AM - 2:00PM","None","718-289-2900","718-472-0809","Lisa Chetram"]
[2,1,201,"New York","New York","201-New York","Garda","20_13_08837A","375 CLEARVIEW ROAD EDISON NJ 08837","375 Clearview Road ","Edison","NJ",8837,"YES","YES","NYED",125,"42' Tractor Trailer or smaller","Fork Lift,  Pallet Jack, Shrink wrap","Driver loads/unloads to tailgate.","M-F 8:00AM - 4:00PM","Announce yourself at guard post.","732-417-3828","908-436-9225","Mohan Taswar"]
[2,1,201,"New York","New York","201-New York","Federal Reserve Bank","20_13_07073","100 ORCHARD STREET EAST RUTHERFORD NJ 07073 USA ","100 Orchard Street","East Rutherford","NJ",7073,"YES","YES","NYER",1198,"12'x71'","Fork Lift,  Pallet Jack, Shrink wrap","Drive dock-load and unload to/from transfer room","M-F 7:30AM - 3:00PM","Shipping company must provide driver and truck information to FRB in advance","201-531-3154","201-531-3160","ToniAnn Gencarelli"]
[2,1,201,"New York","New York","201-New York","Dunbar Armored","20_13_07601","70 BURLEWS COURT HACKENSACK NJ 07601 USA ","70 Berlews Court","Hackensack","NJ",7601,"YES","YES","NYHD",100,"Standard semi-capability","Fork Lift,  Pallet Jack, Shrink wrap","Driver loads/unloads to tailgate.","M-F 8:00AM - 5:00PM","","201-488-2508","201-488-4973","Adolfo Hernandez"]
[10,1,1001,"Kansas City","Kansas City","1001-Kansas City","Rochester Armored Car Co.","20_13_68101","3937 LEAVENWORTH STREET OMAHA NE 68105 USA ","3937 Leavenworth Street","Omaha","NE",68105,"YES","YES","OMAR",150,"No Restrictions","Fork Lift,  Pallet Jack, Shrink wrap","Drive dock-load and unload","M-F 5:00AM - 2:00PM","None","402-558-9901","402-898-3048","Mark Phillips"]
[1,1,101,"Boston","Boston","101-Boston","Loomis","20_13_01505","50 SHREWSBURY STREET BOYLSTON MA 01505 USA ","50 Shrewsbury St","Boylston","MA",1505,"YES","YES","ORHA",300,"No Restrictions","Fork Lift,  Pallet Jack","Onsite employees load/unload","M-F 7:00AM - 1:00PM","None","508-869-4027","774-614-0203","Frank Van Bemmel"]
[3,1,301,"Philadelphia","Philadelphia","301-Philadelphia","Dunbar Armored","20_13_08077","1100 TAYLORS LANE CINNAMINSON NJ 08077 USA ","1100 Taylors Lane","Cinnaminson","NJ",8077,"YES","YES","PHLD",72,"Height 10Ft   Width 8 1/2 ft  Length 25 1/2 ft","Fork Lift,  Pallet Jack, Shrink wrap","Driver loads/unloads to tailgate.","M-F 9:00AM - 3:00PM","Advance notice from FRB","856-786-5222","856-786-4338","Chris Howarth "]
[7,1,701,"Chicago","Chicago","701-Chicago","Brinks, Inc.","20_13_61604","6200 WEST PLANK ROAD BELLEVUE IL 61604 USA ","6200 West Plank Road","Bellevue","IL",61604,"YES","YES","PIAB",60,"No Restrictions","All Equipment Provided","Driver loads/unloads to tailgate.","M-F 9:00AM - 2:00PM","Special arrangements can be made to hold dock open later.","309-697-5050 x2239","309-697-9589","Mike Odell"]
[9,1,901,"Minneapolis","Minneapolis","901-Minneapolis","Rochester Armored Car Co.","20_13_57702","2340 DEADWOOD AVE SUITE P RAPID CITY SD 57702 USA ","2340 Deadwood Ave Suite P","Rapid City","SD",57702,"YES","YES","RAPR",45,"No dock","Fork Lift,  Pallet Jack","Driver loads/unloads to tailgate.","M-F 6:00AM - 3:00PM","None","605-342-6256","605-394-3665","Paul Cameron"]
[8,4,804,"St. Louis","Memphis","804-Memphis","Loomis","20_13_72202B","1300 SOUTH CHESTER STREET LITTLE ROCK AR 72202 USA ","1300 S. Chester St.","Little Rock","AR",72202,"YES","YES","ROWF",400,"H 13 ft. W 12 ft.","Fork Lift,  Pallet Jack","Driver loads/unloads to tailgate.","M-F 6:00-8:00 / 1:00-2:00","None","1-800-372-5502","1-501-975-2654","Christopher Runshe "]
[8,4,804,"St. Louis","Memphis","804-Memphis","Loomis","20_13_71107","1124 FORUM DR SHREVEPORT LA 71107 USA ","1124 Forum Dr","Shreveport","LA",711407,"YES","YES","SHPL",120,"No Restrictions","Fork Lift,  Pallet Jack, Shrink wrap","Driver loads/unloads to tailgate.","M-F 9:00AM - 4:00AM","None","318-562-2302","318-424-8002","Barry Doyle"]
[7,1,701,"Chicago","Chicago","701-Chicago","Brinks, Inc.","20_13_62707","2930 GRANGER DRIVE SPRINGFIELD IL 62707 USA ","2930 Granger Drive","Springfield","IN",62707,"YES","YES","SPIB",80,"No Restrictions","Fork Lift,  Pallet Jack","Drive dock-load and unload","M-F 9:00AM - 3:00PM","Special arrangements can be made to hold dock open later.","217.522.0932","217.522.0932","Chris Kirk/Lisa Leaser "]
[8,1,801,"St. Louis","St. Louis","801-St. Louis","Brinks, Inc.","20_13_63106","909 NORTH 18TH STREET SAINT LOUIS MO 63106 USA ","909 N. 18th Street","St. Louis","MO",63106,"YES","YES","STLB",150,"No Restrictions","Fork Lift,  Pallet Jack, Shrink wrap","Driver loads and unloads from the dock","M-F 8:30AM - 1:30PM","Trucks back up to dock in carrier bay.  If available, employees will remove the pallets from truck, otherwise driver will.","314-421-4448","314-421-5620","Bryan Vogt"]
[8,1,801,"St. Louis","St. Louis","801-St. Louis","Loomis","20_13_63045","1 MOXIE PLACE EARTH CITY MO 63045","1 Moxie Place ","Earth City ","MO",63045,"YES","YES","STLL",115,"No Restrictions ","Fork lift, pallet jack (to move pallets to tailgate) and shrink wrap","To tailgate","M-F 8:30AM - 1:30PM","Employees unload coin from tailgate using a forklift.  Since the truck is in the carriers driveway the carrier has two armed guards stationed at the truck.","314-835-9070","314-835-9070","Matt Hubson "]
[8,1,801,"St. Louis","St. Louis","801-St. Louis","Federal Reserve Bank","20_13_63102A","1 FEDERAL RESERVE BANK PLAZA SAINT LOUIS MO 63102 USA ","1 Federal Reserve Bank Plaza ","St. Louis","MO",63102,"YES","YES","STLO",35,"FRB does have the dock capability","Pallet Jack","Carriers load/unload at carrier dock and travel down a freight elevator to the lower level transfer room.  ","M-F 7:45AM - 2:00PM","All over the road shipments are delivered to terminals and later transferred to the Fed in smaller increments via armored carrier.","314-444-8876","314-444-8457","Angie Harter"]
[8,1,801,"St. Louis","St. Louis","801-St. Louis","Garda","20_13_63102B","1022 S 9TH STREET SAINT LOUIS MO 63102 USA ","1022 South 9th Street","St. Louis","MO",63102,"YES","YES","STLS",240,"No Restrictions","Fork Lift,  Pallet Jack, Shrink wrap","Driver loads/unloads to tailgate.","M-F 8:30AM - 1:30PM","Trucks back into the carriers bay, there is no dock.  Employees operate fork lift and remove coin pallets from tailgate.","314-231-4030","314-436-3306","Jamie Stevens "]
[10,1,1001,"Kansas City","Kansas City","1001-Kansas City","Garda","20_13_66619","6534 SE JABARA STREET TOPEKA KS 66619 USA ","6534 SE Jabara Street","Topeka","KS",66619,"YES","YES","TOPP",150,"Standard semi-capability","All Equipment Provided","Drive dock-load and unload","M-F 10:00AM - 2:00PM","Dock plate must be manually inserted","785-267-9203","785-862-0089","Tony Traylor"]

{"sheet":"CWLA SHIPMENT LANES","index":8,"n_rows":28,"n_cols":25,"rows_kept":28,"cut":false,"hidden":false,"merged":[[0,0,0,6]]}
["MINOR COIN SHIPMENTS LANES FROM COINWRAP LOS ANGELES, CA - CWLA (TPI CUSTOMER ID: USM-20-13-DC)"]
["District Number","Office Number","FRB Office ID","District","Office",null,"Name","TPI Hub Id","TPI Hub Address","Address","City","State","Zip Code","Active","Mint Site","Mint Code","Pallet Capacity","Truck Restrictions","Equipment Provided","Driver Loads/Unloads","Dock Hours","Other restrictions","Phone#","FAX#","Contact Name"]
[10,2,1002,"Kansas City","Denver",{"$f":"C3&\"-\"&E3","v":"1002-Denver"},"Federal Reserve Bank","20_13_80217","1020 16TH STREET DENVER CO 80202 USA ","1020 16th Street","Denver","CO",80202,"YES","YES","DENV",865,"10' wide x 14' high","Fork Lift,  Pallet Jack, Shrink wrap","Drive dock-load and unload to/from transfer room","M-F 6:00AM - 3:00PM","Transfer room and Dock are on 2 different floors.  Driver must be able to operate a forklift.","303-572-2548","303-572-2574","Alexander St. Bernard "]
[12,4,1204,"San Francisco","Salt Lake City",{"$f":"C4&\"-\"&E4","v":"1204-Salt Lake City"},"Loomis","20_13_83706","5677 BETHEL STREET BOISE ID 83706 USA ","5677 Bethel Street","Boise","ID",83706,"YES","YES","BOIL",77,"Tractor trailors park outside and coin is shuttled to transfer room.","Fork Lift,  Pallet Jack, Shrink wrap","Driver loads/unloads to tailgate","M-F 9:00am - 3:00pm","None","208-571-8727","208-376-8780","Jeremiah Massey"]
[12,4,1204,"San Francisco","Salt Lake City",{"$f":"C5&\"-\"&E5","v":"1204-Salt Lake City"},"Loomis","20_13_84104","2535 WEST CALIFORNIA AVENUE SALT LAKE CITY UT 84104 USA ","2535 W. California Ave.","Salt Lake City","UT",84104,"YES","YES","SLCW",130,"Tractor trailors park inside and coin is shuttled to transfer room.","Fork Lift,  Pallet Jack, Shrink wrap","Driver loads/unloads to tailgate","M-F 9:00am - 12:30","None","801-736-0200","801-972-1886","Ap Boongrataung"]
[12,4,1204,"San Francisco","Salt Lake City",{"$f":"C6&\"-\"&E6","v":"1204-Salt Lake City"},"Federal Reserve Bank","20_13_84111","120 SOUTH STATE STREET SALT LAKE CITY UT 84111 USA ","120 S. State Street","Salt Lake City","UT",84111,"YES","YES","SALK",260,"Tractor trailors park outside and coin is shuttled to basement / transfer room.","Fork Lift,  Pallet Jack, Shrink wrap","Driver loads/unloads to tailgate","M-F 7:00AM - Noon","None","801-322-7814","801-322-7845","Steve Seal"]
[12,6,1206,"San Francisco","Phoenix",{"$f":"C7&\"-\"&E7","v":"1206-Phoenix"},"Brinks, Inc.","20_13_85019A","3660 W. THOMAS ROAD PHOENIX AZ 85019 USA ","3660 W. Thomas Rd","Phoenix","AZ",85019,"YES","YES","PHXB",250,"No Restrictions","Pallet Jack","Driver loads/unloads to tailgate","M-F 7:00AM - 5:00PM","None","602-442-7227","602-442-7257","Leonard Saurez"]
[12,6,1206,"San Francisco","Phoenix",null,"BofA Phoenix CO Garda Tempe","20_13_85034","2070 SOUTH 16TH STREET PHOENIX AZ 85282 USA ","2070 South 16th Street","Phoenix","AZ",85282,"Not CT","YES","PHTG",null,"No Restrictions","Fork Lift","Driver loads/unloads to transfer room","M-F 9:00AM - 4:00PM","No dock to back up to; fork lift must unload truck","602 252-4647","602 256-9248","Nyle Yazzie/Chad Hall "]
[12,6,1206,"San Francisco","Phoenix",{"$f":"C9&\"-\"&E9","v":"1206-Phoenix"},"Federal Reserve Bank","20_13_85043","1550 NORTH 47TH AVENUE PHOENIX AZ 85043 USA ","1550 North 47th Ave","Phoenix","AZ",85043,"YES","YES","PHXP",1371,"No Restrictions","Fork Lift,  Pallet Jack","Drive dock-load and unload to/from transfer room","M-F 7:00-11:00 / 12:00-2:00","None","602-477-7751","602-477-7825","Regina Murphy"]
[12,6,1206,"San Francisco","Phoenix",{"$f":"C10&\"-\"&E10","v":"1206-Phoenix"},"Loomis","20_13_85282","849 W. 24TH STREET TEMPE AZ 85282 USA ","849 W. 24th St","Tempe","AZ",85282,"YES","YES","PHXL",184,"No Restrictions","Fork Lift,  Pallet Jack","Driver loads/unloads to tailgate","M-F 7:00AM - 2:00PM","None","480--612-6195 or 480-612-6194","480-557-6730","Clarissa Lopez"]
[11,2,1102,"Dallas","El Paso",{"$f":"C11&\"-\"&E11","v":"1102-El Paso"},"Brinks, Inc.","20_13_87106","3900 VASSER DRIVE, NE SUITE B ALBUQUERQUE NM 87107 USA ","3900 Vassar Drive N.E. #B","Albuquerque","NM",87107,"YES","YES","ABQB",120,"Height - 12' x 10'","Pallet Jack","Driver loads/unloads to tailgate","M-F 8:00AM - 2:00PM","Pull up and unload outside bldg.","505-883-4916","505-881-4409","Jessica Crook "]
[12,2,1202,"San Francisco","Los Angeles",{"$f":"C12&\"-\"&E12","v":"1202-Los Angeles"},"Loomis","20_13_89104B","3370 PALM PARKWAY LAS VEGAS NV 89104 USA ","3370 Palm Pkwy","Las Vegas","NV",89104,"YES","YES","LASL",254,"Unload/load at door-no entry","Fork Lift,  Pallet Jack","Driver loads/unloads to tailgate.","M-F 6:00AM - 2:00PM","24 hour notice prior to delivery","702-207-0135 or 0138","702-457-7804","Hugo Perla"]
[12,2,1202,"San Francisco","Los Angeles",null,"BofA Las Vegas CO Garda","20_13_89104C","1685 SOUTH PALM STREET LAS VEGAS NV 89104 USA ","1685 South Palm Street","Las Vegas","NV",89104,"YES","YES","LSVG",null,"No Restrictions","Fork Lift,  Pallet Jack","Driver loads/unloads to tailgate.","M-F 9:00AM - 4:00PM","24 hour notice prior to delivery","702-207-8528","702-207-8533","Grachelle Brooks"]
[12,1,1201,"San Francisco","San Francisco",{"$f":"C14&\"-\"&E14","v":"1201-San Francisco"},"Loomis","20_13_89502","4904 AMPERE WAY RENO NV 89502 USA ","4904 Ampere Way","Reno","NV",89502,"YES","YES","RNOL",113,"Coin comes from SF vault","Pallet Jack","Driver loads and unloads from the dock","N/A","None","775-857-6800","775-857-6808","Dale Johnson "]
[12,2,1202,"San Francisco","Los Angeles","1202-Los Angeles","Federal Reserve Bank","20_13_90015","950 S. GRAND AVE. LOS ANGELES CA 90015 USA ","950 S. Grand Ave","Los Angeles","CA",90015,"YES","YES","LAGS",968,"Ht.13 ft 6 in/Length 72 feet","Pallet Jack, Shrink wrap","Drive dock-load and unload to/from transfer room","M-F 5:30AM - 2:00PM","24 hour notice prior to delivery","213-683-2337","213-683-2367","Jose M. Gonzalez"]
[12,2,1202,"San Francisco","Los Angeles","1202-Los Angeles","Sectran Security, Inc.","20_13_90060","7633 INDUSTRY AVE. PICO RIVERA CA 90660 USA ","7633 Industry Ave","Pico Rivera","CA",90660,"YES","YES","LASS",106,"Ht.10 ft/Length 72 feet","Fork Lift","Driver loads/unloads to tailgate.","M-F 5:30AM - 2:00PM","24 hour notice prior to delivery","562-948-1446 Ext.17 or 19","562-949-4327","Rony Ghaby/Darius Barfatani"]
[12,2,1202,"San Francisco","Los Angeles","1202-Los Angeles","Loomis","20_13_91761","1375 EAST ACACIA BLVD. ONTARIO CA 91761 USA ","1375 East Acacia Blvd.","Ontario","CA",91761,"YES","YES","LALF",236,"13 ft. /Length 72 feet/Ramp available","Fork Lift,  Pallet Jack","Driver loads/unloads to tailgate.","M-F 10:00AM - 2:00PM","24 hour notice prior to delivery","909-947-9797","909-947-3998","Gunther Johnston or Hugo Perla"]
[12,2,1202,"San Francisco","Los Angeles","1202-Los Angeles","Garda","20_13_90040","4901 ZAMBRANO STREET, COMMERCE CA 90040","4901 Zambrano Street","Commerce ","CA",90040,"YES","YES","LAAT",275,"Unload/load at door-no entry","Fork Lift,  Pallet Jack","Driver loads/unloads to tailgate.","M-F 6:30AM - 3:00PM","24 hour notice prior to delivery","213-330-1004 X 578132","213-345-2466","Loreen Ha-Ida Baker "]
[12,1,1201,"San Francisco","San Francisco","1201-San Francisco","Federal Reserve Bank","20_13_94105","101 MARKET STREET SAN FRANCISCO CA 94105 USA ","101 Market Street","San Francisco","CA",94105,"YES","YES","SFAO",1000,"No Restrictions","Fork Lift,  Pallet Jack","Drive dock-load and unload to/from transfer room","M-F 6:00AM - 2:00PM","None","415-974-3213","415-974-3383","Jennifer Sturtevant"]
[12,1,1201,"San Francisco","San Francisco","1201-San Francisco","Garda","20_13_94607A","725 85TH AVE. SUITE A OAKLAND CA 94621 USA ","725 - 85th Ave., Suite A","Oakland","CA",94621,"YES","YES","OAKA",220,"No Restrictions","Fork Lift,  Pallet Jack","Driver loads/unloads to tailgate","M-F 7:30AM - 3:30PM","None","707-310-9803","510-451-4574","Vince Clagg"]
[12,1,1201,"San Francisco","San Francisco","1201-San Francisco","Loomis","20_13_95035","897 WRIGLEY WAY  MILPITAS, CA 95035 USA","897 Wrigley Way ","Milpitas","CA",95035,"YES","YES","SFLS",226,"No Restrictions","Fork Lift,  Pallet Jack","Driver loads/unloads to tailgate","M-F 8:30AM - 4:00PM","None","408-273-1101","408 941-9671","Robert Colgin"]
[12,5,1205,"San Francisco","Seattle","1205-Seattle","BofA Portland CO Garda","20_13_97203","4810 NORTH LAGOON SUITE 500 PORTLAND OR 97203 USA ","4810 North Lagoon Suite 500","Portland","OR",97203,"YES","YES","PORG",50,"No Restrictions","Fork Lift,  Pallet Jack","Driver loads/unloads to tailgate.","M-F 10:00AM - 5:00PM","Must ave advanced notification to open gates","503 240-0900 ex 486170 or 486113","503 240-0999","Hanson, Connie or Teria Wampler"]
[12,5,1205,"San Francisco","Seattle","1205-Seattle","Brinks, Inc.","20_13_97217A","8517 N. ALBINA AVENUE PORTLAND OR 97217 USA ","8517 N. Albina Avenue","Portland","OR",97217,"YES","YES","PORB",125,"If over 53', can unload at street and move coin in truck bay with forklift. 48' may have trouble negotiating the driveway","Fork Lift,  Pallet Jack","Driver loads/unloads to tailgate.","M-F 7:00AM - 2:00PM","Loads must arrive between 7AM & 1 PM, 24 hour prior notification required ","360.518.5055","503.283.0255","Julie Ward"]
[12,5,1205,"San Francisco","Seattle","1205-Seattle","Loomis","20_13_97217B","6645 NORTH ENSIGN STREET PORTLAND OR 97214 USA ","6645 North Ensign Street","Portland","OR",97214,"YES","YES","PORL",430,"Door Height 12'; width 9', may need to have truck back up against door opening and offload coin from that point.","Fork Lift,  Pallet Jack","Driver loads/unloads to tailgate.","M-F 7:00AM - 2:00PM","Delivery only between 9AM & 2PM","503.232.2825","503-235-3401","Ed White"]
[12,5,1205,"San Francisco","Seattle","1205-Seattle","Federal Reserve Bank","20_13_98057","2700 NACHES AVE, SW RENTON WA 98057 USA ","2700 Naches Ave  SW","Renton","WA",98057,"YES","YES","SEAT",650,"No Restrictions","Fork Lift,  Pallet Jack","Driver loads and unloads from the dock","M-F 7:00AM - 2:00PM","Manditory notification to Police Services prior to delivery, and the delivery must be received prior to 2 PM","425-203-0827","425-203-0724","David DeChand"]
[12,5,1205,"San Francisco","Seattle",null,"BofA Seattle CO Garda","20_13_98057A","2985 NACHES AVE, SW RENTON WA 98057 USA","2985 Naches Ave SW","Renton ","WA",98057,"YES","YES","SEAG",50,"42' Tractor Trailer or smaller","Fork Lift,  Pallet Jack","Driver loads/unloads to tailgate.","M-F 7:00AM - 5:00PM","Must ave advanced notification to open gates","206 639-7510","425 271-2051","Kelly Mettler"]
[12,5,1205,"San Francisco","Seattle",{"$f":"C27&\"-\"&E27","v":"1205-Seattle"},"Loomis","20_13_98134C","5200 EAST MARGINAL WAY SEATTLE WA 98134 USA ","5200 East Marginal Way","Seattle","WA",98134,"YES","YES","SEAL",250,"No Restrictions","Fork Lift,  Pallet Jack","Driver loads and unloads from the dock","M-F 7:00AM - 3:00PM","24 hour notice prior to delivery, delivery only between 7AM & 3PM","206.762.2141","206.762.1220","Meng Mang"]
[12,5,1205,"San Francisco","Seattle",{"$f":"C28&\"-\"&E28","v":"1205-Seattle"},"Loomis","20_13_99217","6202 N. FREYA SPOKANE WA 99217 USA ","6202 N. Freya","Spokane","WA",99217,"YES","YES","GEGL",100,"No Restrictions","Fork Lift,  Pallet Jack","Driver loads/unloads to tailgate.","M-F 6:00AM - 2:00PM","Delivery best before Noon","509 532-2911","509 536-8155","Tanda Gunderson"]